Workbook

Sheet Instructions
A1: CALCUL DES TAUX VARIÉS (TAXE FONCIÈRE GÉNÉRALE) — ÉTAPES À SUIVRE
A2: VERSION DU 2024-05-08
A3: Étape | B3: Onglet | C3: Instructions /Description
A4: 1 | B4: Sommaire du rôle | C4: • | D4: Cliquer sur le bouton « Réinitialisation » (s'il y a lieu);
C5: • | D5: Inscrire les assiettes dans les cases appropriées.
A7: 2 | B7: Scénario — Taux variés | C7: • | D7: Cliquer sur le bouton « Réinitialisation » (s'il y a lieu);
C8: • | D8: Inscrire le nom de la municipalité, l'année, la population et le montant total de la taxe foncière générale prévu dans le budget de la municipalité.
C9: • | D9: Inscrire les multiples du taux de base retenus afin de calculer les taux variés;
C10: • | D10: Il est à noter : le bouton « Scénario taux unique » calcule par défaut un taux unique pour l'ensemble des assiettes, alors que le bouton « Scénario avec le maximum des balises » calcule des taux variés selon le maximum des balises prévues dans la Loi sur la fiscalité municipale.
C11: • | D11: L'utilisateur doit s'assurer que les multiples du taux de base qu'il a retenus respectent les balises prévues dans la Loi. Dans l'éventualité où l'un des multiples retenus ne respecte pas ces balises, les recettes de taxes ne seront pas calculées. Pour plus de précisions sur les balises, référez-vous à l'onglet :
D12: Balises-Taux
A15: 3 | B15: Comparaison des scénarios | C15: • | D15: Pour comparer un « scénario avec taux variés » avec un « scénario avec taux unique » et un « scénario avec les taux variés établis selon le maximum des balises autorisé par la Loi », référez-vous à cet onglet.
A17: 4 | B17: Résultats du scénario | C17: • | D17: Une fois le scénario choisi, les taux variés de la taxe foncière générale calculés pour chacune des assiettes foncières d'imposition à l'aide du simulateur apparaissent dans cet onglet.
A19: AUTRES ONGLETS
A20: Le simulateur contient des onglets intermédiaires qui sont masqués et qui servent à calculer certains résultats. Ils peuvent être affichés au besoin.
B22: Onglet | D22: Description
B23: Détermination de l'assiette | C23: • | D23: Cet onglet calcule automatiquement la partie imposable des assiettes assujetties à la taxe foncière en fonction de la mixité non résidentielle.
B25: Taux_max_balises | C25: • | D25: Cet onglet calcule automatiquement un scénario utilisant des taux variés selon le maximum des balises pour les assiettes non résidentielles, industrielles, des six logements ou plus et des terrains vagues desservis, ainsi que pour l'assiette agricole sans le plafond d'imposition des terres agricoles.
C26: • | D26: Il permet de comparer le scénario «Taux_max_balises » avec le scénario de l'onglet « Scénario_taux ».
B28: Balises-Taux_max_balises | C28: • | D28: Cet onglet calcule les balises provenant du fichier « Taux_max_balises ».
A30: NOTES
A31: Les calculs des montants et des taux provenant du simulateur ne sont pas arrondis. Des montants arrondis et des taux arrondis pourraient demander un rajustement.
A32: Les calculs effectués par le simulateur ne constituent pas un avis juridique ni un avis officiel du MAMH et ils ne remplacent pas la lecture de la Loi.
A33: Il est possible de modifier les graphiques.

Sheet Sommaire du rôle
B2: ASSIETTES D'APPLICATION DES TAUX DE LA TAXE FONCIÈRE GÉNÉRALE 9
B3: TAUX APPLICABLES | F3: TAUX NON RÉSIDENTIEL | H3: TAUX INDUSTRIEL (CLASSE 2) | J3: TAUX IND. (SAUF CL.1 ET 2) | L3: TAUX AGRICOLE | N3: TAUX FORESTIER | P3: TAUX CATÉGORIE RÉSIDUELLE
B4: NOMBRE DE SECTEURS | R4: =IF(OR(F4>1,H4>1,J4>1,L4>1,N4>1,P4>1),"UTILISER LE SIMULATEUR POUR LA TAXATION DE SECTEUR","-") -> -
B5: CLASSE NON RÉSIDENTIELLE ET | F5: VAL. NR À 100 % ET IND. CL. 2 À 50 % | H5: VALEUR À 50 % | J5: VALEUR À 100 % | L5: VALEURS À 100 % IMPOSABLES | N5: VALEURS À 100 % IMPOSABLES | P5: VALEUR À 100 %
B6: POURCENTAGE DE TAXATION | F6: IMPOSABLES | G6: COMPENSABLES | H6: IMPOSABLES | I6: COMPENSABLES | J6: IMPOSABLES | K6: COMPENSABLES | L6: 270604300 | N6: 50000000 | P6: IMPOSABLES | Q6: COMPENSABLES
B7: 1A | C7: : 0,1 % | E7: 901 | F7: 76534150 | G7: 0 | O7: 99,9 % | P7: 76534150 | Q7: 0
B8: 1B | C8: : 0,5 % | E8: 902 | F8: 34712370 | G8: 0 | O8: 99,5 % | P8: 34712370 | Q8: 0
B9: 1C | C9: : 1 % | E9: 903 | F9: 4894450 | G9: 0 | O9: 99 % | P9: 4894450 | Q9: 0
B10: 2 | C10: : 3 % | E10: 904 | F10: 23616670 | G10: 0 | J10: 605900 | O10: 97 % | P10: 23616670 | Q10: 0
B11: 3 | C11: : 6 % | E11: 905 | F11: 44153450 | G11: 0 | J11: 181400 | O11: 94 % | P11: 44153450 | Q11: 0
B12: 4 | C12: : 12 % | E12: 906 | F12: 60256460 | G12: 0 | J12: 215700 | O12: 88 % | P12: 60256460 | Q12: 0
B13: 5 | C13: : 22 % | E13: 907 | F13: 38643990 | G13: 0 | O13: 78 % | P13: 38643990 | Q13: 0
B14: 6 | C14: : 40 % | E14: 908 | F14: 38532890 | G14: 0 | H14: 290100 | J14: 2421200 | O14: 60 % | P14: 38532890 | Q14: 0
B15: 7 | C15: : 60 % | E15: 909 | F15: 39569365 | G15: 72376370 | H15: 350350 | J15: 354000 | O15: 40 % | P15: 39569365 | Q15: 72376370
B16: 8 | C16: : 85 % | E16: 910 | F16: 22323070 | G16: 211592260 | J16: 1875900 | O16: 15 % | P16: 22323070 | Q16: 211592260
B17: 9 | C17: : 100 % | E17: 911 | F17: 3177900 | G17: 0 | L17: TAUX TERRAINS VAGUES DESSERVIS
B18: 10 | C18: : 100 % | E18: 912 | F18: 1155755205 | G18: 61905690 | H18: 10515650 | J18: 225704400 | K18: 2325200 | P18: 8068032861 | Q18: 2100780
B19: 11 | C19: : Cours de triage 100 % | E19: 913 | L19: VALEURS À 100 %
B20: 12 | C20: : CHSLD 20 % | E20: 914 | F20: 13938200 | L20: IMPOSABLES | N20: COMPENSABLES | O20: 80 % | P20: =F20 -> 13938200
B21: 13 | C21: : Cours de triage 40 % | E21: 915 | G21: CFIL (chemin de fer d'intérêt local) | O21: 60 % | P21: =F21 -> 0
B22: APPLICATION DU TNR QUAND TTVD | E22: 916 | F22: 5228300 | I22: (TTVD − TAUX DE BASE) x | L22: =F22 -> 5228300 | N22: =G22 -> 0
B23: ASSIETTES D'APPLICATION | E23: 917 | F23: =F71+F72 -> 1529652563 | I23: =H71+H72 -> 241701840 | K23: (TTVD) x | L23: 76716400 | N23: 58400 | P23: =O71+O72 -> 8447691868
B25: ASSIETTES D'APPLICATION DES TAUX RELATIFS AUX SOUS-CATÉGORIES DES IMMEUBLES NON RÉSIDENTIELS (si applicables)
B26: DÉNOMINATION DE LA SOUS-CATÉGORIE | F26: TAUX SOUS-CATÉGORIE DE RÉFÉRENCE | H26: TAUX SOUS-CATÉGORIE 1 | J26: TAUX SOUS-CATÉGORIE 2 | L26: TAUX SOUS-CATÉGORIE 3 | N26: TAUX SOUS-CATÉGORIE 4 | P26: TAUX SOUS-CATÉGORIE 5 | R26: TAUX SOUS-CATÉGORIE 6 | T26: TAUX SOUS-CATÉGORIE 7 | V26: TAUX SOUS-CATÉGORIE 8 | X26: TAUX SOUS-CATÉGORIE 9 | Z26: TAUX SOUS-CATÉGORIE 10
H27: snr1 | J27: snr2 | L27: snr3 | N27: snr4 | P27: snr5 | R27: snr6 | T27: snr7 | V27: snr8 | X27: snr9 | Z27: snr10
B28: NOMBRE DE SECTEURS
B29: POURCENTAGE DE TAXATION | F29: IMPOSABLES | G29: COMPENSABLES | H29: IMPOSABLES | I29: COMPENSABLES | J29: IMPOSABLES | K29: COMPENSABLES | L29: IMPOSABLES | M29: COMPENSABLES | N29: IMPOSABLES | O29: COMPENSABLES | P29: IMPOSABLES | Q29: COMPENSABLES | R29: IMPOSABLES | S29: COMPENSABLES | T29: IMPOSABLES | U29: COMPENSABLES | V29: IMPOSABLES | W29: COMPENSABLES | X29: IMPOSABLES | Y29: COMPENSABLES | Z29: IMPOSABLES | AA29: COMPENSABLES
B30: 1A | C30: 0,1 % | E30: =E22+1 -> 917 | F30: 6957650 | H30: 6957650 | J30: 6957650 | L30: 6957650 | N30: 6957650 | P30: 6957650 | R30: 6957650 | T30: 6957650 | V30: 6957650 | X30: 6957650 | Z30: 6957650
B31: 1B | C31: 0,5 % | E31: =E30+1 -> 918 | F31: 3155670 | H31: 3155670 | J31: 3155670 | L31: 3155670 | N31: 3155670 | P31: 3155670 | R31: 3155670 | T31: 3155670 | V31: 3155670 | X31: 3155670 | Z31: 3155670
B32: 1C | C32: 1 % | E32: 919 | F32: 444950 | H32: 444950 | J32: 444950 | L32: 444950 | N32: 444950 | P32: 444950 | R32: 444950 | T32: 444950 | V32: 444950 | X32: 444950 | Z32: 444950
B33: 2 | C33: 3 % | E33: 920 | F33: 2146970 | H33: 2146970 | J33: 2146970 | L33: 2146970 | N33: 2146970 | P33: 2146970 | R33: 2146970 | T33: 2146970 | V33: 2146970 | X33: 2146970 | Z33: 2146970
B34: 3 | C34: 6 % | E34: 921 | F34: 4013950 | H34: 4013950 | J34: 4013950 | L34: 4013950 | N34: 4013950 | P34: 4013950 | R34: 4013950 | T34: 4013950 | V34: 4013950 | X34: 4013950 | Z34: 4013950
B35: 4 | C35: 12 % | E35: 922 | F35: 5477860 | H35: 5477860 | J35: 5477860 | L35: 5477860 | N35: 5477860 | P35: 5477860 | R35: 5477860 | T35: 5477860 | V35: 5477860 | X35: 5477860 | Z35: 5477860
B36: 5 | C36: 22 % | E36: 923 | F36: 3513090 | H36: 3513090 | J36: 3513090 | L36: 3513090 | N36: 3513090 | P36: 3513090 | R36: 3513090 | T36: 3513090 | V36: 3513090 | X36: 3513090 | Z36: 3513090
B37: 6 | C37: 40 % | E37: 924 | F37: 3502990 | H37: 3502990 | J37: 3502990 | L37: 3502990 | N37: 3502990 | P37: 3502990 | R37: 3502990 | T37: 3502990 | V37: 3502990 | X37: 3502990 | Z37: 3502990
B38: 7 | C38: 60 % | E38: 925 | F38: 3597215 | G38: 6579670 | H38: 3597215 | I38: 6579670 | J38: 3597215 | K38: 6579670 | L38: 3597215 | M38: 6579670 | N38: 3597215 | O38: 6579670 | P38: 3597215 | Q38: 6579670 | R38: 3597215 | S38: 6579670 | T38: 3597215 | U38: 6579670 | V38: 3597215 | W38: 6579670 | X38: 3597215 | Y38: 6579670 | Z38: 3597215 | AA38: 6579670
B39: 8 | C39: 85 % | E39: 926 | F39: 2029370 | G39: 19235660 | H39: 2029370 | I39: 19235660 | J39: 2029370 | K39: 19235660 | L39: 2029370 | M39: 19235660 | N39: 2029370 | O39: 19235660 | P39: 2029370 | Q39: 19235660 | R39: 2029370 | S39: 19235660 | T39: 2029370 | U39: 19235660 | V39: 2029370 | W39: 19235660 | X39: 2029370 | Y39: 19235660 | Z39: 2029370 | AA39: 19235660
B40: 9 | C40: 100 % | E40: 927 | F40: 288900 | H40: 288900 | J40: 288900 | L40: 288900 | N40: 288900 | P40: 288900 | R40: 288900 | T40: 288900 | V40: 288900 | X40: 288900 | Z40: 288900
B41: 10 | C41: 100 % | E41: 928 | F41: 105068655 | G41: 5627790 | H41: 105068655 | I41: 5627790 | J41: 105068655 | K41: 5627790 | L41: 105068655 | M41: 5627790 | N41: 105068655 | O41: 5627790 | P41: 105068655 | Q41: 5627790 | R41: 105068655 | S41: 5627790 | T41: 105068655 | U41: 5627790 | V41: 105068655 | W41: 5627790 | X41: 105068655 | Y41: 5627790 | Z41: 105068655 | AA41: 5627790
B42: 11 | C42: Cours de triage 100 % | E42: 929
B43: 12 | C43: CHSLD 20 % | E43: 930 | F43: 13938200
B44: 13 | C44: Cours de triage 40 % | E44: 931 | G44: CFIL
B45: APPLICATION DU TNR QUAND TTVD | E45: 932 | F45: 5228300
B46: ASSIETTES D'APPLICATION | E46: 933 | F46: =F77+F78 -> 146346542.1 | H46: =G77+G78 -> 138330602.1 | J46: =H77+H78 -> 138330602.1 | L46: =I77+I78 -> 138330602.1 | N46: =J77+J78 -> 138330602.1 | P46: =K77+K78 -> 138330602.1 | R46: =L77+L78 -> 138330602.1 | T46: =M77+M78 -> 138330602.1 | V46: =N77+N78 -> 138330602.1 | X46: =O77+O78 -> 138330602.1 | Z46: =P77+P78 -> 138330602.1
B48: ASSIETTES D'APPLICATION DES TAUX RELATIFS AUX SOUS-CATÉGORIES DES IMMEUBLES RÉSIDENTIELS (si applicables)
B49: DÉNOMINATION DE LA SOUS-CATÉGORIE | F49: TAUX SOUS-CATÉGORIE RÉSIDUELLE | H49: TAUX SOUS-CATÉGORIE 1 | J49: TAUX SOUS-CATÉGORIE 2 | L49: TAUX SOUS-CATÉGORIE 3 | N49: TAUX SOUS-CATÉGORIE 4 | P49: TAUX SOUS-CATÉGORIE 5 | R49: TAUX SOUS-CATÉGORIE 6 | T49: TAUX SOUS-CATÉGORIE 7 | V49: TAUX SOUS-CATÉGORIE 8 | X49: TAUX SOUS-CATÉGORIE 9 | Z49: TAUX SOUS-CATÉGORIE 10
H50: sr1 | J50: sr2 | L50: sr3 | N50: sr4 | P50: sr5 | R50: sr6 | T50: sr7 | V50: sr8 | X50: sr9 | Z50: sr10
B51: NOMBRE DE SECTEURS
B52: POURCENTAGE DE TAXATION | F52: IMPOSABLES | G52: COMPENSABLES | H52: IMPOSABLES | I52: COMPENSABLES | J52: IMPOSABLES | K52: COMPENSABLES | L52: IMPOSABLES | M52: COMPENSABLES | N52: IMPOSABLES | O52: COMPENSABLES | P52: IMPOSABLES | Q52: COMPENSABLES | R52: IMPOSABLES | S52: COMPENSABLES | T52: IMPOSABLES | U52: COMPENSABLES | V52: IMPOSABLES | W52: COMPENSABLES | X52: IMPOSABLES | Y52: COMPENSABLES | Z52: IMPOSABLES | AA52: COMPENSABLES
B53: 1A | C53: 99,9 % | E53: 935 | F53: 6957650 | H53: 6957650 | J53: 6957650 | L53: 6957650 | N53: 6957650 | P53: 6957650 | R53: 6957650 | T53: 6957650 | V53: 6957650 | X53: 6957650 | Z53: 6957650
B54: 1B | C54: 99,5 % | E54: =E53+1 -> 936 | F54: 3155670 | H54: 3155670 | J54: 3155670 | L54: 3155670 | N54: 3155670 | P54: 3155670 | R54: 3155670 | T54: 3155670 | V54: 3155670 | X54: 3155670 | Z54: 3155670
B55: 1C | C55: 99 % | E55: 937 | F55: 444950 | H55: 444950 | J55: 444950 | L55: 444950 | N55: 444950 | P55: 444950 | R55: 444950 | T55: 444950 | V55: 444950 | X55: 444950 | Z55: 444950
B56: 2 | C56: 97 % | E56: 938 | F56: 2146970 | H56: 2146970 | J56: 2146970 | L56: 2146970 | N56: 2146970 | P56: 2146970 | R56: 2146970 | T56: 2146970 | V56: 2146970 | X56: 2146970 | Z56: 2146970
B57: 3 | C57: 94 % | E57: 939 | F57: 4013950 | H57: 4013950 | J57: 4013950 | L57: 4013950 | N57: 4013950 | P57: 4013950 | R57: 4013950 | T57: 4013950 | V57: 4013950 | X57: 4013950 | Z57: 4013950
B58: 4 | C58: 88 % | E58: 940 | F58: 5477860 | H58: 5477860 | J58: 5477860 | L58: 5477860 | N58: 5477860 | P58: 5477860 | R58: 5477860 | T58: 5477860 | V58: 5477860 | X58: 5477860 | Z58: 5477860
B59: 5 | C59: 78 % | E59: 941 | F59: 3513090 | H59: 3513090 | J59: 3513090 | L59: 3513090 | N59: 3513090 | P59: 3513090 | R59: 3513090 | T59: 3513090 | V59: 3513090 | X59: 3513090 | Z59: 3513090
B60: 6 | C60: 60 % | E60: 942 | F60: 3502990 | H60: 3502990 | J60: 3502990 | L60: 3502990 | N60: 3502990 | P60: 3502990 | R60: 3502990 | T60: 3502990 | V60: 3502990 | X60: 3502990 | Z60: 3502990
B61: 7 | C61: 40 % | E61: 943 | F61: 3597215 | G61: 6579670 | H61: 3597215 | I61: 6579670 | J61: 3597215 | K61: 6579670 | L61: 3597215 | M61: 6579670 | N61: 3597215 | O61: 6579670 | P61: 3597215 | Q61: 6579670 | R61: 3597215 | S61: 6579670 | T61: 3597215 | U61: 6579670 | V61: 3597215 | W61: 6579670 | X61: 3597215 | Y61: 6579670 | Z61: 3597215 | AA61: 6579670
B62: 8 | C62: 15 % | E62: 944 | F62: 2029370 | G62: 19235660 | H62: 2029370 | I62: 19235660 | J62: 2029370 | K62: 19235660 | L62: 2029370 | M62: 19235660 | N62: 2029370 | O62: 19235660 | P62: 2029370 | Q62: 19235660 | R62: 2029370 | S62: 19235660 | T62: 2029370 | U62: 19235660 | V62: 2029370 | W62: 19235660 | X62: 2029370 | Y62: 19235660 | Z62: 2029370 | AA62: 19235660
B63: 9 | C63: 100% immeubles sans partie non résidentielle | E63: 945 | F63: 733457532.8 | G63: 190980 | H63: 733457532.8 | I63: 190980 | J63: 733457532.8 | K63: 190980 | L63: 733457532.8 | M63: 190980 | N63: 733457532.8 | O63: 190980 | P63: 733457532.8 | Q63: 190980 | R63: 733457532.8 | S63: 190980 | T63: 733457532.8 | U63: 190980 | V63: 733457532.8 | W63: 190980 | X63: 733457532.8 | Y63: 190980 | Z63: 733457532.8 | AA63: 190980
B64: 12 | C64: CHSLD 80 % | E64: 946 | F64: 13938200
B65: 13 | C65: Cours de triage 60 % | E65: 947
B66: ASSIETTES D'APPLICATION | E66: 948 | F66: =F83+F84 -> 778108860.7 | H66: =G83+G84 -> 766958300.7 | J66: =H83+H84 -> 766958300.7 | L66: =I83+I84 -> 766958300.7 | N66: =J83+J84 -> 766958300.7 | P66: =K83+K84 -> 766958300.7 | R66: =L83+L84 -> 766958300.7 | T66: =M83+M84 -> 766958300.7 | V66: =N83+N84 -> 766958300.7 | X66: =O83+O84 -> 766958300.7 | Z66: =P83+P84 -> 766958300.7
F69: TAUX NON RÉSIDENTIEL | H69: TAUX INDUSTRIEL | L69: TAUX TERRAINS VAGUES DESSERVIS | O69: TAUX CATÉGORIE RÉSIDUELLE (TAUX DE BASE)
C71: Assiette imposable | F71: ='Détermination assiette'!G23 -> 1244467630 | H71: ='Détermination assiette'!G41+'Détermination assiette'!G59 -> 239376640 | L71: =L23 -> 76716400 | O71: ='Détermination assiette'!G78 -> 8384901701
C72: Assiette compensable | F72: ='Détermination assiette'!H23 -> 285184933 | H72: ='Détermination assiette'!H41+'Détermination assiette'!H59 -> 2325200 | L72: =N23 -> 58400 | O72: ='Détermination assiette'!H78 -> 62790167
B74: Sous-catégorie des immeubles non résidentiels
F75: TAUX SOUS-CATÉGORIE DE RÉFÉRENCE | G75: Sous-catégorie 1 | H75: Sous-catégorie 2 | I75: Sous-catégorie 3 | J75: Sous-catégorie 4 | K75: Sous-catégorie 5 | L75: Sous-catégorie 6 | M75: Sous-catégorie 7 | N75: Sous-catégorie 8 | O75: Sous-catégorie 9 | P75: Sous-catégorie 10
C77: Assiette imposable | F77: ='Détermination assiette'!G100 -> 120420639.1 | G77: ='Détermination assiette'!G122 -> 112404699.1 | H77: ='Détermination assiette'!R122 -> 112404699.1 | I77: ='Détermination assiette'!AC122 -> 112404699.1 | J77: ='Détermination assiette'!AN122 -> 112404699.1 | K77: ='Détermination assiette'!AY122 -> 112404699.1 | L77: ='Détermination assiette'!BJ122 -> 112404699.1 | M77: ='Détermination assiette'!BU122 -> 112404699.1 | N77: ='Détermination assiette'!CF122 -> 112404699.1 | O77: ='Détermination assiette'!CQ122 -> 112404699.1 | P77: ='Détermination assiette'!DB122 -> 112404699.1
C78: Assiette compensable | F78: ='Détermination assiette'!H100 -> 25925903 | G78: ='Détermination assiette'!H122 -> 25925903 | H78: ='Détermination assiette'!S122 -> 25925903 | I78: ='Détermination assiette'!AD122 -> 25925903 | J78: ='Détermination assiette'!AO122 -> 25925903 | K78: ='Détermination assiette'!AZ122 -> 25925903 | L78: ='Détermination assiette'!BK122 -> 25925903 | M78: ='Détermination assiette'!BV122 -> 25925903 | N78: ='Détermination assiette'!CG122 -> 25925903 | O78: ='Détermination assiette'!CR122 -> 25925903 | P78: ='Détermination assiette'!DC122 -> 25925903
B80: Sous-catégorie des immeubles résidentiels
F81: TAUX SOUS-CATÉGORIE RÉSIDUELLE | G81: Sous-catégorie 1 | H81: Sous-catégorie 2 | I81: Sous-catégorie 3 | J81: Sous-catégorie 4 | K81: Sous-catégorie 5 | L81: Sous-catégorie 6 | M81: Sous-catégorie 7 | N81: Sous-catégorie 8 | O81: Sous-catégorie 9 | P81: Sous-catégorie 10
C83: Assiette imposable | F83: ='Détermination assiette'!G141 -> 772400663.7 | G83: ='Détermination assiette'!G160 -> 761250103.7 | H83: ='Détermination assiette'!R160 -> 761250103.7 | I83: ='Détermination assiette'!AC160 -> 761250103.7 | J83: ='Détermination assiette'!AN160 -> 761250103.7 | K83: ='Détermination assiette'!AY160 -> 761250103.7 | L83: ='Détermination assiette'!BJ160 -> 761250103.7 | M83: ='Détermination assiette'!BU160 -> 761250103.7 | N83: ='Détermination assiette'!CF160 -> 761250103.7 | O83: ='Détermination assiette'!CQ160 -> 761250103.7 | P83: ='Détermination assiette'!DB160 -> 761250103.7
C84: Assiette compensable | F84: ='Détermination assiette'!H141 -> 5708197 | G84: ='Détermination assiette'!H160 -> 5708197 | H84: ='Détermination assiette'!S160 -> 5708197 | I84: ='Détermination assiette'!AD160 -> 5708197 | J84: ='Détermination assiette'!AO160 -> 5708197 | K84: ='Détermination assiette'!AZ160 -> 5708197 | L84: ='Détermination assiette'!BK160 -> 5708197 | M84: ='Détermination assiette'!BV160 -> 5708197 | N84: ='Détermination assiette'!CG160 -> 5708197 | O84: ='Détermination assiette'!CR160 -> 5708197 | P84: ='Détermination assiette'!DC160 -> 5708197

Sheet Détermination assiette (hidden)
A1: DÉTERMINATION DES ASSIETTES
A3: ASSIETTE AU TAUX NON RÉSIDENTIEL
A4: Classe non résidentielle | B4: Pourcentage de taxation | D4: VAL. NR À 100 % ET IND. CL. 2 À 50 %
D5: Imposables | E5: Compensables | G5: Imposables pondérées | H5: Compensables pondérées | J5: Total
B6: (1) | D6: (2) | E6: (3) | G6: (4) = (1) X (2) | H6: (5) = (1 ) X (3) | J6: (6) = (4) + (5)
A7: 1A | B7: 0.001 | D7: ='Sommaire du rôle'!F7 -> 76534150 | E7: ='Sommaire du rôle'!G7 -> 0 | G7: =B7*D7 -> 76534.15 | H7: =B7*E7 -> 0 | J7: =G7+H7 -> 76534.15
A8: 1B | B8: 0.005 | D8: ='Sommaire du rôle'!F8 -> 34712370 | E8: ='Sommaire du rôle'!G8 -> 0 | G8: =B8*D8 -> 173561.85 | H8: =B8*E8 -> 0 | J8: =G8+H8 -> 173561.85
A9: 1C | B9: 0.01 | D9: ='Sommaire du rôle'!F9 -> 4894450 | E9: ='Sommaire du rôle'!G9 -> 0 | G9: 48944.5 | H9: 0 | J9: 48944.5
A10: 2 | B10: 0.03 | D10: ='Sommaire du rôle'!F10 -> 23616670 | E10: ='Sommaire du rôle'!G10 -> 0 | G10: 708500.1 | H10: 0 | J10: 708500.1
A11: 3 | B11: 0.06 | D11: ='Sommaire du rôle'!F11 -> 44153450 | E11: ='Sommaire du rôle'!G11 -> 0 | G11: 2649207 | H11: 0 | J11: 2649207
A12: 4 | B12: 0.12 | D12: ='Sommaire du rôle'!F12 -> 60256460 | E12: ='Sommaire du rôle'!G12 -> 0 | G12: 7230775.2 | H12: 0 | J12: 7230775.2
A13: 5 | B13: 0.22 | D13: ='Sommaire du rôle'!F13 -> 38643990 | E13: ='Sommaire du rôle'!G13 -> 0 | G13: 8501677.8 | H13: 0 | J13: 8501677.8
A14: 6 | B14: 0.4 | D14: ='Sommaire du rôle'!F14 -> 38532890 | E14: ='Sommaire du rôle'!G14 -> 0 | G14: 15413156 | H14: 0 | J14: 15413156
A15: 7 | B15: 0.6 | D15: ='Sommaire du rôle'!F15 -> 39569365 | E15: ='Sommaire du rôle'!G15 -> 72376370 | G15: 23741619 | H15: 43425822 | J15: 67167441
A16: 8 | B16: 0.85 | D16: ='Sommaire du rôle'!F16 -> 22323070 | E16: ='Sommaire du rôle'!G16 -> 211592260 | G16: 18974609.5 | H16: 179853421 | J16: 198828030.5
A17: 9 | B17: 1 | D17: ='Sommaire du rôle'!F17 -> 3177900 | E17: ='Sommaire du rôle'!G17 -> 0 | G17: 3177900 | H17: 0 | J17: 3177900
A18: 10 | B18: 1 | D18: ='Sommaire du rôle'!F18 -> 1155755205 | E18: ='Sommaire du rôle'!G18 -> 61905690 | G18: 1155755205 | H18: 61905690 | J18: 1217660895
A19: 11 Cours de triage | B19: 100% | D19: ='Sommaire du rôle'!F19 -> 0 | E19: ='Sommaire du rôle'!G19 -> 0 | G19: 0 | H19: 0 | J19: 0
A20: 12 CHSLD | B20: 0.2 | D20: ='Sommaire du rôle'!F20 -> 13938200 | G20: 2787640 | J20: 2787640
A21: 13 Cours de triage 40 % | B21: 40% | D21: ='Sommaire du rôle'!F21 -> 0 | G21: 0 | J21: 0
A22: APPLICATION DU TNR QUAND TTVD | B22: 1 | D22: ='Sommaire du rôle'!F22 -> 5228300 | E22: ='Sommaire du rôle'!G22 -> 0 | G22: 5228300 | H22: =B22*E22 -> 0 | J22: 5228300
A23: Total | G23: =SUM(G7:G22) -> 1244467630 | H23: =SUM(H7:H22) -> 285184933 | J23: =G23+H23 -> 1529652563
A25: ASSIETTE AU TAUX INDUSTRIEL (CLASSE 2)
A26: Classe non résidentielle | B26: Pourcentage de taxation | D26: VALEUR À 50 %
D27: Imposables | E27: Compensables | G27: Imposables pondérées | H27: Compensables pondérées | J27: Total
B28: (1) | D28: (2) | E28: (3) | G28: (4) = (1) X (2) | H28: (5) = (1) X (3) | J28: (6) = (4) + (5)
A29: 1A | B29: 0.001 | D29: ='Sommaire du rôle'!H7 -> 0 | E29: ='Sommaire du rôle'!I7 -> 0 | G29: =B29*D29 -> 0 | H29: =B29*E29 -> 0 | J29: =G29+H29 -> 0
A30: 1B | B30: 0.005 | D30: ='Sommaire du rôle'!H8 -> 0 | E30: ='Sommaire du rôle'!I8 -> 0 | G30: =B30*D30 -> 0 | H30: =B30*E30 -> 0 | J30: =G30+H30 -> 0
A31: 1C | B31: 0.01 | D31: ='Sommaire du rôle'!H9 -> 0 | E31: ='Sommaire du rôle'!I9 -> 0 | G31: 0 | H31: 0 | J31: 0
A32: 2 | B32: 0.03 | D32: ='Sommaire du rôle'!H10 -> 0 | E32: ='Sommaire du rôle'!I10 -> 0 | G32: 0 | H32: 0 | J32: 0
A33: 3 | B33: 0.06 | D33: ='Sommaire du rôle'!H11 -> 0 | E33: ='Sommaire du rôle'!I11 -> 0 | G33: 0 | H33: 0 | J33: 0
A34: 4 | B34: 0.12 | D34: ='Sommaire du rôle'!H12 -> 0 | E34: ='Sommaire du rôle'!I12 -> 0 | G34: 0 | H34: 0 | J34: 0
A35: 5 | B35: 0.22 | D35: ='Sommaire du rôle'!H13 -> 0 | E35: ='Sommaire du rôle'!I13 -> 0 | G35: 0 | H35: 0 | J35: 0
A36: 6 | B36: 0.4 | D36: ='Sommaire du rôle'!H14 -> 290100 | E36: ='Sommaire du rôle'!I14 -> 0 | G36: 116040 | H36: 0 | J36: 116040
A37: 7 | B37: 0.6 | D37: ='Sommaire du rôle'!H15 -> 350350 | E37: ='Sommaire du rôle'!I15 -> 0 | G37: 210210 | H37: 0 | J37: 210210
A38: 8 | B38: 0.85 | D38: ='Sommaire du rôle'!H16 -> 0 | E38: ='Sommaire du rôle'!I16 -> 0 | G38: 0 | H38: 0 | J38: 0
A39: 9 | B39: 1 | D39: ='Sommaire du rôle'!H17 -> 0 | E39: ='Sommaire du rôle'!I17 -> 0 | G39: 0 | H39: 0 | J39: 0
A40: 10 | B40: 1 | D40: ='Sommaire du rôle'!H18 -> 10515650 | E40: ='Sommaire du rôle'!I18 -> 0 | G40: 10515650 | H40: 0 | J40: 10515650
A41: Total | G41: =SUM(G29:G40) -> 10841900 | H41: =SUM(H29:H40) -> 0 | J41: =G41+H41 -> 10841900
A43: ASSIETTE AU TAUX IND. (SAUF CL.1 ET 2)
A44: Classe non résidentielle | B44: Pourcentage de taxation | D44: VALEUR À 100 %
D45: Imposables | E45: Compensables | G45: Imposables pondérées | H45: Compensables pondérées | J45: Total
B46: (1) | D46: (2) | E46: (3) | G46: (4) = (1) X (2) | H46: (5) = (1) X (3) | J46: (6) = (4) + (5)
A47: 1A | B47: 0.001 | D47: ='Sommaire du rôle'!J7 -> 0 | E47: ='Sommaire du rôle'!K7 -> 0 | G47: =B47*D47 -> 0 | H47: =B47*E47 -> 0 | J47: =G47+H47 -> 0
A48: 1B | B48: 0.005 | D48: ='Sommaire du rôle'!J8 -> 0 | E48: ='Sommaire du rôle'!K8 -> 0 | G48: =B48*D48 -> 0 | H48: =B48*E48 -> 0 | J48: =G48+H48 -> 0
A49: 1C | B49: 0.01 | D49: ='Sommaire du rôle'!J9 -> 0 | E49: ='Sommaire du rôle'!K9 -> 0 | G49: 0 | H49: 0 | J49: 0
A50: 2 | B50: 0.03 | D50: ='Sommaire du rôle'!J10 -> 605900 | E50: ='Sommaire du rôle'!K10 -> 0 | G50: 18177 | H50: 0 | J50: 18177
A51: 3 | B51: 0.06 | D51: ='Sommaire du rôle'!J11 -> 181400 | E51: ='Sommaire du rôle'!K11 -> 0 | G51: 10884 | H51: 0 | J51: 10884
A52: 4 | B52: 0.12 | D52: ='Sommaire du rôle'!J12 -> 215700 | E52: ='Sommaire du rôle'!K12 -> 0 | G52: 25884 | H52: 0 | J52: 25884
A53: 5 | B53: 0.22 | D53: ='Sommaire du rôle'!J13 -> 0 | E53: ='Sommaire du rôle'!K13 -> 0 | G53: 0 | H53: 0 | J53: 0
A54: 6 | B54: 0.4 | D54: ='Sommaire du rôle'!J14 -> 2421200 | E54: ='Sommaire du rôle'!K14 -> 0 | G54: 968480 | H54: 0 | J54: 968480
A55: 7 | B55: 0.6 | D55: ='Sommaire du rôle'!J15 -> 354000 | E55: ='Sommaire du rôle'!K15 -> 0 | G55: 212400 | H55: 0 | J55: 212400
A56: 8 | B56: 0.85 | D56: ='Sommaire du rôle'!J16 -> 1875900 | E56: ='Sommaire du rôle'!K16 -> 0 | G56: 1594515 | H56: 0 | J56: 1594515
A57: 9 | B57: 1 | D57: ='Sommaire du rôle'!J17 -> 0 | E57: ='Sommaire du rôle'!K17 -> 0 | G57: 0 | H57: 0 | J57: 0
A58: 10 | B58: 1 | D58: ='Sommaire du rôle'!J18 -> 225704400 | E58: ='Sommaire du rôle'!K18 -> 2325200 | G58: 225704400 | H58: 2325200 | J58: 228029600
A59: Total | G59: =SUM(G47:G58) -> 228534740 | H59: =SUM(H47:H58) -> 2325200 | J59: =G59+H59 -> 230859940
A61: ASSIETTE CATÉGORIE RÉSIDUELLE
A62: Classe non résidentielle | B62: Pourcentage de taxation | D62: VALEUR À 100 %
D63: Imposables | E63: Compensables | G63: Imposables pondérées | H63: Compensables pondérées | J63: Total
B64: (1) | D64: (2) | E64: (3) | G64: (4) = (1) X (2) | H64: (5) = (1) X (3) | J64: (6) = (4) + (5)
A65: 1A | B65: 0.999 | D65: ='Sommaire du rôle'!P7 -> 76534150 | E65: ='Sommaire du rôle'!Q7 -> 0 | G65: =D65*B65 -> 76457615.85 | H65: =B65*E65 -> 0 | J65: =G65+H65 -> 76457615.85
A66: 1B | B66: 0.995 | D66: ='Sommaire du rôle'!P8 -> 34712370 | E66: ='Sommaire du rôle'!Q8 -> 0 | G66: =D66*B66 -> 34538808.15 | H66: =B66*E66 -> 0 | J66: =G66+H66 -> 34538808.15
A67: 1C | B67: 0.99 | D67: ='Sommaire du rôle'!P9 -> 4894450 | E67: ='Sommaire du rôle'!Q9 -> 0 | G67: 4845505.5 | H67: 0 | J67: 4845505.5
A68: 2 | B68: 0.97 | D68: ='Sommaire du rôle'!P10 -> 23616670 | E68: ='Sommaire du rôle'!Q10 -> 0 | G68: 22908169.9 | H68: 0 | J68: 22908169.9
A69: 3 | B69: 0.94 | D69: ='Sommaire du rôle'!P11 -> 44153450 | E69: ='Sommaire du rôle'!Q11 -> 0 | G69: 41504243 | H69: 0 | J69: 41504243
A70: 4 | B70: 0.88 | D70: ='Sommaire du rôle'!P12 -> 60256460 | E70: ='Sommaire du rôle'!Q12 -> 0 | G70: 53025684.8 | H70: 0 | J70: 53025684.8
A71: 5 | B71: 0.78 | D71: ='Sommaire du rôle'!P13 -> 38643990 | E71: ='Sommaire du rôle'!Q13 -> 0 | G71: 30142312.2 | H71: 0 | J71: 30142312.2
A72: 6 | B72: 0.6 | D72: ='Sommaire du rôle'!P14 -> 38532890 | E72: ='Sommaire du rôle'!Q14 -> 0 | G72: 23119734 | H72: 0 | J72: 23119734
A73: 7 | B73: 0.4 | D73: ='Sommaire du rôle'!P15 -> 39569365 | E73: ='Sommaire du rôle'!Q15 -> 72376370 | G73: 15827746 | H73: 28950548 | J73: 44778294
A74: 8 | B74: 0.15 | D74: ='Sommaire du rôle'!P16 -> 22323070 | E74: ='Sommaire du rôle'!Q16 -> 211592260 | G74: 3348460.5 | H74: =B74*E74 -> 31738839 | J74: 35087299.5
A75: IMMEUBLES SANS PARTIE NON RÉSIDENTIELLE | B75: 1 | D75: ='Sommaire du rôle'!P18 -> 8068032861 | E75: ='Sommaire du rôle'!Q18 -> 2100780 | G75: 8068032861 | H75: 2100780 | J75: 8070133641
A76: 12 CHSLD | B76: 0.8 | D76: ='Sommaire du rôle'!P20 -> 13938200 | G76: 11150560
A77: 13 Cours de triage | B77: 0.6 | D77: ='Sommaire du rôle'!P21 -> 0 | G77: 0
A78: Total | G78: =SUM(G65:G77) -> 8384901701 | H78: =SUM(H65:H75) -> 62790167 | I78: =SUM(I65:I75) -> 0 | J78: =G78+H78 -> 8447691868
A80: ASSIETTE AU TAUX NON RÉSIDENTIEL RÉFÉRENCE
A81: Classe non résidentielle | B81: Pourcentage de taxation | D81: VAL. NR À 100 % ET IND. CL. 2 À 50 %
D82: Imposables | E82: Compensables | G82: Imposables pondérées | H82: Compensables pondérées | J82: Total
B83: (1) | D83: (2) | E83: (3) | G83: (4) = (1) X (2) | H83: (5) = (1 ) X (3) | J83: (6) = (4) + (5)
A84: 1A | B84: 0.001 | D84: ='Sommaire du rôle'!F30 -> 6957650 | E84: ='Sommaire du rôle'!G30 -> 0 | G84: =B84*D84 -> 6957.65 | H84: =B84*E84 -> 0 | J84: =G84+H84 -> 6957.65
A85: 1B | B85: 0.005 | D85: ='Sommaire du rôle'!F31 -> 3155670 | E85: ='Sommaire du rôle'!G31 -> 0 | G85: =B85*D85 -> 15778.35 | H85: =B85*E85 -> 0 | J85: =G85+H85 -> 15778.35
A86: 1C | B86: 0.01 | D86: ='Sommaire du rôle'!F32 -> 444950 | E86: ='Sommaire du rôle'!G32 -> 0 | G86: 4449.5 | H86: 0 | J86: 4449.5
A87: 2 | B87: 0.03 | D87: ='Sommaire du rôle'!F33 -> 2146970 | E87: ='Sommaire du rôle'!G33 -> 0 | G87: 64409.1 | H87: 0 | J87: 64409.1
A88: 3 | B88: 0.06 | D88: ='Sommaire du rôle'!F34 -> 4013950 | E88: ='Sommaire du rôle'!G34 -> 0 | G88: 240837 | H88: 0 | J88: 240837
A89: 4 | B89: 0.12 | D89: ='Sommaire du rôle'!F35 -> 5477860 | E89: ='Sommaire du rôle'!G35 -> 0 | G89: 657343.2 | H89: 0 | J89: 657343.2
A90: 5 | B90: 0.22 | D90: ='Sommaire du rôle'!F36 -> 3513090 | E90: ='Sommaire du rôle'!G36 -> 0 | G90: 772879.8 | H90: 0 | J90: 772879.8
A91: 6 | B91: 0.4 | D91: ='Sommaire du rôle'!F37 -> 3502990 | E91: ='Sommaire du rôle'!G37 -> 0 | G91: 1401196 | H91: 0 | J91: 1401196
A92: 7 | B92: 0.6 | D92: ='Sommaire du rôle'!F38 -> 3597215 | E92: ='Sommaire du rôle'!G38 -> 6579670 | G92: 2158329 | H92: 3947802 | J92: 6106131
A93: 8 | B93: 0.85 | D93: ='Sommaire du rôle'!F39 -> 2029370 | E93: ='Sommaire du rôle'!G39 -> 19235660 | G93: 1724964.5 | H93: 16350311 | J93: 18075275.5
A94: 9 | B94: 1 | D94: ='Sommaire du rôle'!F40 -> 288900 | E94: ='Sommaire du rôle'!G40 -> 0 | G94: 288900 | H94: 0 | J94: 288900
A95: 10 | B95: 1 | D95: ='Sommaire du rôle'!F41 -> 105068655 | E95: ='Sommaire du rôle'!G41 -> 5627790 | G95: 105068655 | H95: 5627790 | J95: 110696445
A96: 11 Cours de triage | B96: 100% | D96: ='Sommaire du rôle'!F42 -> 0 | E96: ='Sommaire du rôle'!G42 -> 0 | G96: 0 | H96: 0 | J96: 0
A97: 12 CHSLD | B97: 0.2 | D97: ='Sommaire du rôle'!F43 -> 13938200 | G97: 2787640 | J97: 2787640
A98: 13 Cours de triage 40 % | B98: 40% | D98: ='Sommaire du rôle'!F44 -> 0 | G98: 0 | J98: 0
A99: APPLICATION DU TNR QUAND TTVD | B99: 1 | D99: ='Sommaire du rôle'!F45 -> 5228300 | E99: ='Sommaire du rôle'!G45 -> 0 | G99: 5228300 | H99: =B99*E99 -> 0 | J99: 5228300
A100: Total | G100: =SUM(G84:G99) -> 120420639.1 | H100: =SUM(H84:H99) -> 25925903 | J100: =G100+H100 -> 146346542.1
A102: ASSIETTE AU TAUX NON RÉSIDENTIEL SOUS-CATÉGORIE 1 | L102: ASSIETTE AU TAUX NON RÉSIDENTIEL SOUS-CATÉGORIE 2 | W102: ASSIETTE AU TAUX NON RÉSIDENTIEL SOUS-CATÉGORIE 3 | AH102: ASSIETTE AU TAUX NON RÉSIDENTIEL SOUS-CATÉGORIE 4 | AS102: ASSIETTE AU TAUX NON RÉSIDENTIEL SOUS-CATÉGORIE 5 | BD102: ASSIETTE AU TAUX NON RÉSIDENTIEL SOUS-CATÉGORIE 6 | BO102: ASSIETTE AU TAUX NON RÉSIDENTIEL SOUS-CATÉGORIE 7 | BZ102: ASSIETTE AU TAUX NON RÉSIDENTIEL SOUS-CATÉGORIE 8 | CK102: ASSIETTE AU TAUX NON RÉSIDENTIEL SOUS-CATÉGORIE 9 | CV102: ASSIETTE AU TAUX NON RÉSIDENTIEL SOUS-CATÉGORIE 10
A103: Classe non résidentielle | B103: Pourcentage de taxation | D103: VAL. NR À 100 % ET IND. CL. 2 À 50 % | L103: Classe non résidentielle | M103: Pourcentage de taxation | O103: VAL. NR À 100 % ET IND. CL. 2 À 50 % | W103: Classe non résidentielle | X103: Pourcentage de taxation | Z103: VAL. NR À 100 % ET IND. CL. 2 À 50 % | AH103: Classe non résidentielle | AI103: Pourcentage de taxation | AK103: VAL. NR À 100 % ET IND. CL. 2 À 50 % | AS103: Classe non résidentielle | AT103: Pourcentage de taxation | AV103: VAL. NR À 100 % ET IND. CL. 2 À 50 % | BD103: Classe non résidentielle | BE103: Pourcentage de taxation | BG103: VAL. NR À 100 % ET IND. CL. 2 À 50 % | BO103: Classe non résidentielle | BP103: Pourcentage de taxation | BR103: VAL. NR À 100 % ET IND. CL. 2 À 50 % | BZ103: Classe non résidentielle | CA103: Pourcentage de taxation | CC103: VAL. NR À 100 % ET IND. CL. 2 À 50 % | CK103: Classe non résidentielle | CL103: Pourcentage de taxation | CN103: VAL. NR À 100 % ET IND. CL. 2 À 50 % | CV103: Classe non résidentielle | CW103: Pourcentage de taxation | CY103: VAL. NR À 100 % ET IND. CL. 2 À 50 %
D104: Imposables | E104: Compensables | G104: Imposables pondérées | H104: Compensables pondérées | J104: Total | O104: Imposables | P104: Compensables | R104: Imposables pondérées | S104: Compensables pondérées | U104: Total | Z104: Imposables | AA104: Compensables | AC104: Imposables pondérées | AD104: Compensables pondérées | AF104: Total | AK104: Imposables | AL104: Compensables | AN104: Imposables pondérées | AO104: Compensables pondérées | AQ104: Total | AV104: Imposables | AW104: Compensables | AY104: Imposables pondérées | AZ104: Compensables pondérées | BB104: Total | BG104: Imposables | BH104: Compensables | BJ104: Imposables pondérées | BK104: Compensables pondérées | BM104: Total | BR104: Imposables | BS104: Compensables | BU104: Imposables pondérées | BV104: Compensables pondérées | BX104: Total | CC104: Imposables | CD104: Compensables | CF104: Imposables pondérées | CG104: Compensables pondérées | CI104: Total | CN104: Imposables | CO104: Compensables | CQ104: Imposables pondérées | CR104: Compensables pondérées | CT104: Total | CY104: Imposables | CZ104: Compensables | DB104: Imposables pondérées | DC104: Compensables pondérées | DE104: Total
B105: (1) | D105: (2) | E105: (3) | G105: (4) = (1) X (2) | H105: (5) = (1 ) X (3) | J105: (6) = (4) + (5) | M105: (1) | O105: (2) | P105: (3) | R105: (4) = (1) X (2) | S105: (5) = (1 ) X (3) | U105: (6) = (4) + (5) | X105: (1) | Z105: (2) | AA105: (3) | AC105: (4) = (1) X (2) | AD105: (5) = (1 ) X (3) | AF105: (6) = (4) + (5) | AI105: (1) | AK105: (2) | AL105: (3) | AN105: (4) = (1) X (2) | AO105: (5) = (1 ) X (3) | AQ105: (6) = (4) + (5) | AT105: (1) | AV105: (2) | AW105: (3) | AY105: (4) = (1) X (2) | AZ105: (5) = (1 ) X (3) | BB105: (6) = (4) + (5) | BE105: (1) | BG105: (2) | BH105: (3) | BJ105: (4) = (1) X (2) | BK105: (5) = (1 ) X (3) | BM105: (6) = (4) + (5) | BP105: (1) | BR105: (2) | BS105: (3) | BU105: (4) = (1) X (2) | BV105: (5) = (1 ) X (3) | BX105: (6) = (4) + (5) | CA105: (1) | CC105: (2) | CD105: (3) | CF105: (4) = (1) X (2) | CG105: (5) = (1 ) X (3) | CI105: (6) = (4) + (5) | CL105: (1) | CN105: (2) | CO105: (3) | CQ105: (4) = (1) X (2) | CR105: (5) = (1 ) X (3) | CT105: (6) = (4) + (5) | CW105: (1) | CY105: (2) | CZ105: (3) | DB105: (4) = (1) X (2) | DC105: (5) = (1 ) X (3) | DE105: (6) = (4) + (5)
A106: 1A | B106: 0.001 | D106: ='Sommaire du rôle'!H30 -> 6957650 | E106: ='Sommaire du rôle'!I30 -> 0 | G106: =B106*D106 -> 6957.65 | H106: =B106*E106 -> 0 | J106: =G106+H106 -> 6957.65 | L106: 1A | M106: 0.001 | O106: ='Sommaire du rôle'!J30 -> 6957650 | P106: ='Sommaire du rôle'!K30 -> 0 | R106: =M106*O106 -> 6957.65 | S106: =M106*P106 -> 0 | U106: =R106+S106 -> 6957.65 | W106: 1A | X106: 0.001 | Z106: ='Sommaire du rôle'!L30 -> 6957650 | AA106: ='Sommaire du rôle'!M30 -> 0 | AC106: =X106*Z106 -> 6957.65 | AD106: =X106*AA106 -> 0 | AF106: =AC106+AD106 -> 6957.65 | AH106: 1A | AI106: 0.001 | AK106: ='Sommaire du rôle'!N30 -> 6957650 | AL106: ='Sommaire du rôle'!O30 -> 0 | AN106: =AI106*AK106 -> 6957.65 | AO106: =AI106*AL106 -> 0 | AQ106: =AN106+AO106 -> 6957.65 | AS106: 1A | AT106: 0.001 | AV106: ='Sommaire du rôle'!P30 -> 6957650 | AW106: ='Sommaire du rôle'!Q30 -> 0 | AY106: =AT106*AV106 -> 6957.65 | AZ106: =AT106*AW106 -> 0 | BB106: =AY106+AZ106 -> 6957.65 | BD106: 1A | BE106: 0.001 | BG106: ='Sommaire du rôle'!R30 -> 6957650 | BH106: ='Sommaire du rôle'!S30 -> 0 | BJ106: =BE106*BG106 -> 6957.65 | BK106: =BE106*BH106 -> 0 | BM106: =BJ106+BK106 -> 6957.65 | BO106: 1A | BP106: 0.001 | BR106: ='Sommaire du rôle'!T30 -> 6957650 | BS106: ='Sommaire du rôle'!U30 -> 0 | BU106: =BP106*BR106 -> 6957.65 | BV106: =BP106*BS106 -> 0 | BX106: =BU106+BV106 -> 6957.65 | BZ106: 1A | CA106: 0.001 | CC106: ='Sommaire du rôle'!V30 -> 6957650 | CD106: ='Sommaire du rôle'!W30 -> 0 | CF106: =CA106*CC106 -> 6957.65 | CG106: =CA106*CD106 -> 0 | CI106: =CF106+CG106 -> 6957.65 | CK106: 1A | CL106: 0.001 | CN106: ='Sommaire du rôle'!X30 -> 6957650 | CO106: ='Sommaire du rôle'!Y30 -> 0 | CQ106: =CL106*CN106 -> 6957.65 | CR106: =CL106*CO106 -> 0 | CT106: =CQ106+CR106 -> 6957.65 | CV106: 1A | CW106: 0.001 | CY106: ='Sommaire du rôle'!Z30 -> 6957650 | CZ106: ='Sommaire du rôle'!AA30 -> 0 | DB106: =CW106*CY106 -> 6957.65 | DC106: =CW106*CZ106 -> 0 | DE106: =DB106+DC106 -> 6957.65
A107: 1B | B107: 0.005 | D107: ='Sommaire du rôle'!H31 -> 3155670 | E107: ='Sommaire du rôle'!I31 -> 0 | G107: =B107*D107 -> 15778.35 | H107: =B107*E107 -> 0 | J107: =G107+H107 -> 15778.35 | L107: 1B | M107: 0.005 | O107: ='Sommaire du rôle'!J31 -> 3155670 | P107: ='Sommaire du rôle'!K31 -> 0 | R107: =M107*O107 -> 15778.35 | S107: =M107*P107 -> 0 | U107: =R107+S107 -> 15778.35 | W107: 1B | X107: 0.005 | Z107: ='Sommaire du rôle'!L31 -> 3155670 | AA107: ='Sommaire du rôle'!M31 -> 0 | AC107: =X107*Z107 -> 15778.35 | AD107: =X107*AA107 -> 0 | AF107: =AC107+AD107 -> 15778.35 | AH107: 1B | AI107: 0.005 | AK107: ='Sommaire du rôle'!N31 -> 3155670 | AL107: ='Sommaire du rôle'!O31 -> 0 | AN107: =AI107*AK107 -> 15778.35 | AO107: =AI107*AL107 -> 0 | AQ107: =AN107+AO107 -> 15778.35 | AS107: 1B | AT107: 0.005 | AV107: ='Sommaire du rôle'!P31 -> 3155670 | AW107: ='Sommaire du rôle'!Q31 -> 0 | AY107: =AT107*AV107 -> 15778.35 | AZ107: =AT107*AW107 -> 0 | BB107: =AY107+AZ107 -> 15778.35 | BD107: 1B | BE107: 0.005 | BG107: ='Sommaire du rôle'!R31 -> 3155670 | BH107: ='Sommaire du rôle'!S31 -> 0 | BJ107: =BE107*BG107 -> 15778.35 | BK107: =BE107*BH107 -> 0 | BM107: =BJ107+BK107 -> 15778.35 | BO107: 1B | BP107: 0.005 | BR107: ='Sommaire du rôle'!T31 -> 3155670 | BS107: ='Sommaire du rôle'!U31 -> 0 | BU107: =BP107*BR107 -> 15778.35 | BV107: =BP107*BS107 -> 0 | BX107: =BU107+BV107 -> 15778.35 | BZ107: 1B | CA107: 0.005 | CC107: ='Sommaire du rôle'!V31 -> 3155670 | CD107: ='Sommaire du rôle'!W31 -> 0 | CF107: =CA107*CC107 -> 15778.35 | CG107: =CA107*CD107 -> 0 | CI107: =CF107+CG107 -> 15778.35 | CK107: 1B | CL107: 0.005 | CN107: ='Sommaire du rôle'!X31 -> 3155670 | CO107: ='Sommaire du rôle'!Y31 -> 0 | CQ107: =CL107*CN107 -> 15778.35 | CR107: =CL107*CO107 -> 0 | CT107: =CQ107+CR107 -> 15778.35 | CV107: 1B | CW107: 0.005 | CY107: ='Sommaire du rôle'!Z31 -> 3155670 | CZ107: ='Sommaire du rôle'!AA31 -> 0 | DB107: =CW107*CY107 -> 15778.35 | DC107: =CW107*CZ107 -> 0 | DE107: =DB107+DC107 -> 15778.35
A108: 1C | B108: 0.01 | D108: ='Sommaire du rôle'!H32 -> 444950 | E108: ='Sommaire du rôle'!I32 -> 0 | G108: 4449.5 | H108: 0 | J108: 4449.5 | L108: 1C | M108: 0.01 | O108: ='Sommaire du rôle'!J32 -> 444950 | P108: ='Sommaire du rôle'!K32 -> 0 | R108: 4449.5 | S108: 0 | U108: 4449.5 | W108: 1C | X108: 0.01 | Z108: ='Sommaire du rôle'!L32 -> 444950 | AA108: ='Sommaire du rôle'!M32 -> 0 | AC108: 4449.5 | AD108: 0 | AF108: 4449.5 | AH108: 1C | AI108: 0.01 | AK108: ='Sommaire du rôle'!N32 -> 444950 | AL108: ='Sommaire du rôle'!O32 -> 0 | AN108: 4449.5 | AO108: 0 | AQ108: 4449.5 | AS108: 1C | AT108: 0.01 | AV108: ='Sommaire du rôle'!P32 -> 444950 | AW108: ='Sommaire du rôle'!Q32 -> 0 | AY108: 4449.5 | AZ108: 0 | BB108: 4449.5 | BD108: 1C | BE108: 0.01 | BG108: ='Sommaire du rôle'!R32 -> 444950 | BH108: ='Sommaire du rôle'!S32 -> 0 | BJ108: 4449.5 | BK108: 0 | BM108: 4449.5 | BO108: 1C | BP108: 0.01 | BR108: ='Sommaire du rôle'!T32 -> 444950 | BS108: ='Sommaire du rôle'!U32 -> 0 | BU108: 4449.5 | BV108: 0 | BX108: 4449.5 | BZ108: 1C | CA108: 0.01 | CC108: ='Sommaire du rôle'!V32 -> 444950 | CD108: ='Sommaire du rôle'!W32 -> 0 | CF108: 4449.5 | CG108: 0 | CI108: 4449.5 | CK108: 1C | CL108: 0.01 | CN108: ='Sommaire du rôle'!X32 -> 444950 | CO108: ='Sommaire du rôle'!Y32 -> 0 | CQ108: 4449.5 | CR108: 0 | CT108: 4449.5 | CV108: 1C | CW108: 0.01 | CY108: ='Sommaire du rôle'!Z32 -> 444950 | CZ108: ='Sommaire du rôle'!AA32 -> 0 | DB108: 4449.5 | DC108: 0 | DE108: 4449.5
A109: 2 | B109: 0.03 | D109: ='Sommaire du rôle'!H33 -> 2146970 | E109: ='Sommaire du rôle'!I33 -> 0 | G109: 64409.1 | H109: 0 | J109: 64409.1 | L109: 2 | M109: 0.03 | O109: ='Sommaire du rôle'!J33 -> 2146970 | P109: ='Sommaire du rôle'!K33 -> 0 | R109: 64409.1 | S109: 0 | U109: 64409.1 | W109: 2 | X109: 0.03 | Z109: ='Sommaire du rôle'!L33 -> 2146970 | AA109: ='Sommaire du rôle'!M33 -> 0 | AC109: 64409.1 | AD109: 0 | AF109: 64409.1 | AH109: 2 | AI109: 0.03 | AK109: ='Sommaire du rôle'!N33 -> 2146970 | AL109: ='Sommaire du rôle'!O33 -> 0 | AN109: 64409.1 | AO109: 0 | AQ109: 64409.1 | AS109: 2 | AT109: 0.03 | AV109: ='Sommaire du rôle'!P33 -> 2146970 | AW109: ='Sommaire du rôle'!Q33 -> 0 | AY109: 64409.1 | AZ109: 0 | BB109: 64409.1 | BD109: 2 | BE109: 0.03 | BG109: ='Sommaire du rôle'!R33 -> 2146970 | BH109: ='Sommaire du rôle'!S33 -> 0 | BJ109: 64409.1 | BK109: 0 | BM109: 64409.1 | BO109: 2 | BP109: 0.03 | BR109: ='Sommaire du rôle'!T33 -> 2146970 | BS109: ='Sommaire du rôle'!U33 -> 0 | BU109: 64409.1 | BV109: 0 | BX109: 64409.1 | BZ109: 2 | CA109: 0.03 | CC109: ='Sommaire du rôle'!V33 -> 2146970 | CD109: ='Sommaire du rôle'!W33 -> 0 | CF109: 64409.1 | CG109: 0 | CI109: 64409.1 | CK109: 2 | CL109: 0.03 | CN109: ='Sommaire du rôle'!X33 -> 2146970 | CO109: ='Sommaire du rôle'!Y33 -> 0 | CQ109: 64409.1 | CR109: 0 | CT109: 64409.1 | CV109: 2 | CW109: 0.03 | CY109: ='Sommaire du rôle'!Z33 -> 2146970 | CZ109: ='Sommaire du rôle'!AA33 -> 0 | DB109: 64409.1 | DC109: 0 | DE109: 64409.1
A110: 3 | B110: 0.06 | D110: ='Sommaire du rôle'!H34 -> 4013950 | E110: ='Sommaire du rôle'!I34 -> 0 | G110: 240837 | H110: 0 | J110: 240837 | L110: 3 | M110: 0.06 | O110: ='Sommaire du rôle'!J34 -> 4013950 | P110: ='Sommaire du rôle'!K34 -> 0 | R110: 240837 | S110: 0 | U110: 240837 | W110: 3 | X110: 0.06 | Z110: ='Sommaire du rôle'!L34 -> 4013950 | AA110: ='Sommaire du rôle'!M34 -> 0 | AC110: 240837 | AD110: 0 | AF110: 240837 | AH110: 3 | AI110: 0.06 | AK110: ='Sommaire du rôle'!N34 -> 4013950 | AL110: ='Sommaire du rôle'!O34 -> 0 | AN110: 240837 | AO110: 0 | AQ110: 240837 | AS110: 3 | AT110: 0.06 | AV110: ='Sommaire du rôle'!P34 -> 4013950 | AW110: ='Sommaire du rôle'!Q34 -> 0 | AY110: 240837 | AZ110: 0 | BB110: 240837 | BD110: 3 | BE110: 0.06 | BG110: ='Sommaire du rôle'!R34 -> 4013950 | BH110: ='Sommaire du rôle'!S34 -> 0 | BJ110: 240837 | BK110: 0 | BM110: 240837 | BO110: 3 | BP110: 0.06 | BR110: ='Sommaire du rôle'!T34 -> 4013950 | BS110: ='Sommaire du rôle'!U34 -> 0 | BU110: 240837 | BV110: 0 | BX110: 240837 | BZ110: 3 | CA110: 0.06 | CC110: ='Sommaire du rôle'!V34 -> 4013950 | CD110: ='Sommaire du rôle'!W34 -> 0 | CF110: 240837 | CG110: 0 | CI110: 240837 | CK110: 3 | CL110: 0.06 | CN110: ='Sommaire du rôle'!X34 -> 4013950 | CO110: ='Sommaire du rôle'!Y34 -> 0 | CQ110: 240837 | CR110: 0 | CT110: 240837 | CV110: 3 | CW110: 0.06 | CY110: ='Sommaire du rôle'!Z34 -> 4013950 | CZ110: ='Sommaire du rôle'!AA34 -> 0 | DB110: 240837 | DC110: 0 | DE110: 240837
A111: 4 | B111: 0.12 | D111: ='Sommaire du rôle'!H35 -> 5477860 | E111: ='Sommaire du rôle'!I35 -> 0 | G111: 657343.2 | H111: 0 | J111: 657343.2 | L111: 4 | M111: 0.12 | O111: ='Sommaire du rôle'!J35 -> 5477860 | P111: ='Sommaire du rôle'!K35 -> 0 | R111: 657343.2 | S111: 0 | U111: 657343.2 | W111: 4 | X111: 0.12 | Z111: ='Sommaire du rôle'!L35 -> 5477860 | AA111: ='Sommaire du rôle'!M35 -> 0 | AC111: 657343.2 | AD111: 0 | AF111: 657343.2 | AH111: 4 | AI111: 0.12 | AK111: ='Sommaire du rôle'!N35 -> 5477860 | AL111: ='Sommaire du rôle'!O35 -> 0 | AN111: 657343.2 | AO111: 0 | AQ111: 657343.2 | AS111: 4 | AT111: 0.12 | AV111: ='Sommaire du rôle'!P35 -> 5477860 | AW111: ='Sommaire du rôle'!Q35 -> 0 | AY111: 657343.2 | AZ111: 0 | BB111: 657343.2 | BD111: 4 | BE111: 0.12 | BG111: ='Sommaire du rôle'!R35 -> 5477860 | BH111: ='Sommaire du rôle'!S35 -> 0 | BJ111: 657343.2 | BK111: 0 | BM111: 657343.2 | BO111: 4 | BP111: 0.12 | BR111: ='Sommaire du rôle'!T35 -> 5477860 | BS111: ='Sommaire du rôle'!U35 -> 0 | BU111: 657343.2 | BV111: 0 | BX111: 657343.2 | BZ111: 4 | CA111: 0.12 | CC111: ='Sommaire du rôle'!V35 -> 5477860 | CD111: ='Sommaire du rôle'!W35 -> 0 | CF111: 657343.2 | CG111: 0 | CI111: 657343.2 | CK111: 4 | CL111: 0.12 | CN111: ='Sommaire du rôle'!X35 -> 5477860 | CO111: ='Sommaire du rôle'!Y35 -> 0 | CQ111: 657343.2 | CR111: 0 | CT111: 657343.2 | CV111: 4 | CW111: 0.12 | CY111: ='Sommaire du rôle'!Z35 -> 5477860 | CZ111: ='Sommaire du rôle'!AA35 -> 0 | DB111: 657343.2 | DC111: 0 | DE111: 657343.2
A112: 5 | B112: 0.22 | D112: ='Sommaire du rôle'!H36 -> 3513090 | E112: ='Sommaire du rôle'!I36 -> 0 | G112: 772879.8 | H112: 0 | J112: 772879.8 | L112: 5 | M112: 0.22 | O112: ='Sommaire du rôle'!J36 -> 3513090 | P112: ='Sommaire du rôle'!K36 -> 0 | R112: 772879.8 | S112: 0 | U112: 772879.8 | W112: 5 | X112: 0.22 | Z112: ='Sommaire du rôle'!L36 -> 3513090 | AA112: ='Sommaire du rôle'!M36 -> 0 | AC112: 772879.8 | AD112: 0 | AF112: 772879.8 | AH112: 5 | AI112: 0.22 | AK112: ='Sommaire du rôle'!N36 -> 3513090 | AL112: ='Sommaire du rôle'!O36 -> 0 | AN112: 772879.8 | AO112: 0 | AQ112: 772879.8 | AS112: 5 | AT112: 0.22 | AV112: ='Sommaire du rôle'!P36 -> 3513090 | AW112: ='Sommaire du rôle'!Q36 -> 0 | AY112: 772879.8 | AZ112: 0 | BB112: 772879.8 | BD112: 5 | BE112: 0.22 | BG112: ='Sommaire du rôle'!R36 -> 3513090 | BH112: ='Sommaire du rôle'!S36 -> 0 | BJ112: 772879.8 | BK112: 0 | BM112: 772879.8 | BO112: 5 | BP112: 0.22 | BR112: ='Sommaire du rôle'!T36 -> 3513090 | BS112: ='Sommaire du rôle'!U36 -> 0 | BU112: 772879.8 | BV112: 0 | BX112: 772879.8 | BZ112: 5 | CA112: 0.22 | CC112: ='Sommaire du rôle'!V36 -> 3513090 | CD112: ='Sommaire du rôle'!W36 -> 0 | CF112: 772879.8 | CG112: 0 | CI112: 772879.8 | CK112: 5 | CL112: 0.22 | CN112: ='Sommaire du rôle'!X36 -> 3513090 | CO112: ='Sommaire du rôle'!Y36 -> 0 | CQ112: 772879.8 | CR112: 0 | CT112: 772879.8 | CV112: 5 | CW112: 0.22 | CY112: ='Sommaire du rôle'!Z36 -> 3513090 | CZ112: ='Sommaire du rôle'!AA36 -> 0 | DB112: 772879.8 | DC112: 0 | DE112: 772879.8
A113: 6 | B113: 0.4 | D113: ='Sommaire du rôle'!H37 -> 3502990 | E113: ='Sommaire du rôle'!I37 -> 0 | G113: 1401196 | H113: 0 | J113: 1401196 | L113: 6 | M113: 0.4 | O113: ='Sommaire du rôle'!J37 -> 3502990 | P113: ='Sommaire du rôle'!K37 -> 0 | R113: 1401196 | S113: 0 | U113: 1401196 | W113: 6 | X113: 0.4 | Z113: ='Sommaire du rôle'!L37 -> 3502990 | AA113: ='Sommaire du rôle'!M37 -> 0 | AC113: 1401196 | AD113: 0 | AF113: 1401196 | AH113: 6 | AI113: 0.4 | AK113: ='Sommaire du rôle'!N37 -> 3502990 | AL113: ='Sommaire du rôle'!O37 -> 0 | AN113: 1401196 | AO113: 0 | AQ113: 1401196 | AS113: 6 | AT113: 0.4 | AV113: ='Sommaire du rôle'!P37 -> 3502990 | AW113: ='Sommaire du rôle'!Q37 -> 0 | AY113: 1401196 | AZ113: 0 | BB113: 1401196 | BD113: 6 | BE113: 0.4 | BG113: ='Sommaire du rôle'!R37 -> 3502990 | BH113: ='Sommaire du rôle'!S37 -> 0 | BJ113: 1401196 | BK113: 0 | BM113: 1401196 | BO113: 6 | BP113: 0.4 | BR113: ='Sommaire du rôle'!T37 -> 3502990 | BS113: ='Sommaire du rôle'!U37 -> 0 | BU113: 1401196 | BV113: 0 | BX113: 1401196 | BZ113: 6 | CA113: 0.4 | CC113: ='Sommaire du rôle'!V37 -> 3502990 | CD113: ='Sommaire du rôle'!W37 -> 0 | CF113: 1401196 | CG113: 0 | CI113: 1401196 | CK113: 6 | CL113: 0.4 | CN113: ='Sommaire du rôle'!X37 -> 3502990 | CO113: ='Sommaire du rôle'!Y37 -> 0 | CQ113: 1401196 | CR113: 0 | CT113: 1401196 | CV113: 6 | CW113: 0.4 | CY113: ='Sommaire du rôle'!Z37 -> 3502990 | CZ113: ='Sommaire du rôle'!AA37 -> 0 | DB113: 1401196 | DC113: 0 | DE113: 1401196
A114: 7 | B114: 0.6 | D114: ='Sommaire du rôle'!H38 -> 3597215 | E114: ='Sommaire du rôle'!I38 -> 6579670 | G114: 2158329 | H114: 3947802 | J114: 6106131 | L114: 7 | M114: 0.6 | O114: ='Sommaire du rôle'!J38 -> 3597215 | P114: ='Sommaire du rôle'!K38 -> 6579670 | R114: 2158329 | S114: 3947802 | U114: 6106131 | W114: 7 | X114: 0.6 | Z114: ='Sommaire du rôle'!L38 -> 3597215 | AA114: ='Sommaire du rôle'!M38 -> 6579670 | AC114: 2158329 | AD114: 3947802 | AF114: 6106131 | AH114: 7 | AI114: 0.6 | AK114: ='Sommaire du rôle'!N38 -> 3597215 | AL114: ='Sommaire du rôle'!O38 -> 6579670 | AN114: 2158329 | AO114: 3947802 | AQ114: 6106131 | AS114: 7 | AT114: 0.6 | AV114: ='Sommaire du rôle'!P38 -> 3597215 | AW114: ='Sommaire du rôle'!Q38 -> 6579670 | AY114: 2158329 | AZ114: 3947802 | BB114: 6106131 | BD114: 7 | BE114: 0.6 | BG114: ='Sommaire du rôle'!R38 -> 3597215 | BH114: ='Sommaire du rôle'!S38 -> 6579670 | BJ114: 2158329 | BK114: 3947802 | BM114: 6106131 | BO114: 7 | BP114: 0.6 | BR114: ='Sommaire du rôle'!T38 -> 3597215 | BS114: ='Sommaire du rôle'!U38 -> 6579670 | BU114: 2158329 | BV114: 3947802 | BX114: 6106131 | BZ114: 7 | CA114: 0.6 | CC114: ='Sommaire du rôle'!V38 -> 3597215 | CD114: ='Sommaire du rôle'!W38 -> 6579670 | CF114: 2158329 | CG114: 3947802 | CI114: 6106131 | CK114: 7 | CL114: 0.6 | CN114: ='Sommaire du rôle'!X38 -> 3597215 | CO114: ='Sommaire du rôle'!Y38 -> 6579670 | CQ114: 2158329 | CR114: 3947802 | CT114: 6106131 | CV114: 7 | CW114: 0.6 | CY114: ='Sommaire du rôle'!Z38 -> 3597215 | CZ114: ='Sommaire du rôle'!AA38 -> 6579670 | DB114: 2158329 | DC114: 3947802 | DE114: 6106131
A115: 8 | B115: 0.85 | D115: ='Sommaire du rôle'!H39 -> 2029370 | E115: ='Sommaire du rôle'!I39 -> 19235660 | G115: 1724964.5 | H115: 16350311 | J115: 18075275.5 | L115: 8 | M115: 0.85 | O115: ='Sommaire du rôle'!J39 -> 2029370 | P115: ='Sommaire du rôle'!K39 -> 19235660 | R115: 1724964.5 | S115: 16350311 | U115: 18075275.5 | W115: 8 | X115: 0.85 | Z115: ='Sommaire du rôle'!L39 -> 2029370 | AA115: ='Sommaire du rôle'!M39 -> 19235660 | AC115: 1724964.5 | AD115: 16350311 | AF115: 18075275.5 | AH115: 8 | AI115: 0.85 | AK115: ='Sommaire du rôle'!N39 -> 2029370 | AL115: ='Sommaire du rôle'!O39 -> 19235660 | AN115: 1724964.5 | AO115: 16350311 | AQ115: 18075275.5 | AS115: 8 | AT115: 0.85 | AV115: ='Sommaire du rôle'!P39 -> 2029370 | AW115: ='Sommaire du rôle'!Q39 -> 19235660 | AY115: 1724964.5 | AZ115: 16350311 | BB115: 18075275.5 | BD115: 8 | BE115: 0.85 | BG115: ='Sommaire du rôle'!R39 -> 2029370 | BH115: ='Sommaire du rôle'!S39 -> 19235660 | BJ115: 1724964.5 | BK115: 16350311 | BM115: 18075275.5 | BO115: 8 | BP115: 0.85 | BR115: ='Sommaire du rôle'!T39 -> 2029370 | BS115: ='Sommaire du rôle'!U39 -> 19235660 | BU115: 1724964.5 | BV115: 16350311 | BX115: 18075275.5 | BZ115: 8 | CA115: 0.85 | CC115: ='Sommaire du rôle'!V39 -> 2029370 | CD115: ='Sommaire du rôle'!W39 -> 19235660 | CF115: 1724964.5 | CG115: 16350311 | CI115: 18075275.5 | CK115: 8 | CL115: 0.85 | CN115: ='Sommaire du rôle'!X39 -> 2029370 | CO115: ='Sommaire du rôle'!Y39 -> 19235660 | CQ115: 1724964.5 | CR115: 16350311 | CT115: 18075275.5 | CV115: 8 | CW115: 0.85 | CY115: ='Sommaire du rôle'!Z39 -> 2029370 | CZ115: ='Sommaire du rôle'!AA39 -> 19235660 | DB115: 1724964.5 | DC115: 16350311 | DE115: 18075275.5
A116: 9 | B116: 1 | D116: ='Sommaire du rôle'!H40 -> 288900 | E116: ='Sommaire du rôle'!I40 -> 0 | G116: 288900 | H116: 0 | J116: 288900 | L116: 9 | M116: 1 | O116: ='Sommaire du rôle'!J40 -> 288900 | P116: ='Sommaire du rôle'!K40 -> 0 | R116: 288900 | S116: 0 | U116: 288900 | W116: 9 | X116: 1 | Z116: ='Sommaire du rôle'!L40 -> 288900 | AA116: ='Sommaire du rôle'!M40 -> 0 | AC116: 288900 | AD116: 0 | AF116: 288900 | AH116: 9 | AI116: 1 | AK116: ='Sommaire du rôle'!N40 -> 288900 | AL116: ='Sommaire du rôle'!O40 -> 0 | AN116: 288900 | AO116: 0 | AQ116: 288900 | AS116: 9 | AT116: 1 | AV116: ='Sommaire du rôle'!P40 -> 288900 | AW116: ='Sommaire du rôle'!Q40 -> 0 | AY116: 288900 | AZ116: 0 | BB116: 288900 | BD116: 9 | BE116: 1 | BG116: ='Sommaire du rôle'!R40 -> 288900 | BH116: ='Sommaire du rôle'!S40 -> 0 | BJ116: 288900 | BK116: 0 | BM116: 288900 | BO116: 9 | BP116: 1 | BR116: ='Sommaire du rôle'!T40 -> 288900 | BS116: ='Sommaire du rôle'!U40 -> 0 | BU116: 288900 | BV116: 0 | BX116: 288900 | BZ116: 9 | CA116: 1 | CC116: ='Sommaire du rôle'!V40 -> 288900 | CD116: ='Sommaire du rôle'!W40 -> 0 | CF116: 288900 | CG116: 0 | CI116: 288900 | CK116: 9 | CL116: 1 | CN116: ='Sommaire du rôle'!X40 -> 288900 | CO116: ='Sommaire du rôle'!Y40 -> 0 | CQ116: 288900 | CR116: 0 | CT116: 288900 | CV116: 9 | CW116: 1 | CY116: ='Sommaire du rôle'!Z40 -> 288900 | CZ116: ='Sommaire du rôle'!AA40 -> 0 | DB116: 288900 | DC116: 0 | DE116: 288900
A117: 10 | B117: 1 | D117: ='Sommaire du rôle'!H41 -> 105068655 | E117: ='Sommaire du rôle'!I41 -> 5627790 | G117: 105068655 | H117: 5627790 | J117: 110696445 | L117: 10 | M117: 1 | O117: ='Sommaire du rôle'!J41 -> 105068655 | P117: ='Sommaire du rôle'!K41 -> 5627790 | R117: 105068655 | S117: 5627790 | U117: 110696445 | W117: 10 | X117: 1 | Z117: ='Sommaire du rôle'!L41 -> 105068655 | AA117: ='Sommaire du rôle'!M41 -> 5627790 | AC117: 105068655 | AD117: 5627790 | AF117: 110696445 | AH117: 10 | AI117: 1 | AK117: ='Sommaire du rôle'!N41 -> 105068655 | AL117: ='Sommaire du rôle'!O41 -> 5627790 | AN117: 105068655 | AO117: 5627790 | AQ117: 110696445 | AS117: 10 | AT117: 1 | AV117: ='Sommaire du rôle'!P41 -> 105068655 | AW117: ='Sommaire du rôle'!Q41 -> 5627790 | AY117: 105068655 | AZ117: 5627790 | BB117: 110696445 | BD117: 10 | BE117: 1 | BG117: ='Sommaire du rôle'!R41 -> 105068655 | BH117: ='Sommaire du rôle'!S41 -> 5627790 | BJ117: 105068655 | BK117: 5627790 | BM117: 110696445 | BO117: 10 | BP117: 1 | BR117: ='Sommaire du rôle'!T41 -> 105068655 | BS117: ='Sommaire du rôle'!U41 -> 5627790 | BU117: 105068655 | BV117: 5627790 | BX117: 110696445 | BZ117: 10 | CA117: 1 | CC117: ='Sommaire du rôle'!V41 -> 105068655 | CD117: ='Sommaire du rôle'!W41 -> 5627790 | CF117: 105068655 | CG117: 5627790 | CI117: 110696445 | CK117: 10 | CL117: 1 | CN117: ='Sommaire du rôle'!X41 -> 105068655 | CO117: ='Sommaire du rôle'!Y41 -> 5627790 | CQ117: 105068655 | CR117: 5627790 | CT117: 110696445 | CV117: 10 | CW117: 1 | CY117: ='Sommaire du rôle'!Z41 -> 105068655 | CZ117: ='Sommaire du rôle'!AA41 -> 5627790 | DB117: 105068655 | DC117: 5627790 | DE117: 110696445
A118: 11 Cours de triage | B118: 100% | D118: ='Sommaire du rôle'!H42 -> 0 | E118: ='Sommaire du rôle'!I42 -> 0 | G118: 0 | H118: 0 | J118: 0 | L118: 11 Cours de triage | M118: 100% | O118: ='Sommaire du rôle'!J42 -> 0 | P118: ='Sommaire du rôle'!K42 -> 0 | R118: 0 | S118: 0 | U118: 0 | W118: 11 Cours de triage | X118: 100% | Z118: ='Sommaire du rôle'!L42 -> 0 | AA118: ='Sommaire du rôle'!M42 -> 0 | AC118: 0 | AD118: 0 | AF118: 0 | AH118: 11 Cours de triage | AI118: 100% | AK118: ='Sommaire du rôle'!N42 -> 0 | AL118: ='Sommaire du rôle'!O42 -> 0 | AN118: 0 | AO118: 0 | AQ118: 0 | AS118: 11 Cours de triage | AT118: 100% | AV118: ='Sommaire du rôle'!P42 -> 0 | AW118: ='Sommaire du rôle'!Q42 -> 0 | AY118: 0 | AZ118: 0 | BB118: 0 | BD118: 11 Cours de triage | BE118: 100% | BG118: ='Sommaire du rôle'!R42 -> 0 | BH118: ='Sommaire du rôle'!S42 -> 0 | BJ118: 0 | BK118: 0 | BM118: 0 | BO118: 11 Cours de triage | BP118: 100% | BR118: ='Sommaire du rôle'!T42 -> 0 | BS118: ='Sommaire du rôle'!U42 -> 0 | BU118: 0 | BV118: 0 | BX118: 0 | BZ118: 11 Cours de triage | CA118: 100% | CC118: ='Sommaire du rôle'!V42 -> 0 | CD118: ='Sommaire du rôle'!W42 -> 0 | CF118: 0 | CG118: 0 | CI118: 0 | CK118: 11 Cours de triage | CL118: 100% | CN118: ='Sommaire du rôle'!X42 -> 0 | CO118: ='Sommaire du rôle'!Y42 -> 0 | CQ118: 0 | CR118: 0 | CT118: 0 | CV118: 11 Cours de triage | CW118: 100% | CY118: ='Sommaire du rôle'!Z42 -> 0 | CZ118: ='Sommaire du rôle'!AA42 -> 0 | DB118: 0 | DC118: 0 | DE118: 0
A119: 12 CHSLD | B119: 0.2 | D119: ='Sommaire du rôle'!H43 -> 0 | G119: 0 | J119: 0 | L119: 12 CHSLD | M119: 0.2 | O119: ='Sommaire du rôle'!J43 -> 0 | R119: 0 | U119: 0 | W119: 12 CHSLD | X119: 0.2 | Z119: ='Sommaire du rôle'!L43 -> 0 | AC119: 0 | AF119: 0 | AH119: 12 CHSLD | AI119: 0.2 | AK119: ='Sommaire du rôle'!N43 -> 0 | AN119: 0 | AQ119: 0 | AS119: 12 CHSLD | AT119: 0.2 | AV119: ='Sommaire du rôle'!P43 -> 0 | AY119: 0 | BB119: 0 | BD119: 12 CHSLD | BE119: 0.2 | BG119: ='Sommaire du rôle'!R43 -> 0 | BJ119: 0 | BM119: 0 | BO119: 12 CHSLD | BP119: 0.2 | BR119: ='Sommaire du rôle'!T43 -> 0 | BU119: 0 | BX119: 0 | BZ119: 12 CHSLD | CA119: 0.2 | CC119: ='Sommaire du rôle'!V43 -> 0 | CF119: 0 | CI119: 0 | CK119: 12 CHSLD | CL119: 0.2 | CN119: ='Sommaire du rôle'!X43 -> 0 | CQ119: 0 | CT119: 0 | CV119: 12 CHSLD | CW119: 0.2 | CY119: ='Sommaire du rôle'!Z43 -> 0 | DB119: 0 | DE119: 0
A120: 13 Cours de triage 40 % | B120: 40% | D120: ='Sommaire du rôle'!H44 -> 0 | G120: 0 | J120: 0 | L120: 13 Cours de triage 40 % | M120: 40% | O120: ='Sommaire du rôle'!J44 -> 0 | R120: 0 | U120: 0 | W120: 13 Cours de triage 40 % | X120: 40% | Z120: ='Sommaire du rôle'!L44 -> 0 | AC120: 0 | AF120: 0 | AH120: 13 Cours de triage 40 % | AI120: 40% | AK120: ='Sommaire du rôle'!N44 -> 0 | AN120: 0 | AQ120: 0 | AS120: 13 Cours de triage 40 % | AT120: 40% | AV120: ='Sommaire du rôle'!P44 -> 0 | AY120: 0 | BB120: 0 | BD120: 13 Cours de triage 40 % | BE120: 40% | BG120: ='Sommaire du rôle'!R44 -> 0 | BJ120: 0 | BM120: 0 | BO120: 13 Cours de triage 40 % | BP120: 40% | BR120: ='Sommaire du rôle'!T44 -> 0 | BU120: 0 | BX120: 0 | BZ120: 13 Cours de triage 40 % | CA120: 40% | CC120: ='Sommaire du rôle'!V44 -> 0 | CF120: 0 | CI120: 0 | CK120: 13 Cours de triage 40 % | CL120: 40% | CN120: ='Sommaire du rôle'!X44 -> 0 | CQ120: 0 | CT120: 0 | CV120: 13 Cours de triage 40 % | CW120: 40% | CY120: ='Sommaire du rôle'!Z44 -> 0 | DB120: 0 | DE120: 0
A121: APPLICATION DU TNR QUAND TTVD | B121: 1 | D121: ='Sommaire du rôle'!H45 -> 0 | E121: ='Sommaire du rôle'!I45 -> 0 | G121: 0 | H121: =B121*E121 -> 0 | J121: 0 | L121: APPLICATION DU TNR QUAND TTVD | M121: 1 | O121: ='Sommaire du rôle'!J45 -> 0 | P121: ='Sommaire du rôle'!K45 -> 0 | R121: 0 | S121: =M121*P121 -> 0 | U121: 0 | W121: APPLICATION DU TNR QUAND TTVD | X121: 1 | Z121: ='Sommaire du rôle'!L45 -> 0 | AA121: ='Sommaire du rôle'!M45 -> 0 | AC121: 0 | AD121: =X121*AA121 -> 0 | AF121: 0 | AH121: APPLICATION DU TNR QUAND TTVD | AI121: 1 | AK121: ='Sommaire du rôle'!N45 -> 0 | AL121: ='Sommaire du rôle'!O45 -> 0 | AN121: 0 | AO121: =AI121*AL121 -> 0 | AQ121: 0 | AS121: APPLICATION DU TNR QUAND TTVD | AT121: 1 | AV121: ='Sommaire du rôle'!P45 -> 0 | AW121: ='Sommaire du rôle'!Q45 -> 0 | AY121: 0 | AZ121: =AT121*AW121 -> 0 | BB121: 0 | BD121: APPLICATION DU TNR QUAND TTVD | BE121: 1 | BG121: ='Sommaire du rôle'!R45 -> 0 | BH121: ='Sommaire du rôle'!S45 -> 0 | BJ121: 0 | BK121: =BE121*BH121 -> 0 | BM121: 0 | BO121: APPLICATION DU TNR QUAND TTVD | BP121: 1 | BR121: ='Sommaire du rôle'!T45 -> 0 | BS121: ='Sommaire du rôle'!U45 -> 0 | BU121: 0 | BV121: =BP121*BS121 -> 0 | BX121: 0 | BZ121: APPLICATION DU TNR QUAND TTVD | CA121: 1 | CC121: ='Sommaire du rôle'!AE45 -> 0 | CD121: ='Sommaire du rôle'!AF45 -> 0 | CF121: 0 | CG121: =CA121*CD121 -> 0 | CI121: 0 | CK121: APPLICATION DU TNR QUAND TTVD | CL121: 1 | CN121: ='Sommaire du rôle'!X45 -> 0 | CO121: ='Sommaire du rôle'!Y45 -> 0 | CQ121: 0 | CR121: =CL121*CO121 -> 0 | CT121: 0 | CV121: APPLICATION DU TNR QUAND TTVD | CW121: 1 | CY121: ='Sommaire du rôle'!Z45 -> 0 | CZ121: ='Sommaire du rôle'!AA45 -> 0 | DB121: 0 | DC121: =CW121*CZ121 -> 0 | DE121: 0
A122: Total | G122: =SUM(G106:G121) -> 112404699.1 | H122: =SUM(H106:H121) -> 25925903 | J122: =G122+H122 -> 138330602.1 | L122: Total | R122: =SUM(R106:R121) -> 112404699.1 | S122: =SUM(S106:S121) -> 25925903 | U122: =R122+S122 -> 138330602.1 | W122: Total | AC122: =SUM(AC106:AC121) -> 112404699.1 | AD122: =SUM(AD106:AD121) -> 25925903 | AF122: =AC122+AD122 -> 138330602.1 | AH122: Total | AN122: =SUM(AN106:AN121) -> 112404699.1 | AO122: =SUM(AO106:AO121) -> 25925903 | AQ122: =AN122+AO122 -> 138330602.1 | AS122: Total | AY122: =SUM(AY106:AY121) -> 112404699.1 | AZ122: =SUM(AZ106:AZ121) -> 25925903 | BB122: =AY122+AZ122 -> 138330602.1 | BD122: Total | BJ122: =SUM(BJ106:BJ121) -> 112404699.1 | BK122: =SUM(BK106:BK121) -> 25925903 | BM122: =BJ122+BK122 -> 138330602.1 | BO122: Total | BU122: =SUM(BU106:BU121) -> 112404699.1 | BV122: =SUM(BV106:BV121) -> 25925903 | BX122: =BU122+BV122 -> 138330602.1 | BZ122: Total | CF122: =SUM(CF106:CF121) -> 112404699.1 | CG122: =SUM(CG106:CG121) -> 25925903 | CI122: =CF122+CG122 -> 138330602.1 | CK122: Total | CQ122: =SUM(CQ106:CQ121) -> 112404699.1 | CR122: =SUM(CR106:CR121) -> 25925903 | CT122: =CQ122+CR122 -> 138330602.1 | CV122: Total | DB122: =SUM(DB106:DB121) -> 112404699.1 | DC122: =SUM(DC106:DC121) -> 25925903 | DE122: =DB122+DC122 -> 138330602.1
A124: ASSIETTE SOUS-CATÉGORIE RÉSIDUELLE
A125: Classe non résidentielle | B125: Pourcentage de taxation | D125: VALEUR À 100 %
D126: Imposables | E126: Compensables | G126: Imposables pondérées | H126: Compensables pondérées | J126: Total
B127: (1) | D127: (2) | E127: (3) | G127: (4) = (1) X (2) | H127: (5) = (1) X (3) | J127: (6) = (4) + (5)
A128: 1A | B128: 0.999 | D128: ='Sommaire du rôle'!F53 -> 6957650 | E128: ='Sommaire du rôle'!G53 -> 0 | G128: =D128*B128 -> 6950692.35 | H128: =B128*E128 -> 0 | J128: =G128+H128 -> 6950692.35 | K128: 2359638
A129: 1B | B129: 0.995 | D129: ='Sommaire du rôle'!F54 -> 3155670 | E129: ='Sommaire du rôle'!G54 -> 0 | G129: =D129*B129 -> 3139891.65 | H129: =B129*E129 -> 0 | J129: =G129+H129 -> 3139891.65 | K129: 670132.5
A130: 1C | B130: 0.99 | D130: ='Sommaire du rôle'!F55 -> 444950 | E130: ='Sommaire du rôle'!G55 -> 0 | G130: 440500.5 | H130: 0 | J130: 440500.5 | K130: 4405005
A131: 2 | B131: 0.97 | D131: ='Sommaire du rôle'!F56 -> 2146970 | E131: ='Sommaire du rôle'!G56 -> 0 | G131: 2082560.9 | H131: 0 | J131: 2082560.9 | K131: 21413332
A132: 3 | B132: 0.94 | D132: ='Sommaire du rôle'!F57 -> 4013950 | E132: ='Sommaire du rôle'!G57 -> 0 | G132: 3773113 | H132: 0 | J132: 3773113 | K132: 36190282
A133: 4 | B133: 0.88 | D133: ='Sommaire du rôle'!F58 -> 5477860 | E133: ='Sommaire du rôle'!G58 -> 0 | G133: 4820516.8 | H133: 0 | J133: 4820516.8 | K133: 27846104
A134: 5 | B134: 0.78 | D134: ='Sommaire du rôle'!F59 -> 3513090 | E134: ='Sommaire du rôle'!G59 -> 0 | G134: 2740210.2 | H134: 0 | J134: 2740210.2 | K134: 22550424
A135: 6 | B135: 0.6 | D135: ='Sommaire du rôle'!F60 -> 3502990 | E135: ='Sommaire du rôle'!G60 -> 0 | G135: 2101794 | H135: 0 | J135: 2101794 | K135: 19039560
A136: 7 | B136: 0.4 | D136: ='Sommaire du rôle'!F61 -> 3597215 | E136: ='Sommaire du rôle'!G61 -> 6579670 | G136: 1438886 | H136: 2631868 | J136: 4070754 | K136: 37782600
A137: 8 | B137: 0.15 | D137: ='Sommaire du rôle'!F62 -> 2029370 | E137: ='Sommaire du rôle'!G62 -> 19235660 | G137: 304405.5 | H137: =B137*E137 -> 2885349 | J137: 3189754.5 | K137: 32037030
A138: IMMEUBLES SANS PARTIE NON RÉSIDENTIELLE | B138: 1 | D138: ='Sommaire du rôle'!F63 -> 733457532.8 | E138: ='Sommaire du rôle'!G63 -> 190980 | G138: 733457532.8 | H138: =B138*E138 -> 190980 | J138: 733648512.8 | K138: 7336485128
A139: 12 CHSLD | B139: 0.8 | D139: ='Sommaire du rôle'!F64 -> 13938200 | E139: ='Sommaire du rôle'!G64 -> 0 | G139: 11150560
A140: 13 Cours de triage | B140: 0.6 | D140: ='Sommaire du rôle'!F65 -> 0 | E140: ='Sommaire du rôle'!G65 -> 0 | G140: 0
A141: Total | G141: =SUM(G128:G140) -> 772400663.7 | H141: =SUM(H128:H138) -> 5708197 | I141: 0 | J141: =G141+H141 -> 778108860.7
A143: ASSIETTE AU TAUX RÉSIDENTIEL SOUS-CATÉGORIE 1 | L143: ASSIETTE AU TAUX RÉSIDENTIEL SOUS-CATÉGORIE 2 | W143: ASSIETTE AU TAUX RÉSIDENTIEL SOUS-CATÉGORIE 3 | AH143: ASSIETTE AU TAUX RÉSIDENTIEL SOUS-CATÉGORIE 4 | AS143: ASSIETTE AU TAUX RÉSIDENTIEL SOUS-CATÉGORIE 5 | BD143: ASSIETTE AU TAUX RÉSIDENTIEL SOUS-CATÉGORIE 6 | BO143: ASSIETTE AU TAUX RÉSIDENTIEL SOUS-CATÉGORIE 7 | BZ143: ASSIETTE AU TAUX RÉSIDENTIEL SOUS-CATÉGORIE 8 | CK143: ASSIETTE AU TAUX RÉSIDENTIEL SOUS-CATÉGORIE 9 | CV143: ASSIETTE AU TAUX RÉSIDENTIEL SOUS-CATÉGORIE 10
A144: Classe non résidentielle | B144: Pourcentage de taxation | D144: VALEUR À 100 % | L144: Classe non résidentielle | M144: Pourcentage de taxation | O144: VALEUR À 100 % | W144: Classe non résidentielle | X144: Pourcentage de taxation | Z144: VALEUR À 100 % | AH144: Classe non résidentielle | AI144: Pourcentage de taxation | AK144: VALEUR À 100 % | AS144: Classe non résidentielle | AT144: Pourcentage de taxation | AV144: VALEUR À 100 % | BD144: Classe non résidentielle | BE144: Pourcentage de taxation | BG144: VALEUR À 100 % | BO144: Classe non résidentielle | BP144: Pourcentage de taxation | BR144: VALEUR À 100 % | BZ144: Classe non résidentielle | CA144: Pourcentage de taxation | CC144: VALEUR À 100 % | CK144: Classe non résidentielle | CL144: Pourcentage de taxation | CN144: VALEUR À 100 % | CV144: Classe non résidentielle | CW144: Pourcentage de taxation | CY144: VALEUR À 100 %
D145: Imposables | E145: Compensables | G145: Imposables pondérées | H145: Compensables pondérées | J145: Total | O145: Imposables | P145: Compensables | R145: Imposables pondérées | S145: Compensables pondérées | U145: Total | Z145: Imposables | AA145: Compensables | AC145: Imposables pondérées | AD145: Compensables pondérées | AF145: Total | AK145: Imposables | AL145: Compensables | AN145: Imposables pondérées | AO145: Compensables pondérées | AQ145: Total | AV145: Imposables | AW145: Compensables | AY145: Imposables pondérées | AZ145: Compensables pondérées | BB145: Total | BG145: Imposables | BH145: Compensables | BJ145: Imposables pondérées | BK145: Compensables pondérées | BM145: Total | BR145: Imposables | BS145: Compensables | BU145: Imposables pondérées | BV145: Compensables pondérées | BX145: Total | CC145: Imposables | CD145: Compensables | CF145: Imposables pondérées | CG145: Compensables pondérées | CI145: Total | CN145: Imposables | CO145: Compensables | CQ145: Imposables pondérées | CR145: Compensables pondérées | CT145: Total | CY145: Imposables | CZ145: Compensables | DB145: Imposables pondérées | DC145: Compensables pondérées | DE145: Total
B146: (1) | D146: (2) | E146: (3) | G146: (4) = (1) X (2) | H146: (5) = (1) X (3) | J146: (6) = (4) + (5) | M146: (1) | O146: (2) | P146: (3) | R146: (4) = (1) X (2) | S146: (5) = (1) X (3) | U146: (6) = (4) + (5) | X146: (1) | Z146: (2) | AA146: (3) | AC146: (4) = (1) X (2) | AD146: (5) = (1) X (3) | AF146: (6) = (4) + (5) | AI146: (1) | AK146: (2) | AL146: (3) | AN146: (4) = (1) X (2) | AO146: (5) = (1) X (3) | AQ146: (6) = (4) + (5) | AT146: (1) | AV146: (2) | AW146: (3) | AY146: (4) = (1) X (2) | AZ146: (5) = (1) X (3) | BB146: (6) = (4) + (5) | BE146: (1) | BG146: (2) | BH146: (3) | BJ146: (4) = (1) X (2) | BK146: (5) = (1) X (3) | BM146: (6) = (4) + (5) | BP146: (1) | BR146: (2) | BS146: (3) | BU146: (4) = (1) X (2) | BV146: (5) = (1) X (3) | BX146: (6) = (4) + (5) | CA146: (1) | CC146: (2) | CD146: (3) | CF146: (4) = (1) X (2) | CG146: (5) = (1) X (3) | CI146: (6) = (4) + (5) | CL146: (1) | CN146: (2) | CO146: (3) | CQ146: (4) = (1) X (2) | CR146: (5) = (1) X (3) | CT146: (6) = (4) + (5) | CW146: (1) | CY146: (2) | CZ146: (3) | DB146: (4) = (1) X (2) | DC146: (5) = (1) X (3) | DE146: (6) = (4) + (5)
A147: 1A | B147: 0.999 | D147: ='Sommaire du rôle'!H53 -> 6957650 | E147: ='Sommaire du rôle'!I53 -> 0 | G147: =D147*B147 -> 6950692.35 | H147: =B147*E147 -> 0 | J147: =G147+H147 -> 6950692.35 | L147: 1A | M147: 0.999 | O147: ='Sommaire du rôle'!J53 -> 6957650 | P147: ='Sommaire du rôle'!K53 -> 0 | R147: =O147*M147 -> 6950692.35 | S147: =M147*P147 -> 0 | U147: =R147+S147 -> 6950692.35 | W147: 1A | X147: 0.999 | Z147: ='Sommaire du rôle'!L53 -> 6957650 | AA147: ='Sommaire du rôle'!M53 -> 0 | AC147: =Z147*X147 -> 6950692.35 | AD147: =X147*AA147 -> 0 | AF147: =AC147+AD147 -> 6950692.35 | AH147: 1A | AI147: 0.999 | AK147: ='Sommaire du rôle'!N53 -> 6957650 | AL147: ='Sommaire du rôle'!O53 -> 0 | AN147: =AK147*AI147 -> 6950692.35 | AO147: =AI147*AL147 -> 0 | AQ147: =AN147+AO147 -> 6950692.35 | AS147: 1A | AT147: 0.999 | AV147: ='Sommaire du rôle'!P53 -> 6957650 | AW147: ='Sommaire du rôle'!Q53 -> 0 | AY147: =AV147*AT147 -> 6950692.35 | AZ147: =AT147*AW147 -> 0 | BB147: =AY147+AZ147 -> 6950692.35 | BD147: 1A | BE147: 0.999 | BG147: ='Sommaire du rôle'!R53 -> 6957650 | BH147: ='Sommaire du rôle'!S53 -> 0 | BJ147: =BG147*BE147 -> 6950692.35 | BK147: =BE147*BH147 -> 0 | BM147: =BJ147+BK147 -> 6950692.35 | BO147: 1A | BP147: 0.999 | BR147: ='Sommaire du rôle'!T53 -> 6957650 | BS147: ='Sommaire du rôle'!U53 -> 0 | BU147: =BR147*BP147 -> 6950692.35 | BV147: =BP147*BS147 -> 0 | BX147: =BU147+BV147 -> 6950692.35 | BZ147: 1A | CA147: 0.999 | CC147: ='Sommaire du rôle'!V53 -> 6957650 | CD147: ='Sommaire du rôle'!W53 -> 0 | CF147: =CC147*CA147 -> 6950692.35 | CG147: =CA147*CD147 -> 0 | CI147: =CF147+CG147 -> 6950692.35 | CK147: 1A | CL147: 0.999 | CN147: ='Sommaire du rôle'!X53 -> 6957650 | CO147: ='Sommaire du rôle'!Y53 -> 0 | CQ147: =CN147*CL147 -> 6950692.35 | CR147: =CL147*CO147 -> 0 | CT147: =CQ147+CR147 -> 6950692.35 | CV147: 1A | CW147: 0.999 | CY147: ='Sommaire du rôle'!Z53 -> 6957650 | CZ147: ='Sommaire du rôle'!AA53 -> 0 | DB147: =CY147*CW147 -> 6950692.35 | DC147: =CW147*CZ147 -> 0 | DE147: =DB147+DC147 -> 6950692.35
A148: 1B | B148: 0.995 | D148: ='Sommaire du rôle'!H54 -> 3155670 | E148: ='Sommaire du rôle'!I54 -> 0 | G148: =D148*B148 -> 3139891.65 | H148: =B148*E148 -> 0 | J148: =G148+H148 -> 3139891.65 | L148: 1B | M148: 0.995 | O148: ='Sommaire du rôle'!J54 -> 3155670 | P148: ='Sommaire du rôle'!K54 -> 0 | R148: =O148*M148 -> 3139891.65 | S148: =M148*P148 -> 0 | U148: =R148+S148 -> 3139891.65 | W148: 1B | X148: 0.995 | Z148: ='Sommaire du rôle'!L54 -> 3155670 | AA148: ='Sommaire du rôle'!M54 -> 0 | AC148: =Z148*X148 -> 3139891.65 | AD148: =X148*AA148 -> 0 | AF148: =AC148+AD148 -> 3139891.65 | AH148: 1B | AI148: 0.995 | AK148: ='Sommaire du rôle'!N54 -> 3155670 | AL148: ='Sommaire du rôle'!O54 -> 0 | AN148: =AK148*AI148 -> 3139891.65 | AO148: =AI148*AL148 -> 0 | AQ148: =AN148+AO148 -> 3139891.65 | AS148: 1B | AT148: 0.995 | AV148: ='Sommaire du rôle'!P54 -> 3155670 | AW148: ='Sommaire du rôle'!Q54 -> 0 | AY148: =AV148*AT148 -> 3139891.65 | AZ148: =AT148*AW148 -> 0 | BB148: =AY148+AZ148 -> 3139891.65 | BD148: 1B | BE148: 0.995 | BG148: ='Sommaire du rôle'!R54 -> 3155670 | BH148: ='Sommaire du rôle'!S54 -> 0 | BJ148: =BG148*BE148 -> 3139891.65 | BK148: =BE148*BH148 -> 0 | BM148: =BJ148+BK148 -> 3139891.65 | BO148: 1B | BP148: 0.995 | BR148: ='Sommaire du rôle'!T54 -> 3155670 | BS148: ='Sommaire du rôle'!U54 -> 0 | BU148: =BR148*BP148 -> 3139891.65 | BV148: =BP148*BS148 -> 0 | BX148: =BU148+BV148 -> 3139891.65 | BZ148: 1B | CA148: 0.995 | CC148: ='Sommaire du rôle'!V54 -> 3155670 | CD148: ='Sommaire du rôle'!W54 -> 0 | CF148: =CC148*CA148 -> 3139891.65 | CG148: =CA148*CD148 -> 0 | CI148: =CF148+CG148 -> 3139891.65 | CK148: 1B | CL148: 0.995 | CN148: ='Sommaire du rôle'!X54 -> 3155670 | CO148: ='Sommaire du rôle'!Y54 -> 0 | CQ148: =CN148*CL148 -> 3139891.65 | CR148: =CL148*CO148 -> 0 | CT148: =CQ148+CR148 -> 3139891.65 | CV148: 1B | CW148: 0.995 | CY148: ='Sommaire du rôle'!Z54 -> 3155670 | CZ148: ='Sommaire du rôle'!AA54 -> 0 | DB148: =CY148*CW148 -> 3139891.65 | DC148: =CW148*CZ148 -> 0 | DE148: =DB148+DC148 -> 3139891.65
A149: 1C | B149: 0.99 | D149: ='Sommaire du rôle'!H55 -> 444950 | E149: ='Sommaire du rôle'!I55 -> 0 | G149: 440500.5 | H149: 0 | J149: 440500.5 | L149: 1C | M149: 0.99 | O149: ='Sommaire du rôle'!J55 -> 444950 | P149: ='Sommaire du rôle'!K55 -> 0 | R149: 440500.5 | S149: 0 | U149: 440500.5 | W149: 1C | X149: 0.99 | Z149: ='Sommaire du rôle'!L55 -> 444950 | AA149: ='Sommaire du rôle'!M55 -> 0 | AC149: 440500.5 | AD149: 0 | AF149: 440500.5 | AH149: 1C | AI149: 0.99 | AK149: ='Sommaire du rôle'!N55 -> 444950 | AL149: ='Sommaire du rôle'!O55 -> 0 | AN149: 440500.5 | AO149: 0 | AQ149: 440500.5 | AS149: 1C | AT149: 0.99 | AV149: ='Sommaire du rôle'!P55 -> 444950 | AW149: ='Sommaire du rôle'!Q55 -> 0 | AY149: 440500.5 | AZ149: 0 | BB149: 440500.5 | BD149: 1C | BE149: 0.99 | BG149: ='Sommaire du rôle'!R55 -> 444950 | BH149: ='Sommaire du rôle'!S55 -> 0 | BJ149: 440500.5 | BK149: 0 | BM149: 440500.5 | BO149: 1C | BP149: 0.99 | BR149: ='Sommaire du rôle'!T55 -> 444950 | BS149: ='Sommaire du rôle'!U55 -> 0 | BU149: 440500.5 | BV149: 0 | BX149: 440500.5 | BZ149: 1C | CA149: 0.99 | CC149: ='Sommaire du rôle'!V55 -> 444950 | CD149: ='Sommaire du rôle'!W55 -> 0 | CF149: 440500.5 | CG149: 0 | CI149: 440500.5 | CK149: 1C | CL149: 0.99 | CN149: ='Sommaire du rôle'!X55 -> 444950 | CO149: ='Sommaire du rôle'!Y55 -> 0 | CQ149: 440500.5 | CR149: 0 | CT149: 440500.5 | CV149: 1C | CW149: 0.99 | CY149: ='Sommaire du rôle'!Z55 -> 444950 | CZ149: ='Sommaire du rôle'!AA55 -> 0 | DB149: 440500.5 | DC149: 0 | DE149: 440500.5
A150: 2 | B150: 0.97 | D150: ='Sommaire du rôle'!H56 -> 2146970 | E150: ='Sommaire du rôle'!I56 -> 0 | G150: 2082560.9 | H150: 0 | J150: 2082560.9 | L150: 2 | M150: 0.97 | O150: ='Sommaire du rôle'!J56 -> 2146970 | P150: ='Sommaire du rôle'!K56 -> 0 | R150: 2082560.9 | S150: 0 | U150: 2082560.9 | W150: 2 | X150: 0.97 | Z150: ='Sommaire du rôle'!L56 -> 2146970 | AA150: ='Sommaire du rôle'!M56 -> 0 | AC150: 2082560.9 | AD150: 0 | AF150: 2082560.9 | AH150: 2 | AI150: 0.97 | AK150: ='Sommaire du rôle'!N56 -> 2146970 | AL150: ='Sommaire du rôle'!O56 -> 0 | AN150: 2082560.9 | AO150: 0 | AQ150: 2082560.9 | AS150: 2 | AT150: 0.97 | AV150: ='Sommaire du rôle'!P56 -> 2146970 | AW150: ='Sommaire du rôle'!Q56 -> 0 | AY150: 2082560.9 | AZ150: 0 | BB150: 2082560.9 | BD150: 2 | BE150: 0.97 | BG150: ='Sommaire du rôle'!R56 -> 2146970 | BH150: ='Sommaire du rôle'!S56 -> 0 | BJ150: 2082560.9 | BK150: 0 | BM150: 2082560.9 | BO150: 2 | BP150: 0.97 | BR150: ='Sommaire du rôle'!T56 -> 2146970 | BS150: ='Sommaire du rôle'!U56 -> 0 | BU150: 2082560.9 | BV150: 0 | BX150: 2082560.9 | BZ150: 2 | CA150: 0.97 | CC150: ='Sommaire du rôle'!V56 -> 2146970 | CD150: ='Sommaire du rôle'!W56 -> 0 | CF150: 2082560.9 | CG150: 0 | CI150: 2082560.9 | CK150: 2 | CL150: 0.97 | CN150: ='Sommaire du rôle'!X56 -> 2146970 | CO150: ='Sommaire du rôle'!Y56 -> 0 | CQ150: 2082560.9 | CR150: 0 | CT150: 2082560.9 | CV150: 2 | CW150: 0.97 | CY150: ='Sommaire du rôle'!Z56 -> 2146970 | CZ150: ='Sommaire du rôle'!AA56 -> 0 | DB150: 2082560.9 | DC150: 0 | DE150: 2082560.9
A151: 3 | B151: 0.94 | D151: ='Sommaire du rôle'!H57 -> 4013950 | E151: ='Sommaire du rôle'!I57 -> 0 | G151: 3773113 | H151: 0 | J151: 3773113 | L151: 3 | M151: 0.94 | O151: ='Sommaire du rôle'!J57 -> 4013950 | P151: ='Sommaire du rôle'!K57 -> 0 | R151: 3773113 | S151: 0 | U151: 3773113 | W151: 3 | X151: 0.94 | Z151: ='Sommaire du rôle'!L57 -> 4013950 | AA151: ='Sommaire du rôle'!M57 -> 0 | AC151: 3773113 | AD151: 0 | AF151: 3773113 | AH151: 3 | AI151: 0.94 | AK151: ='Sommaire du rôle'!N57 -> 4013950 | AL151: ='Sommaire du rôle'!O57 -> 0 | AN151: 3773113 | AO151: 0 | AQ151: 3773113 | AS151: 3 | AT151: 0.94 | AV151: ='Sommaire du rôle'!P57 -> 4013950 | AW151: ='Sommaire du rôle'!Q57 -> 0 | AY151: 3773113 | AZ151: 0 | BB151: 3773113 | BD151: 3 | BE151: 0.94 | BG151: ='Sommaire du rôle'!R57 -> 4013950 | BH151: ='Sommaire du rôle'!S57 -> 0 | BJ151: 3773113 | BK151: 0 | BM151: 3773113 | BO151: 3 | BP151: 0.94 | BR151: ='Sommaire du rôle'!T57 -> 4013950 | BS151: ='Sommaire du rôle'!U57 -> 0 | BU151: 3773113 | BV151: 0 | BX151: 3773113 | BZ151: 3 | CA151: 0.94 | CC151: ='Sommaire du rôle'!V57 -> 4013950 | CD151: ='Sommaire du rôle'!W57 -> 0 | CF151: 3773113 | CG151: 0 | CI151: 3773113 | CK151: 3 | CL151: 0.94 | CN151: ='Sommaire du rôle'!X57 -> 4013950 | CO151: ='Sommaire du rôle'!Y57 -> 0 | CQ151: 3773113 | CR151: 0 | CT151: 3773113 | CV151: 3 | CW151: 0.94 | CY151: ='Sommaire du rôle'!Z57 -> 4013950 | CZ151: ='Sommaire du rôle'!AA57 -> 0 | DB151: 3773113 | DC151: 0 | DE151: 3773113
A152: 4 | B152: 0.88 | D152: ='Sommaire du rôle'!H58 -> 5477860 | E152: ='Sommaire du rôle'!I58 -> 0 | G152: 4820516.8 | H152: 0 | J152: 4820516.8 | L152: 4 | M152: 0.88 | O152: ='Sommaire du rôle'!J58 -> 5477860 | P152: ='Sommaire du rôle'!K58 -> 0 | R152: 4820516.8 | S152: 0 | U152: 4820516.8 | W152: 4 | X152: 0.88 | Z152: ='Sommaire du rôle'!L58 -> 5477860 | AA152: ='Sommaire du rôle'!M58 -> 0 | AC152: 4820516.8 | AD152: 0 | AF152: 4820516.8 | AH152: 4 | AI152: 0.88 | AK152: ='Sommaire du rôle'!N58 -> 5477860 | AL152: ='Sommaire du rôle'!O58 -> 0 | AN152: 4820516.8 | AO152: 0 | AQ152: 4820516.8 | AS152: 4 | AT152: 0.88 | AV152: ='Sommaire du rôle'!P58 -> 5477860 | AW152: ='Sommaire du rôle'!Q58 -> 0 | AY152: 4820516.8 | AZ152: 0 | BB152: 4820516.8 | BD152: 4 | BE152: 0.88 | BG152: ='Sommaire du rôle'!R58 -> 5477860 | BH152: ='Sommaire du rôle'!S58 -> 0 | BJ152: 4820516.8 | BK152: 0 | BM152: 4820516.8 | BO152: 4 | BP152: 0.88 | BR152: ='Sommaire du rôle'!T58 -> 5477860 | BS152: ='Sommaire du rôle'!U58 -> 0 | BU152: 4820516.8 | BV152: 0 | BX152: 4820516.8 | BZ152: 4 | CA152: 0.88 | CC152: ='Sommaire du rôle'!V58 -> 5477860 | CD152: ='Sommaire du rôle'!W58 -> 0 | CF152: 4820516.8 | CG152: 0 | CI152: 4820516.8 | CK152: 4 | CL152: 0.88 | CN152: ='Sommaire du rôle'!X58 -> 5477860 | CO152: ='Sommaire du rôle'!Y58 -> 0 | CQ152: 4820516.8 | CR152: 0 | CT152: 4820516.8 | CV152: 4 | CW152: 0.88 | CY152: ='Sommaire du rôle'!Z58 -> 5477860 | CZ152: ='Sommaire du rôle'!AA58 -> 0 | DB152: 4820516.8 | DC152: 0 | DE152: 4820516.8
A153: 5 | B153: 0.78 | D153: ='Sommaire du rôle'!H59 -> 3513090 | E153: ='Sommaire du rôle'!I59 -> 0 | G153: 2740210.2 | H153: 0 | J153: 2740210.2 | L153: 5 | M153: 0.78 | O153: ='Sommaire du rôle'!J59 -> 3513090 | P153: ='Sommaire du rôle'!K59 -> 0 | R153: 2740210.2 | S153: 0 | U153: 2740210.2 | W153: 5 | X153: 0.78 | Z153: ='Sommaire du rôle'!L59 -> 3513090 | AA153: ='Sommaire du rôle'!M59 -> 0 | AC153: 2740210.2 | AD153: 0 | AF153: 2740210.2 | AH153: 5 | AI153: 0.78 | AK153: ='Sommaire du rôle'!N59 -> 3513090 | AL153: ='Sommaire du rôle'!O59 -> 0 | AN153: 2740210.2 | AO153: 0 | AQ153: 2740210.2 | AS153: 5 | AT153: 0.78 | AV153: ='Sommaire du rôle'!P59 -> 3513090 | AW153: ='Sommaire du rôle'!Q59 -> 0 | AY153: 2740210.2 | AZ153: 0 | BB153: 2740210.2 | BD153: 5 | BE153: 0.78 | BG153: ='Sommaire du rôle'!R59 -> 3513090 | BH153: ='Sommaire du rôle'!S59 -> 0 | BJ153: 2740210.2 | BK153: 0 | BM153: 2740210.2 | BO153: 5 | BP153: 0.78 | BR153: ='Sommaire du rôle'!T59 -> 3513090 | BS153: ='Sommaire du rôle'!U59 -> 0 | BU153: 2740210.2 | BV153: 0 | BX153: 2740210.2 | BZ153: 5 | CA153: 0.78 | CC153: ='Sommaire du rôle'!V59 -> 3513090 | CD153: ='Sommaire du rôle'!W59 -> 0 | CF153: 2740210.2 | CG153: 0 | CI153: 2740210.2 | CK153: 5 | CL153: 0.78 | CN153: ='Sommaire du rôle'!X59 -> 3513090 | CO153: ='Sommaire du rôle'!Y59 -> 0 | CQ153: 2740210.2 | CR153: 0 | CT153: 2740210.2 | CV153: 5 | CW153: 0.78 | CY153: ='Sommaire du rôle'!Z59 -> 3513090 | CZ153: ='Sommaire du rôle'!AA59 -> 0 | DB153: 2740210.2 | DC153: 0 | DE153: 2740210.2
A154: 6 | B154: 0.6 | D154: ='Sommaire du rôle'!H60 -> 3502990 | E154: ='Sommaire du rôle'!I60 -> 0 | G154: 2101794 | H154: 0 | J154: 2101794 | L154: 6 | M154: 0.6 | O154: ='Sommaire du rôle'!J60 -> 3502990 | P154: ='Sommaire du rôle'!K60 -> 0 | R154: 2101794 | S154: 0 | U154: 2101794 | W154: 6 | X154: 0.6 | Z154: ='Sommaire du rôle'!L60 -> 3502990 | AA154: ='Sommaire du rôle'!M60 -> 0 | AC154: 2101794 | AD154: 0 | AF154: 2101794 | AH154: 6 | AI154: 0.6 | AK154: ='Sommaire du rôle'!N60 -> 3502990 | AL154: ='Sommaire du rôle'!O60 -> 0 | AN154: 2101794 | AO154: 0 | AQ154: 2101794 | AS154: 6 | AT154: 0.6 | AV154: ='Sommaire du rôle'!P60 -> 3502990 | AW154: ='Sommaire du rôle'!Q60 -> 0 | AY154: 2101794 | AZ154: 0 | BB154: 2101794 | BD154: 6 | BE154: 0.6 | BG154: ='Sommaire du rôle'!R60 -> 3502990 | BH154: ='Sommaire du rôle'!S60 -> 0 | BJ154: 2101794 | BK154: 0 | BM154: 2101794 | BO154: 6 | BP154: 0.6 | BR154: ='Sommaire du rôle'!T60 -> 3502990 | BS154: ='Sommaire du rôle'!U60 -> 0 | BU154: 2101794 | BV154: 0 | BX154: 2101794 | BZ154: 6 | CA154: 0.6 | CC154: ='Sommaire du rôle'!V60 -> 3502990 | CD154: ='Sommaire du rôle'!W60 -> 0 | CF154: 2101794 | CG154: 0 | CI154: 2101794 | CK154: 6 | CL154: 0.6 | CN154: ='Sommaire du rôle'!X60 -> 3502990 | CO154: ='Sommaire du rôle'!Y60 -> 0 | CQ154: 2101794 | CR154: 0 | CT154: 2101794 | CV154: 6 | CW154: 0.6 | CY154: ='Sommaire du rôle'!Z60 -> 3502990 | CZ154: ='Sommaire du rôle'!AA60 -> 0 | DB154: 2101794 | DC154: 0 | DE154: 2101794
A155: 7 | B155: 0.4 | D155: ='Sommaire du rôle'!H61 -> 3597215 | E155: ='Sommaire du rôle'!I61 -> 6579670 | G155: 1438886 | H155: 2631868 | J155: 4070754 | L155: 7 | M155: 0.4 | O155: ='Sommaire du rôle'!J61 -> 3597215 | P155: ='Sommaire du rôle'!K61 -> 6579670 | R155: 1438886 | S155: 2631868 | U155: 4070754 | W155: 7 | X155: 0.4 | Z155: ='Sommaire du rôle'!L61 -> 3597215 | AA155: ='Sommaire du rôle'!M61 -> 6579670 | AC155: 1438886 | AD155: 2631868 | AF155: 4070754 | AH155: 7 | AI155: 0.4 | AK155: ='Sommaire du rôle'!N61 -> 3597215 | AL155: ='Sommaire du rôle'!O61 -> 6579670 | AN155: 1438886 | AO155: 2631868 | AQ155: 4070754 | AS155: 7 | AT155: 0.4 | AV155: ='Sommaire du rôle'!P61 -> 3597215 | AW155: ='Sommaire du rôle'!Q61 -> 6579670 | AY155: 1438886 | AZ155: 2631868 | BB155: 4070754 | BD155: 7 | BE155: 0.4 | BG155: ='Sommaire du rôle'!R61 -> 3597215 | BH155: ='Sommaire du rôle'!S61 -> 6579670 | BJ155: 1438886 | BK155: 2631868 | BM155: 4070754 | BO155: 7 | BP155: 0.4 | BR155: ='Sommaire du rôle'!T61 -> 3597215 | BS155: ='Sommaire du rôle'!U61 -> 6579670 | BU155: 1438886 | BV155: 2631868 | BX155: 4070754 | BZ155: 7 | CA155: 0.4 | CC155: ='Sommaire du rôle'!V61 -> 3597215 | CD155: ='Sommaire du rôle'!W61 -> 6579670 | CF155: 1438886 | CG155: 2631868 | CI155: 4070754 | CK155: 7 | CL155: 0.4 | CN155: ='Sommaire du rôle'!X61 -> 3597215 | CO155: ='Sommaire du rôle'!Y61 -> 6579670 | CQ155: 1438886 | CR155: 2631868 | CT155: 4070754 | CV155: 7 | CW155: 0.4 | CY155: ='Sommaire du rôle'!Z61 -> 3597215 | CZ155: ='Sommaire du rôle'!AA61 -> 6579670 | DB155: 1438886 | DC155: 2631868 | DE155: 4070754
A156: 8 | B156: 0.15 | D156: ='Sommaire du rôle'!H62 -> 2029370 | E156: ='Sommaire du rôle'!I62 -> 19235660 | G156: 304405.5 | H156: =B156*E156 -> 2885349 | J156: 3189754.5 | L156: 8 | M156: 0.15 | O156: ='Sommaire du rôle'!J62 -> 2029370 | P156: ='Sommaire du rôle'!K62 -> 19235660 | R156: 304405.5 | S156: =M156*P156 -> 2885349 | U156: 3189754.5 | W156: 8 | X156: 0.15 | Z156: ='Sommaire du rôle'!L62 -> 2029370 | AA156: ='Sommaire du rôle'!M62 -> 19235660 | AC156: 304405.5 | AD156: =X156*AA156 -> 2885349 | AF156: 3189754.5 | AH156: 8 | AI156: 0.15 | AK156: ='Sommaire du rôle'!N62 -> 2029370 | AL156: ='Sommaire du rôle'!O62 -> 19235660 | AN156: 304405.5 | AO156: =AI156*AL156 -> 2885349 | AQ156: 3189754.5 | AS156: 8 | AT156: 0.15 | AV156: ='Sommaire du rôle'!P62 -> 2029370 | AW156: ='Sommaire du rôle'!Q62 -> 19235660 | AY156: 304405.5 | AZ156: =AT156*AW156 -> 2885349 | BB156: 3189754.5 | BD156: 8 | BE156: 0.15 | BG156: ='Sommaire du rôle'!R62 -> 2029370 | BH156: ='Sommaire du rôle'!S62 -> 19235660 | BJ156: 304405.5 | BK156: =BE156*BH156 -> 2885349 | BM156: 3189754.5 | BO156: 8 | BP156: 0.15 | BR156: ='Sommaire du rôle'!T62 -> 2029370 | BS156: ='Sommaire du rôle'!U62 -> 19235660 | BU156: 304405.5 | BV156: =BP156*BS156 -> 2885349 | BX156: 3189754.5 | BZ156: 8 | CA156: 0.15 | CC156: ='Sommaire du rôle'!V62 -> 2029370 | CD156: ='Sommaire du rôle'!W62 -> 19235660 | CF156: 304405.5 | CG156: =CA156*CD156 -> 2885349 | CI156: 3189754.5 | CK156: 8 | CL156: 0.15 | CN156: ='Sommaire du rôle'!X62 -> 2029370 | CO156: ='Sommaire du rôle'!Y62 -> 19235660 | CQ156: 304405.5 | CR156: =CL156*CO156 -> 2885349 | CT156: 3189754.5 | CV156: 8 | CW156: 0.15 | CY156: ='Sommaire du rôle'!Z62 -> 2029370 | CZ156: ='Sommaire du rôle'!AA62 -> 19235660 | DB156: 304405.5 | DC156: =CW156*CZ156 -> 2885349 | DE156: 3189754.5
A157: IMMEUBLES SANS PARTIE NON RÉSIDENTIELLE | B157: 1 | D157: ='Sommaire du rôle'!H63 -> 733457532.8 | E157: ='Sommaire du rôle'!I63 -> 190980 | G157: 733457532.8 | H157: =B157*E157 -> 190980 | J157: 733648512.8 | L157: IMMEUBLES SANS PARTIE NON RÉSIDENTIELLE | M157: 1 | O157: ='Sommaire du rôle'!J63 -> 733457532.8 | P157: ='Sommaire du rôle'!K63 -> 190980 | R157: 733457532.8 | S157: =M157*P157 -> 190980 | U157: 733648512.8 | W157: IMMEUBLES SANS PARTIE NON RÉSIDENTIELLE | X157: 1 | Z157: ='Sommaire du rôle'!L63 -> 733457532.8 | AA157: ='Sommaire du rôle'!M63 -> 190980 | AC157: 733457532.8 | AD157: =X157*AA157 -> 190980 | AF157: 733648512.8 | AH157: IMMEUBLES SANS PARTIE NON RÉSIDENTIELLE | AI157: 1 | AK157: ='Sommaire du rôle'!N63 -> 733457532.8 | AL157: ='Sommaire du rôle'!O63 -> 190980 | AN157: 733457532.8 | AO157: =AI157*AL157 -> 190980 | AQ157: 733648512.8 | AS157: IMMEUBLES SANS PARTIE NON RÉSIDENTIELLE | AT157: 1 | AV157: ='Sommaire du rôle'!P63 -> 733457532.8 | AW157: ='Sommaire du rôle'!Q63 -> 190980 | AY157: 733457532.8 | AZ157: =AT157*AW157 -> 190980 | BB157: 733648512.8 | BD157: IMMEUBLES SANS PARTIE NON RÉSIDENTIELLE | BE157: 1 | BG157: ='Sommaire du rôle'!R63 -> 733457532.8 | BH157: ='Sommaire du rôle'!S63 -> 190980 | BJ157: 733457532.8 | BK157: =BE157*BH157 -> 190980 | BM157: 733648512.8 | BO157: IMMEUBLES SANS PARTIE NON RÉSIDENTIELLE | BP157: 1 | BR157: ='Sommaire du rôle'!T63 -> 733457532.8 | BS157: ='Sommaire du rôle'!U63 -> 190980 | BU157: 733457532.8 | BV157: =BP157*BS157 -> 190980 | BX157: 733648512.8 | BZ157: IMMEUBLES SANS PARTIE NON RÉSIDENTIELLE | CA157: 1 | CC157: ='Sommaire du rôle'!V63 -> 733457532.8 | CD157: ='Sommaire du rôle'!W63 -> 190980 | CF157: 733457532.8 | CG157: =CA157*CD157 -> 190980 | CI157: 733648512.8 | CK157: IMMEUBLES SANS PARTIE NON RÉSIDENTIELLE | CL157: 1 | CN157: ='Sommaire du rôle'!X63 -> 733457532.8 | CO157: ='Sommaire du rôle'!Y63 -> 190980 | CQ157: 733457532.8 | CR157: =CL157*CO157 -> 190980 | CT157: 733648512.8 | CV157: IMMEUBLES SANS PARTIE NON RÉSIDENTIELLE | CW157: 1 | CY157: ='Sommaire du rôle'!Z63 -> 733457532.8 | CZ157: ='Sommaire du rôle'!AA63 -> 190980 | DB157: 733457532.8 | DC157: =CW157*CZ157 -> 190980 | DE157: 733648512.8
A158: 12 CHSLD | B158: 0.8 | G158: 0 | L158: 12 CHSLD | M158: 0.8 | R158: 0 | W158: 12 CHSLD | X158: 0.8 | AC158: 0 | AH158: 12 CHSLD | AI158: 0.8 | AN158: 0 | AS158: 12 CHSLD | AT158: 0.8 | AY158: 0 | BD158: 12 CHSLD | BE158: 0.8 | BJ158: 0 | BO158: 12 CHSLD | BP158: 0.8 | BU158: 0 | BZ158: 12 CHSLD | CA158: 0.8 | CF158: 0 | CK158: 12 CHSLD | CL158: 0.8 | CV158: 12 CHSLD | CW158: 0.8
A159: 13 Cours de triage | B159: 0.6 | G159: 0 | L159: 13 Cours de triage | M159: 0.6 | R159: 0 | W159: 13 Cours de triage | X159: 0.6 | AC159: 0 | AH159: 13 Cours de triage | AI159: 0.6 | AN159: 0 | AS159: 13 Cours de triage | AT159: 0.6 | AY159: 0 | BD159: 13 Cours de triage | BE159: 0.6 | BJ159: 0 | BO159: 13 Cours de triage | BP159: 0.6 | BU159: 0 | BZ159: 13 Cours de triage | CA159: 0.6 | CF159: 0 | CK159: 13 Cours de triage | CL159: 0.6 | CV159: 13 Cours de triage | CW159: 0.6
A160: Total | G160: =SUM(G147:G159) -> 761250103.7 | H160: =SUM(H147:H157) -> 5708197 | I160: 0 | J160: =G160+H160 -> 766958300.7 | L160: Total | R160: =SUM(R147:R159) -> 761250103.7 | S160: =SUM(S147:S157) -> 5708197 | U160: =R160+S160 -> 766958300.7 | W160: Total | AC160: =SUM(AC147:AC159) -> 761250103.7 | AD160: =SUM(AD147:AD157) -> 5708197 | AF160: =AC160+AD160 -> 766958300.7 | AH160: Total | AN160: =SUM(AN147:AN159) -> 761250103.7 | AO160: =SUM(AO147:AO157) -> 5708197 | AQ160: =AN160+AO160 -> 766958300.7 | AS160: Total | AY160: =SUM(AY147:AY159) -> 761250103.7 | AZ160: =SUM(AZ147:AZ157) -> 5708197 | BB160: =AY160+AZ160 -> 766958300.7 | BD160: Total | BJ160: =SUM(BJ147:BJ159) -> 761250103.7 | BK160: =SUM(BK147:BK157) -> 5708197 | BM160: =BJ160+BK160 -> 766958300.7 | BO160: Total | BU160: =SUM(BU147:BU159) -> 761250103.7 | BV160: =SUM(BV147:BV157) -> 5708197 | BX160: =BU160+BV160 -> 766958300.7 | BZ160: Total | CF160: =SUM(CF147:CF159) -> 761250103.7 | CG160: =SUM(CG147:CG157) -> 5708197 | CI160: =CF160+CG160 -> 766958300.7 | CK160: Total | CQ160: =SUM(CQ147:CQ159) -> 761250103.7 | CR160: =SUM(CR147:CR157) -> 5708197 | CT160: =CQ160+CR160 -> 766958300.7 | CV160: Total | DB160: =SUM(DB147:DB159) -> 761250103.7 | DC160: =SUM(DC147:DC157) -> 5708197 | DE160: =DB160+DC160 -> 766958300.7

Sheet Scénario-taux variés
A3: CHOIX DES COEFFICIENTS SELON LES BALISES ET CALCUL DU TAUX DE BASE
A4: Il faut remplir les cases ombragées (motif à points) pour faire fonctionner le simulateur.
A5: Note : Les assiettes de taxation du modèle n'incluent que les valeurs imposables.
A7: Nom de la municipalité = | F7: Année:
A8: Population de la municipalité ou de l'agglomération, s'il y a lieu = | E8: 1000000 | F8: habitants | H8: =IF(E8=0,"Inscrivez la population","-") -> -
A9: Recettes de la taxe foncière générale = | E9: 94624103 | F9: (prévues au budget) | H9: =IF(E9=0,"Inscrivez des recettes","-") -> -
A10: Nom du scénario = | E10: Scénario 1
A12: MULTIPLES DU TAUX DE BASE
E13: Balises des coefficients par rapport au taux de base (TB) | G13: Choisir un coefficient par rapport au taux de base | I13: Validation | J13: Explication
E14: Minimum | F14: Maximum
A15: Taux sous-catégorie résidentielle 1 (TSCR 1) | C15: =IF('Sommaire du rôle'!$H$50>0,'Sommaire du rôle'!$H$50,"-") -> sr1 | E15: 0.666 | F15: 1.333 | G15: 1 | H15: X TB | I15: =IF(G15>0,IF(AND(E15<=G15,F15>=G15),"-","INVALIDE"),"-") -> - | J15: =IF(I15="INVALIDE",IF(G15<E15,"Le coefficient est inférieur au minimum.","Le coefficient est supérieur au maximum."),"-") -> - | K15: =IF(I15="INVALIDE",1,0) -> 0
A16: Taux sous-catégorie résidentielle 2 (TSCR 2) | C16: =IF('Sommaire du rôle'!$J$50>0,'Sommaire du rôle'!$J$50,"-") -> sr2 | E16: 0.666 | F16: 1.333 | G16: 1.333 | H16: X TB | I16: =IF(G16>0,IF(AND(E16<=G16,F16>=G16),"-","INVALIDE"),"-") -> - | J16: =IF(I16="INVALIDE",IF(G16<E16,"Le coefficient est inférieur au minimum.","Le coefficient est supérieur au maximum."),"-") -> - | K16: 0
A17: Taux sous-catégorie résidentielle 3 (TSCR 3) | C17: =IF('Sommaire du rôle'!$L$50>0,'Sommaire du rôle'!$L$50,"-") -> sr3 | E17: 0.666 | F17: 1.333 | G17: 1.333 | H17: X TB | I17: - | J17: - | K17: 0
A18: Taux sous-catégorie résidentielle 4 (TSCR 4) | C18: =IF('Sommaire du rôle'!$N$50>0,'Sommaire du rôle'!$N$50,"-") -> sr4 | E18: 0.666 | F18: 1.333 | G18: 1.333 | H18: X TB | I18: - | J18: - | K18: 0
A19: Taux sous-catégorie résidentielle 5 (TSCR 5) | C19: =IF('Sommaire du rôle'!$N$50>0,'Sommaire du rôle'!$P$50,"-") -> sr5 | E19: 0.666 | F19: 1.333 | G19: 1.333 | H19: X TB | I19: - | J19: - | K19: 0
A20: Taux sous-catégorie résidentielle 6 (TSCR 6) | C20: =IF('Sommaire du rôle'!$R$50>0,'Sommaire du rôle'!$R$50,"-") -> sr6 | E20: 0.666 | F20: 1.333 | G20: 1.333 | H20: X TB | I20: - | J20: - | K20: 0
A21: Taux sous-catégorie résidentielle 7 (TSCR 7) | C21: =IF('Sommaire du rôle'!$T$50>0,'Sommaire du rôle'!$T$50,"-") -> sr7 | E21: 0.666 | F21: 1.333 | G21: 1.333 | H21: X TB | I21: - | J21: - | K21: 0
A22: Taux sous-catégorie résidentielle 8 (TSCR 8) | C22: =IF('Sommaire du rôle'!$V$50>0,'Sommaire du rôle'!$V$50,"-") -> sr8 | E22: 0.666 | F22: 1.333 | G22: 1.333 | H22: X TB | I22: - | J22: - | K22: 0
A23: Taux sous-catégorie résidentielle 9 (TSCR 9) | C23: =IF('Sommaire du rôle'!$X$50>0,'Sommaire du rôle'!$X$50,"-") -> sr9 | E23: 0.666 | F23: 1.333 | G23: 1.333 | H23: X TB | I23: - | J23: - | K23: 0
A24: Taux sous-catégorie résidentielle 10 (TSCR 10) | C24: =IF('Sommaire du rôle'!$Z$50>0,'Sommaire du rôle'!$Z$50,"-") -> sr10 | E24: 0.666 | F24: 1.333 | G24: 1.333 | H24: X TB | I24: - | J24: - | K24: 0
A25: Taux non résidentiel ou sous-catégorie de référence (TINR) | E25: 1 | F25: ='Balises-Taux'!B10 -> 4.8 | G25: =F25 -> 4.8 | H25: X TB | I25: =IF(G25>0,IF(AND(E25<=G25,F25>=G25),"-","INVALIDE"),"-") -> - | J25: =IF(I25="INVALIDE",IF(G25<E25,"Le coefficient est inférieur au minimum.","Le coefficient est supérieur au maximum."),"-") -> - | K25: =IF(I25="INVALIDE",1,0) -> 0
A26: Taux sous-catégorie non résidentielle 1 (TSCNR 1) | C26: =IF('Sommaire du rôle'!$H$27>0,'Sommaire du rôle'!$H$27,"-") -> snr1 | E26: =IF('Balises-Taux'!C20="-",E25,'Balises-Taux'!C20/'Balises-Taux'!H14) -> 3.1968 | F26: =IF('Balises-Taux'!F20="-",'Scénario-taux variés'!F25,'Balises-Taux'!F20/'Balises-Taux'!H14) -> 4.8 | G26: =G25 -> 4.8 | H26: X TB | I26: =IF(G26>0,IF(AND(E26<=G26,F26>=G26),"-","INVALIDE"),"-") -> - | J26: =IF(I26="INVALIDE",IF(G26<E26,"Le coefficient est inférieur au minimum.","Le coefficient est supérieur au maximum."),"-") -> - | K26: =IF(I26="INVALIDE",1,0) -> 0
A27: Taux sous-catégorie non résidentielle 2 (TSCNR 2) | C27: =IF('Sommaire du rôle'!$J$27>0,'Sommaire du rôle'!$J$27,"-") -> snr2 | E27: =E26 -> 3.1968 | F27: =F26 -> 4.8 | G27: =G26 -> 4.8 | H27: X TB | I27: - | J27: - | K27: 0
A28: Taux sous-catégorie non résidentielle 3 (TSCNR 3) | C28: =IF('Sommaire du rôle'!$L$27>0,'Sommaire du rôle'!$L$27,"-") -> snr3 | E28: =E27 -> 3.1968 | F28: =F27 -> 4.8 | G28: 4.8 | H28: X TB | I28: - | J28: - | K28: 0
A29: Taux sous-catégorie non résidentielle 4 (TSCNR 4) | C29: =IF('Sommaire du rôle'!$N$27>0,'Sommaire du rôle'!$N$27,"-") -> snr4 | E29: =E28 -> 3.1968 | F29: 4.8 | G29: 4.8 | H29: X TB | I29: - | J29: - | K29: 0
A30: Taux sous-catégorie non résidentielle 5 (TSCNR 5) | C30: =IF('Sommaire du rôle'!$N$27>0,'Sommaire du rôle'!$P$27,"-") -> snr5 | E30: 3.1968 | F30: 4.8 | G30: 4.8 | H30: X TB | I30: - | J30: - | K30: 0
A31: Taux sous-catégorie non résidentielle 6 (TSCNR 6) | C31: =IF('Sommaire du rôle'!$R$27>0,'Sommaire du rôle'!$R$27,"-") -> snr6 | E31: 3.1968 | F31: 4.8 | G31: 4.8 | H31: X TB | I31: - | J31: - | K31: 0
A32: Taux sous-catégorie non résidentielle 7 (TSCNR 7) | C32: =IF('Sommaire du rôle'!$T$27>0,'Sommaire du rôle'!$T$27,"-") -> snr7 | E32: 3.1968 | F32: 4.8 | G32: 4.8 | H32: X TB | I32: - | J32: - | K32: 0
A33: Taux sous-catégorie non résidentielle 8 (TSCNR 8) | C33: =IF('Sommaire du rôle'!$V$27>0,'Sommaire du rôle'!$V$27,"-") -> snr8 | E33: 3.1968 | F33: 4.8 | G33: 4.8 | H33: X TB | I33: - | J33: - | K33: 0
A34: Taux sous-catégorie non résidentielle 9 (TSCNR 9) | C34: =IF('Sommaire du rôle'!$X$27>0,'Sommaire du rôle'!$X$27,"-") -> snr9 | E34: 3.1968 | F34: 4.8 | G34: 4.8 | H34: X TB | I34: - | J34: - | K34: 0
A35: Taux sous-catégorie non résidentielle 10 (TSCNR 10) | C35: =IF('Sommaire du rôle'!$Z$27>0,'Sommaire du rôle'!$Z$27,"-") -> snr10 | E35: 3.1968 | F35: 4.8 | G35: 4.8 | H35: X TB | I35: - | J35: - | K35: 0
A36: Taux industriel (TIND) | E36: =IF('Balises-Taux'!C27="-",1,'Balises-Taux'!C27/'Balises-Taux'!H14) -> 3.1968 | F36: =IF('Balises-Taux'!F27="-",'Balises-Taux'!E10,'Balises-Taux'!F27/'Balises-Taux'!H14) -> 5 | G36: ='Balises-Taux'!E10 -> 5 | H36: X TB | I36: - | J36: - | K36: 0
A37: Taux des terrains vagues desservis (TTVD) | E37: 1 | F37: 4 | G37: 4 | H37: X TB | I37: =IF(G37>0,IF(AND(E37<=G37,F37>=G37),"-","INVALIDE"),"-") -> - | J37: =IF(I37="INVALIDE",IF(G37<E37,"Le coefficient est inférieur au minimum.","Le coefficient est supérieur au maximum."),"-") -> - | K37: =IF(I37="INVALIDE",1,0) -> 0
A38: Taux forestier (TFOREST) | E38: 0.666 | F38: 1 | G38: 1 | H38: X TB | I38: =IF(G38>0,IF(AND(E38<=G38,F38>=G38),"-","INVALIDE"),"-") -> - | J38: =IF(I38="INVALIDE",IF(G38<E38,"Le coefficient est inférieur au minimum.","Le coefficient est supérieur au maximum."),"-") -> - | K38: 0
A39: Taux agricole (TAGRI) | E39: 0.666 | F39: 1 | G39: 1 | H39: X TB | I39: =IF(G39>0,IF(AND(E39<=G39,F39>=G39),"-","INVALIDE"),"-") -> - | J39: =IF(I39="INVALIDE",IF(G39<E39,"Le coefficient est inférieur au minimum.","Le coefficient est supérieur au maximum."),"-") -> - | K39: 0
B40: = dépend du taux non résidentiel ou du taux de la sous-catégorie de référence | K40: =SUM(K15:K39) -> 0
A42: D'où :
A44: Taux de base | B44: X | C44: Assiette imposable TB | E44: Recettes de taxes prélevées sur les
A45: TB | C45: =IF('Sommaire du rôle'!F66>0,'Sommaire du rôle'!F83,'Sommaire du rôle'!O71) -> 772400663.7 | E45: valeurs soumises au taux de base (catégorie résiduelle ou sous-catégorie résiduelle)
B46: +
A47: Taux sous-catégorie résidentielle 1 | B47: X | C47: Assiette imposable TB | E47: Recettes de taxes prélevées sur les
A48: =IF(G15>0,G15,1) -> 1 | C48: ='Sommaire du rôle'!G83 -> 761250103.7 | E48: valeurs soumises au taux sous-catégorie résidentielle 1
B49: +
A50: Taux sous-catégorie résidentielle 2 | B50: X | C50: Assiette imposable TB | E50: Recettes de taxes prélevées sur les
A51: =IF(G16>0,G16,1) -> 1.333 | C51: ='Sommaire du rôle'!H83 -> 761250103.7 | E51: valeurs soumises au taux sous-catégorie résidentielle 2
B52: +
A53: Taux sous-catégorie résidentielle 3 | B53: X | C53: Assiette imposable TB | E53: Recettes de taxes prélevées sur les
A54: =IF(G17>0,G17,1) -> 1.333 | C54: ='Sommaire du rôle'!I83 -> 761250103.7 | E54: valeurs soumises au taux sous-catégorie résidentielle 3
A56: Taux sous-catégorie résidentielle 4 | B56: X | C56: Assiette imposable TB | E56: Recettes de taxes prélevées sur les
A57: =IF(G18>0,G18,1) -> 1.333 | C57: ='Sommaire du rôle'!J83 -> 761250103.7 | E57: valeurs soumises au taux sous-catégorie résidentielle 4
B58: +
A59: Taux sous-catégorie résidentielle 5 | B59: X | C59: Assiette imposable TB | E59: Recettes de taxes prélevées sur les
A60: =IF(G19>0,G19,1) -> 1.333 | C60: ='Sommaire du rôle'!K83 -> 761250103.7 | E60: valeurs soumises au taux sous-catégorie résidentielle 5
B61: +
A62: Taux sous-catégorie résidentielle 6 | B62: X | C62: Assiette imposable TB | E62: Recettes de taxes prélevées sur les
A63: =IF(G20>0,G20,1) -> 1.333 | C63: ='Sommaire du rôle'!L83 -> 761250103.7 | E63: valeurs soumises au taux sous-catégorie résidentielle 6
B64: +
A65: Taux sous-catégorie résidentielle 7 | B65: X | C65: Assiette imposable TB | E65: Recettes de taxes prélevées sur les
A66: =IF(G21>0,G21,1) -> 1.333 | C66: ='Sommaire du rôle'!M83 -> 761250103.7 | E66: valeurs soumises au taux sous-catégorie résidentielle 7
B67: +
A68: Taux sous-catégorie résidentielle 8 | B68: X | C68: Assiette imposable TB | E68: Recettes de taxes prélevées sur les
A69: =IF(G22>0,G22,1) -> 1.333 | C69: ='Sommaire du rôle'!N83 -> 761250103.7 | E69: valeurs soumises au taux sous-catégorie résidentielle 8
B70: +
A71: Taux sous-catégorie résidentielle 9 | B71: X | C71: Assiette imposable TB | E71: Recettes de taxes prélevées sur les
A72: =IF(G23>0,G23,1) -> 1.333 | C72: ='Sommaire du rôle'!O83 -> 761250103.7 | E72: valeurs soumises au taux sous-catégorie résidentielle 9
B73: +
A74: Taux sous-catégorie résidentielle 10 | B74: X | C74: Assiette imposable TB | E74: Recettes de taxes prélevées sur les
A75: =IF(G24>0,G24,1) -> 1.333 | C75: ='Sommaire du rôle'!P83 -> 761250103.7 | E75: valeurs soumises au taux sous-catégorie résidentielle 10
B76: +
A77: Taux INR | B77: X | C77: Assiette imposable TINR | E77: Recettes de taxes prélevées sur les
A78: =IF(G25>0,G25,1) -> 4.8 | C78: =IF('Sommaire du rôle'!F46>0,'Sommaire du rôle'!F77,'Sommaire du rôle'!F71) -> 120420639.1 | E78: valeurs soumises au taux INR ou de référence
B79: +
A80: Taux sous-catégorie non résidentielle 1 | B80: X | C80: Assiette imposable TB | E80: Recettes de taxes prélevées sur les
A81: =IF(G26>0,G26,IF($G$25>0,$G$25,1)) -> 4.8 | C81: ='Sommaire du rôle'!G77 -> 112404699.1 | E81: valeurs soumises au taux sous-catégorie non résidentielle 1
B82: +
A83: Taux sous-catégorie non résidentielle 2 | B83: X | C83: Assiette imposable TB | E83: Recettes de taxes prélevées sur les
A84: =IF(G27>0,G27,IF($G$25>0,$G$25,1)) -> 4.8 | C84: ='Sommaire du rôle'!H77 -> 112404699.1 | E84: valeurs soumises au taux sous-catégorie non résidentielle 2
B85: +
A86: Taux sous-catégorie non résidentielle 3 | B86: X | C86: Assiette imposable TB | E86: Recettes de taxes prélevées sur les
A87: =IF(G28>0,G28,IF($G$25>0,$G$25,1)) -> 4.8 | C87: ='Sommaire du rôle'!I77 -> 112404699.1 | E87: valeurs soumises au taux sous-catégorie non résidentielle 3
A89: Taux sous-catégorie non résidentielle 4 | B89: X | C89: Assiette imposable TB | E89: Recettes de taxes prélevées sur les
A90: =IF(G29>0,G29,IF($G$25>0,$G$25,1)) -> 4.8 | C90: ='Sommaire du rôle'!J77 -> 112404699.1 | E90: valeurs soumises au taux sous-catégorie non résidentielle 4
B91: +
A92: Taux sous-catégorie non résidentielle 5 | B92: X | C92: Assiette imposable TB | E92: Recettes de taxes prélevées sur les
A93: =IF(G30>0,G30,IF($G$25>0,$G$25,1)) -> 4.8 | C93: ='Sommaire du rôle'!K77 -> 112404699.1 | E93: valeurs soumises au taux sous-catégorie non résidentielle 5
B94: +
A95: Taux sous-catégorie non résidentielle 6 | B95: X | C95: Assiette imposable TB | E95: Recettes de taxes prélevées sur les
A96: =IF(G31>0,G31,IF($G$25>0,$G$25,1)) -> 4.8 | C96: ='Sommaire du rôle'!L77 -> 112404699.1 | E96: valeurs soumises au taux sous-catégorie non résidentielle 6
B97: +
A98: Taux sous-catégorie non résidentielle 7 | B98: X | C98: Assiette imposable TB | E98: Recettes de taxes prélevées sur les
A99: =IF(G32>0,G32,IF($G$25>0,$G$25,1)) -> 4.8 | C99: ='Sommaire du rôle'!M77 -> 112404699.1 | E99: valeurs soumises au taux sous-catégorie non résidentielle 7
B100: +
A101: Taux sous-catégorie non résidentielle 8 | B101: X | C101: Assiette imposable TB | E101: Recettes de taxes prélevées sur les
A102: =IF(G33>0,G33,IF($G$25>0,$G$25,1)) -> 4.8 | C102: ='Sommaire du rôle'!N77 -> 112404699.1 | E102: valeurs soumises au taux sous-catégorie non résidentielle 8
B103: +
A104: Taux sous-catégorie non résidentielle 9 | B104: X | C104: Assiette imposable TB | E104: Recettes de taxes prélevées sur les
A105: =IF(G34>0,G34,IF($G$25>0,$G$25,1)) -> 4.8 | C105: ='Sommaire du rôle'!O77 -> 112404699.1 | E105: valeurs soumises au taux sous-catégorie non résidentielle 9
B106: +
A107: Taux sous-catégorie non résidentielle 10 | B107: X | C107: Assiette imposable TB | E107: Recettes de taxes prélevées sur les
A108: =IF(G35>0,G35,IF($G$25>0,$G$25,1)) -> 4.8 | C108: ='Sommaire du rôle'!P77 -> 112404699.1 | E108: valeurs soumises au taux sous-catégorie non résidentielle 10
B109: +
A110: Taux IND | B110: X | C110: Assiette imposable TIND | E110: Recettes de taxes prélevées sur les
A111: =IF(G36>0,G36,IF($G$25>0,$G$25,1)) -> 5 | C111: ='Sommaire du rôle'!H71 -> 239376640 | E111: valeurs soumises au taux industriel
B112: +
A113: Taux TVD | B113: X | C113: Assiette imposable TVD | E113: Recettes de taxes prélevées sur les
A114: =IF(G37>0,G37,1) -> 4 | C114: ='Sommaire du rôle'!L23 -> 76716400 | E114: valeurs soumises au taux TVD
B115: +
A116: Taux forestier | B116: X | C116: Assiette imposable Taux forestier | E116: Recettes de taxes prélevées sur les
A117: =IF(G38>0,G38,1) -> 1 | C117: ='Sommaire du rôle'!N6 -> 50000000 | E117: valeurs soumises au taux forestier
B118: +
A119: Taux agricole | B119: X | C119: Assiette imposable Taux agricole | E119: Recettes de taxes prélevées sur les
A120: =IF(G39>0,G39,1) -> 1 | C120: ='Sommaire du rôle'!L6 -> 270604300 | E120: valeurs soumises au taux agricole
B121: +
A122: TTVD − TB | B122: X | C122: Assiette imposable TTVD − TB | E122: Recettes de taxes prélevées sur les
A123: =MAX(G37-1,0) -> 3 | C123: ='Sommaire du rôle'!L22 -> 5228300 | E123: valeurs soumises au TTVD − TB
B125: = | C125: =E9 -> 94624103 | E125: Recettes de la taxe foncière générale
A127: D'où : | B127: =C45+(A78*C78)+(A111*C111)+(A114*C114)+(A117*C117)+(A120*C120)+(A123*C123)+(A48*C48)+(A51*C51)+(A54*C54)+(A57*C57)+(A60*C60)+(A63*C63)+(A66*C66)+(A69*C69)+(A72*C72)+(A75*C75)+(A81*C81)+(A84*C84)+(A87*C87)+(A90*C90)+(A93*C93)+(A96*C96)+(A99*C99)+(A102*C102)+(A105*C105)+(A108*C108) -> 1.847985089e+10
B128: =
B129: =E9 -> 94624103
C131: soit TB | D131: = | E131: =B129 -> 94624103
E132: =B127 -> 1.847985089e+10
C134: TB | D134: = | E134: =E131/E132 -> 0.00512039321
C136: TB | D136: = | E136: =E134*100 -> 0.512039321 | F136: $/100$ | G136: =IF(K40>0,"AVERTISSEMENT: Un ou plusieurs taux sont invalides et ne respectent pas les règles de la LFM. Par conséquent, TB est erroné.","-") -> -
A138: TAUX en $ / 100 $ SELON LA CATÉGORIE D'IMMEUBLES | F138: (Voir onglet « Balises-Taux » pour plus de détails)
C139: Taux généré | E139: Balises des taux | G139: Validation du taux | H139: Explication
E140: Minimum | F140: Maximum
A141: TB (catégorie résiduelle ou sous-catégorie résiduelle) | B141: = | C141: =E136 -> 0.512039321 | G141: =IF(G136="-","-","ERRONÉ") -> - | H141: =IF(G141="ERRONÉ", "Non-respect de la LFM.","-") -> - | L141: =G169 -> 0.9217172071
A142: TSCR 1 | B142: = | C142: =IF('Sommaire du rôle'!H66>0,IF('Scénario-taux variés'!G15>0,'Scénario-taux variés'!G15*'Scénario-taux variés'!$C$141,$C$141),"-") -> 0.512039321 | E142: ='Balises-Taux'!$C$15 -> 0.3410181878 | F142: ='Balises-Taux'!$F$15 -> 0.6825484149 | G142: =I15 -> - | H142: =IF(G142="INVALIDE",IF(C142<E142,"Taux inférieur au minimum.","Taux supérieur au maximum."),"-") -> - | L142: =L141 -> 0.9217172071
A143: TSCR 2 | B143: = | C143: =IF('Sommaire du rôle'!J66>0,IF('Scénario-taux variés'!G16>0,'Scénario-taux variés'!G16*'Scénario-taux variés'!$C$141,$C$141),"-") -> 0.6825484149 | E143: ='Balises-Taux'!$C$15 -> 0.3410181878 | F143: ='Balises-Taux'!$F$15 -> 0.6825484149 | G143: =I16 -> - | H143: =IF(G143="INVALIDE",IF(C143<E143,"Taux inférieur au minimum.","Taux supérieur au maximum."),"-") -> - | L143: =L142 -> 0.9217172071
A144: TSCR 3 | B144: = | C144: =IF('Sommaire du rôle'!L66>0,IF('Scénario-taux variés'!G17>0,'Scénario-taux variés'!G17*'Scénario-taux variés'!$C$141,$C$141),"-") -> 0.6825484149 | E144: ='Balises-Taux'!$C$15 -> 0.3410181878 | F144: ='Balises-Taux'!$F$15 -> 0.6825484149 | G144: - | H144: - | L144: 0.9217172071
A145: TSCR 4 | B145: = | C145: =IF('Sommaire du rôle'!N66>0,IF('Scénario-taux variés'!G18>0,'Scénario-taux variés'!G18*'Scénario-taux variés'!$C$141,$C$141),"-") -> 0.6825484149 | E145: ='Balises-Taux'!$C$15 -> 0.3410181878 | F145: ='Balises-Taux'!$F$15 -> 0.6825484149 | G145: - | H145: - | L145: 0.9217172071
A146: TSCR 5 | B146: = | C146: =IF('Sommaire du rôle'!P66>0,IF('Scénario-taux variés'!G19>0,'Scénario-taux variés'!G19*'Scénario-taux variés'!$C$141,$C$141),"-") -> 0.6825484149 | E146: ='Balises-Taux'!$C$15 -> 0.3410181878 | F146: ='Balises-Taux'!$F$15 -> 0.6825484149 | G146: - | H146: - | L146: 0.9217172071
A147: TSCR 6 | B147: = | C147: =IF('Sommaire du rôle'!R66>0,IF('Scénario-taux variés'!G20>0,'Scénario-taux variés'!G20*'Scénario-taux variés'!$C$141,$C$141),"-") -> 0.6825484149 | E147: ='Balises-Taux'!$C$15 -> 0.3410181878 | F147: ='Balises-Taux'!$F$15 -> 0.6825484149 | G147: - | H147: - | L147: 0.9217172071
A148: TSCR 7 | B148: = | C148: =IF('Sommaire du rôle'!T66>0,IF('Scénario-taux variés'!G21>0,'Scénario-taux variés'!G21*'Scénario-taux variés'!$C$141,$C$141),"-") -> 0.6825484149 | E148: ='Balises-Taux'!$C$15 -> 0.3410181878 | F148: ='Balises-Taux'!$F$15 -> 0.6825484149 | G148: - | H148: - | L148: 0.9217172071
A149: TSCR 8 | B149: = | C149: =IF('Sommaire du rôle'!V66>0,IF('Scénario-taux variés'!G22>0,'Scénario-taux variés'!G22*'Scénario-taux variés'!$C$141,$C$141),"-") -> 0.6825484149 | E149: ='Balises-Taux'!$C$15 -> 0.3410181878 | F149: ='Balises-Taux'!$F$15 -> 0.6825484149 | G149: - | H149: - | L149: 0.9217172071
A150: TSCR 9 | B150: = | C150: =IF('Sommaire du rôle'!X66>0,IF('Scénario-taux variés'!G23>0,'Scénario-taux variés'!G23*'Scénario-taux variés'!$C$141,$C$141),"-") -> 0.6825484149 | E150: ='Balises-Taux'!$C$15 -> 0.3410181878 | F150: ='Balises-Taux'!$F$15 -> 0.6825484149 | G150: - | H150: - | L150: 0.9217172071
A151: TSCR 10 | B151: = | C151: =IF('Sommaire du rôle'!Z66>0,IF('Scénario-taux variés'!G24>0,'Scénario-taux variés'!G24*'Scénario-taux variés'!$C$141,$C$141),"-") -> 0.6825484149 | E151: ='Balises-Taux'!$C$15 -> 0.3410181878 | F151: ='Balises-Taux'!$F$15 -> 0.6825484149 | G151: - | H151: - | L151: 0.9217172071
A152: TINR (catégorie non résidentielle ou sous-catégorie de référence) | B152: = | C152: =IF('Sommaire du rôle'!F23>0,IF(G25>0,G25*C141,C141),"-") -> 2.457788741 | E152: ='Balises-Taux'!C17 -> 0.512039321 | F152: ='Balises-Taux'!F17 -> 2.457788741 | G152: ='Balises-Taux'!I17 -> - | H152: - | L152: 0.9217172071
A153: TSCNR 1 | B153: = | C153: =IF('Sommaire du rôle'!H46>0,IF(G26>0,G26*$C$141,IF($C$152>0,$C$152,$C$141)),"-") -> 2.457788741 | E153: =E152 -> 0.512039321 | F153: =F152 -> 2.457788741 | G153: =I26 -> - | H153: =IF(G153="INVALIDE",IF(C153<E153,"Taux inférieur au minimum.","Taux supérieur au maximum."),"-") -> - | L153: 0.9217172071
A154: TSCNR 2 | B154: = | C154: =IF('Sommaire du rôle'!J46>0,IF(G27>0,G27*$C$141,IF($C$152>0,$C$152,$C$141)),"-") -> 2.457788741 | E154: =E153 -> 0.512039321 | F154: =F153 -> 2.457788741 | G154: =I27 -> - | H154: =IF(G154="INVALIDE",IF(C154<E154,"Taux inférieur au minimum.","Taux supérieur au maximum."),"-") -> - | L154: 0.9217172071
A155: TSCNR 3 | B155: = | C155: =IF('Sommaire du rôle'!L46>0,IF(G28>0,G28*$C$141,IF($C$152>0,$C$152,$C$141)),"-") -> 2.457788741 | E155: 0.512039321 | F155: 2.457788741 | G155: - | H155: - | L155: 0.9217172071
A156: TSCNR 4 | B156: = | C156: =IF('Sommaire du rôle'!N46>0,IF(G29>0,G29*$C$141,IF($C$152>0,$C$152,$C$141)),"-") -> 2.457788741 | E156: 0.512039321 | F156: 2.457788741 | G156: - | H156: - | L156: 0.9217172071
A157: TSCNR 5 | B157: = | C157: =IF('Sommaire du rôle'!P46>0,IF(G30>0,G30*$C$141,IF($C$152>0,$C$152,$C$141)),"-") -> 2.457788741 | E157: 0.512039321 | F157: 2.457788741 | G157: - | H157: - | L157: 0.9217172071
A158: TSCNR 6 | B158: = | C158: =IF('Sommaire du rôle'!R46>0,IF(G31>0,G31*$C$141,IF($C$152>0,$C$152,$C$141)),"-") -> 2.457788741 | E158: 0.512039321 | F158: 2.457788741 | G158: - | H158: - | L158: 0.9217172071
A159: TSCNR 7 | B159: = | C159: =IF('Sommaire du rôle'!T46>0,IF(G32>0,G32*$C$141,IF($C$152>0,$C$152,$C$141)),"-") -> 2.457788741 | E159: 0.512039321 | F159: 2.457788741 | G159: - | H159: - | L159: 0.9217172071
A160: TSCNR 8 | B160: = | C160: =IF('Sommaire du rôle'!V46>0,IF(G33>0,G33*$C$141,IF($C$152>0,$C$152,$C$141)),"-") -> 2.457788741 | E160: 0.512039321 | F160: 2.457788741 | G160: - | H160: - | L160: 0.9217172071
A161: TSCNR 9 | B161: = | C161: =IF('Sommaire du rôle'!X46>0,IF(G34>0,G34*$C$141,IF($C$152>0,$C$152,$C$141)),"-") -> 2.457788741 | E161: 0.512039321 | F161: 2.457788741 | G161: - | H161: - | L161: 0.9217172071
A162: TSCNR 10 | B162: = | C162: =IF('Sommaire du rôle'!Z46>0,IF(G35>0,G35*$C$141,IF($C$152>0,$C$152,$C$141)),"-") -> 2.457788741 | E162: 0.512039321 | F162: 2.457788741 | G162: - | H162: - | L162: =L152 -> 0.9217172071
A163: TIND | B163: = | C163: =IF('Sommaire du rôle'!I23>0,IF(G36>0,A111*C141,IF(C152>0,C152,C141)),"-") -> 2.560196605 | E163: ='Balises-Taux'!C27 -> 1.636887301 | F163: ='Balises-Taux'!F27 -> 2.560196605 | G163: ='Balises-Taux'!I27 -> - | H163: ='Balises-Taux'!J27 -> - | L163: 0.9217172071
A164: TTVD | B164: = | C164: =IF(('Sommaire du rôle'!F22+'Sommaire du rôle'!G22+'Sommaire du rôle'!L23+'Sommaire du rôle'!N23>0),IF(G37>0,G37*C141,C141),"-") -> 2.048157284 | E164: ='Balises-Taux'!C30 -> 0.512039321 | F164: ='Balises-Taux'!F30 -> 2.048157284 | G164: ='Balises-Taux'!I30 -> - | H164: ='Balises-Taux'!J30 -> - | L164: 0.9217172071
A165: TFOREST | B165: = | C165: =IF('Sommaire du rôle'!N6>0,IF(G38>0,G38*C141,C141),"-") -> 0.512039321 | E165: ='Balises-Taux'!C32 -> 0.3410181878 | F165: ='Balises-Taux'!F32 -> 0.512039321 | G165: ='Balises-Taux'!I32 -> - | H165: ='Balises-Taux'!J32 -> - | L165: 0.9217172071
A166: TAGRI | B166: = | C166: =IF('Sommaire du rôle'!L6>0,IF(G39>0,G39*C141,C141),"-") -> 0.512039321 | E166: ='Balises-Taux'!C34 -> 0.3410181878 | F166: ='Balises-Taux'!F34 -> 0.512039321 | G166: ='Balises-Taux'!I34 -> - | H166: ='Balises-Taux'!J34 -> - | L166: 0.9217172071
A167: (TTVD − TB) | B167: = | C167: =IF(AND(C164>0,('Sommaire du rôle'!F22+'Sommaire du rôle'!G22)>0),C164-C141,"-") -> 1.536117963 | L167: 0.9217172071
A169: Si la municipalité n'utilise pas de taux variés, le taux unique sera : | G169: =(F221/C221)*100 -> 0.9217172071 | H169: $/100$
A190: ASSIETTES IMPOSABLES ET RECETTES
C191: Assiettes imposables | E191: Part des assiettes imposables | F191: Recettes | G191: Part des recettes | H191: Écart des recettes avec taux variés vs taux unique
A192: Résiduelle ou sous-catégorie résiduelle | B192: = | C192: =C45 -> 772400663.7 | E192: =C192/C$221 -> 0.07523822789 | F192: =IF(C192>0,IF(G141="INVALIDE","ERREUR",C192*C141/100),0) -> 3954995.114 | G192: =F192/F$221 -> 0.04179690997 | H192: =F192-(F$221*E192) -> -3164354.711
A193: Sous-catégorie résidentielle 1 | B193: = | C193: =C48 -> 761250103.7 | E193: =C193/C$221 -> 0.07415207091 | F193: 3897899.862 | G193: =F193/F$221 -> 0.04119351982 | H193: =F193-(F$221*E193) -> -3118673.333
A194: Sous-catégorie résidentielle 2 | B194: = | C194: =C51 -> 761250103.7 | E194: 0.07415207091 | F194: 5195900.516 | G194: 0.05491096192 | H194: -1820672.679
A195: Sous-catégorie résidentielle 3 | B195: = | C195: =C54 -> 761250103.7 | E195: 0.07415207091 | F195: 5195900.516 | G195: 0.05491096192 | H195: -1820672.679
A196: Sous-catégorie résidentielle 4 | B196: = | C196: =C57 -> 761250103.7 | E196: 0.07415207091 | F196: 5195900.516 | G196: 0.05491096192 | H196: -1820672.679
A197: Sous-catégorie résidentielle 5 | B197: = | C197: =C60 -> 761250103.7 | E197: 0.07415207091 | F197: 5195900.516 | G197: 0.05491096192 | H197: -1820672.679
A198: Sous-catégorie résidentielle 6 | B198: = | C198: =C63 -> 761250103.7 | E198: 0.07415207091 | F198: 5195900.516 | G198: 0.05491096192 | H198: -1820672.679
A199: Sous-catégorie résidentielle 7 | B199: = | C199: =C66 -> 761250103.7 | E199: 0.07415207091 | F199: 5195900.516 | G199: 0.05491096192 | H199: -1820672.679
A200: Sous-catégorie résidentielle 8 | B200: = | C200: =C69 -> 761250103.7 | E200: 0.07415207091 | F200: 5195900.516 | G200: 0.05491096192 | H200: -1820672.679
A201: Sous-catégorie résidentielle 9 | B201: = | C201: =C72 -> 761250103.7 | E201: 0.07415207091 | F201: 5195900.516 | G201: 0.05491096192 | H201: -1820672.679
A202: Sous-catégorie résidentielle 10 | B202: = | C202: =C75 -> 761250103.7 | E202: 0.07415207091 | F202: 5195900.516 | G202: 0.05491096192 | H202: -1820672.679
A203: Non résidentielle ou sous-catégorie de référence | B203: = | C203: =C78 -> 120420639.1 | E203: =C203/C$221 -> 0.01172996854 | F203: 2959684.909 | G203: =F203/F$221 -> 0.03127834046 | H203: =F203-(F$221*E203) -> 1849747.158
A204: Sous-catégorie non résidentielle 1 | B204: = | C204: =C81 -> 112404699.1 | E204: =C204/C$221 -> 0.01094914953 | F204: 2762670.039 | G204: =F204/F$221 -> 0.02919626132 | H204: =F204-(F$221*E204) -> 1726616.585
A205: Sous-catégorie non résidentielle 2 | B205: = | C205: =C84 -> 112404699.1 | E205: 0.01094914953 | F205: 2762670.039 | G205: 0.02919626132 | H205: 1726616.585
A206: Sous-catégorie non résidentielle 3 | B206: = | C206: =C87 -> 112404699.1 | E206: 0.01094914953 | F206: 2762670.039 | G206: 0.02919626132 | H206: 1726616.585
A207: Sous-catégorie non résidentielle 4 | B207: = | C207: =C90 -> 112404699.1 | E207: 0.01094914953 | F207: 2762670.039 | G207: 0.02919626132 | H207: 1726616.585
A208: Sous-catégorie non résidentielle 5 | B208: = | C208: =C93 -> 112404699.1 | E208: 0.01094914953 | F208: 2762670.039 | G208: 0.02919626132 | H208: 1726616.585
A209: Sous-catégorie non résidentielle 6 | B209: = | C209: =C96 -> 112404699.1 | E209: 0.01094914953 | F209: 2762670.039 | G209: 0.02919626132 | H209: 1726616.585
A210: Sous-catégorie non résidentielle 7 | B210: = | C210: =C99 -> 112404699.1 | E210: 0.01094914953 | F210: 2762670.039 | G210: 0.02919626132 | H210: 1726616.585
A211: Sous-catégorie non résidentielle 8 | B211: = | C211: =C102 -> 112404699.1 | E211: 0.01094914953 | F211: 2762670.039 | G211: 0.02919626132 | H211: 1726616.585
A212: Sous-catégorie non résidentielle 9 | B212: = | C212: =C105 -> 112404699.1 | E212: 0.01094914953 | F212: 2762670.039 | G212: 0.02919626132 | H212: 1726616.585
A213: Sous-catégorie non résidentielle 10 | B213: = | C213: =C108 -> 112404699.1 | E213: 0.01094914953 | F213: 2762670.039 | G213: 0.02919626132 | H213: 1726616.585
A214: Industrielle | B214: = | C214: =C111 -> 239376640 | E214: =C214/C$221 -> 0.02331726918 | F214: 6128512.61 | G214: =F214/F$221 -> 0.06476692953 | H214: =F214-(F$221*E214) -> 3922136.93
A215: Terrains vagues desservis | B215: = | C215: =C114 -> 76716400 | E215: =C215/C$221 -> 0.007472813343 | F215: 1571272.535 | G215: =F215/F$221 -> 0.01660541537 | H215: =F215-(F$221*E215) -> 864164.2752
A216: Forestier | B216: = | C216: =C117 -> 50000000 | E216: =C216/C$221 -> 0.004870414503 | F216: 256019.6605 | G216: =F216/F$221 -> 0.002705649537 | H216: =F216-(F$221*E216) -> -204838.9431
A217: Agricole | B217: = | C217: =C120 -> 270604300 | E217: =C217/C$221 -> 0.02635910214 | F217: 1385600.42 | G217: =F217/F$221 -> 0.01464320798 | H217: =F217-(F$221*E217) -> -1108605.976
A218: TTVD − TB | B218: = | F218: =IF(A220>0,A220*C167/100,0) -> 80312.85546 | G218: =F218/F221 -> 0.0008487568486 | H218: =F218 -> 80312.85546
A219: Assiette imposable
A220: =C123 -> 5228300
A221: Total | C221: =SUM(C192:C217) -> 1.026606667e+10 | E221: =SUM(E192:E217) -> 1 | F221: =IF(K40>0,"ERREUR",SUM(F192:F217,F218)) -> 94624103 | G221: =SUM(G192:G218) -> 1 | H221: =SUM(H192:H218) -> 5.266338121e-08

Sheet Balises-Taux
A1: Nom du scénario | B1: ='Scénario-taux variés'!E10 -> Scénario 1
A2: Population de la municipalité | B2: ='Scénario-taux variés'!E8 -> 1000000 | C2: habitants
A3: DÉTERMINATION DES COEFFICIENTS DU TAUX DE BASE POUR LES IMMEUBLES NON RÉSIDENTIELS ET INDUSTRIELS
B4: Coefficient non résidentiel | E4: Coefficient industriel
A5: Population de la municipalité | B5: Coefficient du taux de base | C5: Coefficient à retenir | E5: Coefficient du taux de base | F5: Coefficient à retenir
A6: Moins de 5 000 habitants | B6: 4.1 | C6: =IF($B$2<5000,B6,"-") -> - | E6: 4.5 | F6: =IF($B$2<5000,E6,"-") -> -
A7: De 5 000 à 99 999 habitants | B7: 4.4 | C7: =IF(AND($B$2>=5000,$B$2<=99999),B7,"-") -> - | E7: 5 | F7: =IF(AND($B$2>=5000,$B$2<=99999),E7,"-") -> -
A8: De 100 000 à 199 999 habitants | B8: 4.45 | C8: =IF(AND($B$2>=100000,$B$2<=199999),B8,"-") -> - | E8: 5 | F8: =IF(AND($B$2>=100000,$B$2<=199999),E8,"-") -> -
A9: 200 000 habitants et plus | B9: 4.8 | C9: =IF($B$2>=200000,B9,"-") -> 4.8 | E9: 5 | F9: =IF($B$2>=200000,E9,"-") -> 5
A10: Coefficient correspondant à la taille de la municipalité | B10: =SUM(C6:C9) -> 4.8 | E10: =SUM(F6:F9) -> 5
A12: TAUX EN $ PAR 100 $ D'ÉVALUATION SELON LA CATÉGORIE D'IMMEUBLES
B13: Minimum | E13: Maximum | H13: Taux choisi | I13: Validation du taux | J13: Explication
A14: Taux de base (TB) | H14: ='Scénario-taux variés'!C141 -> 0.512039321 | I14: ='Scénario-taux variés'!G141 -> - | J14: ='Scénario-taux variés'!H141 -> -
A15: Taux sous-catégorie résidentielle | B15: TB X 66,6% | C15: =0.666*H14 -> 0.3410181878 | E15: TB X 133,3% | F15: =H14*1.333 -> 0.6825484149
A17: Taux non résidentiel ou référence (TINR) | B17: TB | C17: =IF('Sommaire du rôle'!F23>0,H14,"-") -> 0.512039321 | E17: TB X Coefficient non résidentiel | F17: =IF('Sommaire du rôle'!F23>0,H14*B10,"-") -> 2.457788741 | H17: ='Scénario-taux variés'!C152 -> 2.457788741 | I17: =IF(AND(C17<=H17,F17>=H17),"-","INVALIDE") -> - | J17: =IF(I17="INVALIDE",IF(H17<C17,"Taux inférieur au minimum.","Taux supérieur au maximum."),"-") -> -
A18: Taux sous-catégorie non résidentielle | B18: TB | C18: =H14 -> 0.512039321 | E18: TB X Coefficient non résidentiel | F18: =F17 -> 2.457788741
B19: TINR X 66,6 % | C19: =H17*0.666 -> 1.636887301 | E19: TINR X 133,3 % | F19: =H17*1.333 -> 3.276232391
B20: Plus grand entre les deux balises | C20: =IF('Sommaire du rôle'!F23>0,MAX(C18:C19),"-") -> 1.636887301 | E20: Plus petit entre les deux balises | F20: =IF('Sommaire du rôle'!F23>0,MIN(F18:F19),"-") -> 2.457788741
A24: Taux industriel (TIND)
B25: TB | C25: =IF('Sommaire du rôle'!I23>0,H14,"-") -> 0.512039321 | E25: TB X Coefficient industriel | F25: =IF('Sommaire du rôle'!I23>0,H14*E10,"-") -> 2.560196605
B26: TINR X 66,6 % | C26: =IF('Sommaire du rôle'!I23>0,H17*0.666,"-") -> 1.636887301 | E26: TINR X 133,3 % | F26: =IF('Sommaire du rôle'!I23>0,H17*1.333,"-") -> 3.276232391
B27: Plus grand entre les deux balises | C27: =IF(AND('Sommaire du rôle'!F23>0,'Sommaire du rôle'!I23>0),MAX(C25:C26),"-") -> 1.636887301 | E27: Plus petit entre les deux balises | F27: =IF(AND('Sommaire du rôle'!F23>0,'Sommaire du rôle'!I23>0),MIN(F25:F26),"-") -> 2.560196605 | H27: ='Scénario-taux variés'!C163 -> 2.560196605 | I27: =IF(AND(C27<=H27,F27>=H27),"-","INVALIDE") -> - | J27: =IF(I27="INVALIDE",IF(H27<C27,"Taux inférieur au minimum.","Taux supérieur au maximum."),"-") -> -
B28: =IF(C27>F27,"AVERTISSEMENT: TINR génère une incohérence dans les balises du TIND.","") -> 
A30: Taux des terrains vagues desservis (TTVD) | B30: TB | C30: =IF(('Sommaire du rôle'!F22+'Sommaire du rôle'!G22+'Sommaire du rôle'!L23+'Sommaire du rôle'!N23)>0,H14,"-") -> 0.512039321 | E30: TB X 4 | F30: =IF(('Sommaire du rôle'!F22+'Sommaire du rôle'!G22+'Sommaire du rôle'!L23+'Sommaire du rôle'!N23)>0,H14*4,"-") -> 2.048157284 | H30: ='Scénario-taux variés'!C164 -> 2.048157284 | I30: =IF(AND(C30<=H30,F30>=H30),"-","INVALIDE") -> - | J30: =IF(I30="INVALIDE",IF(H30<C30,"Taux inférieur au minimum.","Taux supérieur au maximum."),"-") -> -
A32: Taux des immeubles forestiers (TFOREST) | B32: TB X 66,6% | C32: =IF('Sommaire du rôle'!N6>0,H14*0.666,"-") -> 0.3410181878 | E32: TB | F32: =IF('Sommaire du rôle'!N6>0,H14,"-") -> 0.512039321 | H32: ='Scénario-taux variés'!C165 -> 0.512039321 | I32: =IF(AND(C32<=H32,F32>=H32),"-","INVALIDE") -> - | J32: =IF(I32="INVALIDE",IF(H32<C32,"Taux inférieur au minimum.","Taux supérieur au maximum."),"-") -> -
A34: Taux des immeubles agricoles (TAGRI) | B34: TB X 66,6% | C34: =IF('Sommaire du rôle'!L6>0,H14*0.666,"-") -> 0.3410181878 | E34: TB | F34: =IF('Sommaire du rôle'!L6>0,H14,"-") -> 0.512039321 | H34: ='Scénario-taux variés'!C166 -> 0.512039321 | I34: =IF(AND(C34<=H34,F34>=H34),"-","INVALIDE") -> - | J34: =IF(I34="INVALIDE",IF(H34<C34,"Taux inférieur au minimum.","Taux supérieur au maximum."),"-") -> -

Sheet Taux_max_balises (hidden)
A3: CHOIX DES COEFFICIENTS SELON LES BALISES ET CALCUL DU TAUX DE BASE
A4: Il faut remplir les cases ombragées (motif à points) pour faire fonctionner le simulateur.
A5: Note : Les assiettes de taxation du modèle n'incluent que les valeurs imposables.
A7: Nom de la municipalité = | F7: Année: | G7: 2024
A8: Population de la municipalité ou de l'agglomération, s'il y a lieu = | E8: 100000 | F8: habitants
A9: Recettes de la taxe foncière générale = | E9: 94624103 | F9: (prévues au budget)
A10: Nom du scénario =
A12: MULTIPLES DU TAUX DE BASE
E13: Balises des coefficients par rapport au taux de base (TB) | G13: Choisir un coefficient par rapport au taux de base
E14: Minimum | F14: Maximum
A15: Taux sous-catégorie résidentielle 1 (TSCR 1) | E15: ='Scénario-taux variés'!E15 -> 0.666 | F15: ='Scénario-taux variés'!F15 -> 1.333 | G15: =F15 -> 1.333 | H15: X TB
A16: Taux sous-catégorie résidentielle 2 (TSCR 2) | E16: ='Scénario-taux variés'!E16 -> 0.666 | F16: ='Scénario-taux variés'!F16 -> 1.333 | G16: =F16 -> 1.333 | H16: X TB
A17: Taux sous-catégorie résidentielle 3 (TSCR 3) | E17: ='Scénario-taux variés'!E17 -> 0.666 | F17: ='Scénario-taux variés'!F17 -> 1.333 | G17: 1.333 | H17: X TB
A18: Taux sous-catégorie résidentielle 4 (TSCR 4) | E18: ='Scénario-taux variés'!E18 -> 0.666 | F18: ='Scénario-taux variés'!F18 -> 1.333 | G18: 1.333 | H18: X TB
A19: Taux sous-catégorie résidentielle 5 (TSCR 5) | E19: ='Scénario-taux variés'!E19 -> 0.666 | F19: ='Scénario-taux variés'!F19 -> 1.333 | G19: 1.333 | H19: X TB
A20: Taux sous-catégorie résidentielle 6 (TSCR 6) | E20: ='Scénario-taux variés'!E20 -> 0.666 | F20: ='Scénario-taux variés'!F20 -> 1.333 | G20: 1.333 | H20: X TB
A21: Taux sous-catégorie résidentielle 7 (TSCR 7) | E21: ='Scénario-taux variés'!E21 -> 0.666 | F21: ='Scénario-taux variés'!F21 -> 1.333 | G21: 1.333 | H21: X TB
A22: Taux sous-catégorie résidentielle 8 (TSCR 8) | E22: ='Scénario-taux variés'!E22 -> 0.666 | F22: ='Scénario-taux variés'!F22 -> 1.333 | G22: 1.333 | H22: X TB
A23: Taux sous-catégorie résidentielle 9 (TSCR 9) | E23: ='Scénario-taux variés'!E23 -> 0.666 | F23: ='Scénario-taux variés'!F23 -> 1.333 | G23: 1.333 | H23: X TB
A24: Taux sous-catégorie résidentielle 10 (TSCR 10) | E24: ='Scénario-taux variés'!E24 -> 0.666 | F24: ='Scénario-taux variés'!F24 -> 1.333 | G24: 1.333 | H24: X TB
A25: Taux non résidentiel ou sous-catégorie de référence (TINR) | E25: ='Scénario-taux variés'!E25 -> 1 | F25: ='Scénario-taux variés'!F25 -> 4.8 | G25: 4.8 | H25: X TB
A26: Taux sous-catégorie non résidentielle 1 (TSCNR 1) | E26: ='Balises taux_max_balises'!$C$22/'Balises taux_max_balises'!$H$14 -> 3.1968 | F26: =F25 -> 4.8 | G26: 4.8 | H26: X TB
A27: Taux sous-catégorie non résidentielle 2 (TSCNR 2) | E27: ='Balises taux_max_balises'!$C$22/'Balises taux_max_balises'!$H$14 -> 3.1968 | F27: =F26 -> 4.8 | G27: 4.8 | H27: X TB
A28: Taux sous-catégorie non résidentielle 3 (TSCNR 3) | E28: ='Balises taux_max_balises'!$C$22/'Balises taux_max_balises'!$H$14 -> 3.1968 | F28: 4.8 | G28: 4.8 | H28: X TB
A29: Taux sous-catégorie non résidentielle 4 (TSCNR 4) | E29: ='Balises taux_max_balises'!$C$22/'Balises taux_max_balises'!$H$14 -> 3.1968 | F29: 4.8 | G29: 4.8 | H29: X TB
A30: Taux sous-catégorie non résidentielle 5 (TSCNR 5) | E30: ='Balises taux_max_balises'!$C$22/'Balises taux_max_balises'!$H$14 -> 3.1968 | F30: 4.8 | G30: 4.8 | H30: X TB
A31: Taux sous-catégorie non résidentielle 6 (TSCNR 6) | E31: ='Balises taux_max_balises'!$C$22/'Balises taux_max_balises'!$H$14 -> 3.1968 | F31: 4.8 | G31: 4.8 | H31: X TB
A32: Taux sous-catégorie non résidentielle 7 (TSCNR 7) | E32: ='Balises taux_max_balises'!$C$22/'Balises taux_max_balises'!$H$14 -> 3.1968 | F32: 4.8 | G32: 4.8 | H32: X TB
A33: Taux sous-catégorie non résidentielle 8 (TSCNR 8) | E33: ='Balises taux_max_balises'!$C$22/'Balises taux_max_balises'!$H$14 -> 3.1968 | F33: 4.8 | G33: 4.8 | H33: X TB
A34: Taux sous-catégorie non résidentielle 9 (TSCNR 9) | E34: ='Balises taux_max_balises'!$C$22/'Balises taux_max_balises'!$H$14 -> 3.1968 | F34: 4.8 | G34: 4.8 | H34: X TB
A35: Taux sous-catégorie non résidentielle 10 (TSCNR 10) | E35: ='Balises taux_max_balises'!$C$22/'Balises taux_max_balises'!$H$14 -> 3.1968 | F35: 4.8 | G35: 4.8 | H35: X TB
A36: Taux industriel (TIND) | E36: ='Balises taux_max_balises'!$C$22/'Balises taux_max_balises'!$H$14 -> 3.1968 | F36: ='Balises taux_max_balises'!E10 -> 5 | G36: 5 | H36: X TB
A37: Taux des terrains vagues desservis (TTVD) | E37: ='Scénario-taux variés'!E37 -> 1 | F37: ='Scénario-taux variés'!F37 -> 4 | G37: 4 | H37: X TB
A38: Taux forestier (TFOREST) | E38: ='Scénario-taux variés'!E38 -> 0.666 | F38: ='Scénario-taux variés'!F38 -> 1 | G38: 1 | H38: X TB
A39: Taux agricole (TAGRI) | E39: ='Scénario-taux variés'!E39 -> 0.666 | F39: ='Scénario-taux variés'!F39 -> 1 | G39: 1 | H39: X TB
B40: = dépend du taux non résidentiel ou du taux de la sous-catégorie de référence
A42: D'où :
A44: Taux de base | B44: X | C44: Assiette imposable TB | E44: Recettes de taxes prélevées sur les
A45: TB | C45: =IF('Sommaire du rôle'!F66>0,'Sommaire du rôle'!F83,'Sommaire du rôle'!O71) -> 772400663.7 | E45: valeurs soumises au taux de base (catégorie résiduelle ou sous-catégorie résiduelle)
B46: +
A47: Taux sous-catégorie résidentielle 1 | B47: X | C47: Assiette imposable TB | E47: Recettes de taxes prélevées sur les
A48: =IF(G15>0,G15,1) -> 1.333 | C48: ='Sommaire du rôle'!G83 -> 761250103.7 | E48: valeurs soumises au taux sous-catégorie résidentielle 1
B49: +
A50: Taux sous-catégorie résidentielle 2 | B50: X | C50: Assiette imposable TB | E50: Recettes de taxes prélevées sur les
A51: =IF(G16>0,G16,1) -> 1.333 | C51: ='Sommaire du rôle'!H83 -> 761250103.7 | E51: valeurs soumises au taux sous-catégorie résidentielle 2
B52: +
A53: Taux sous-catégorie résidentielle 3 | B53: X | C53: Assiette imposable TB | E53: Recettes de taxes prélevées sur les
A54: =IF(G17>0,G17,1) -> 1.333 | C54: ='Sommaire du rôle'!I83 -> 761250103.7 | E54: valeurs soumises au taux sous-catégorie résidentielle 3
A56: Taux sous-catégorie résidentielle 4 | B56: X | C56: Assiette imposable TB | E56: Recettes de taxes prélevées sur les
A57: =IF(G18>0,G18,1) -> 1.333 | C57: ='Sommaire du rôle'!J83 -> 761250103.7 | E57: valeurs soumises au taux sous-catégorie résidentielle 4
B58: +
A59: Taux sous-catégorie résidentielle 5 | B59: X | C59: Assiette imposable TB | E59: Recettes de taxes prélevées sur les
A60: =IF(G19>0,G19,1) -> 1.333 | C60: ='Sommaire du rôle'!K83 -> 761250103.7 | E60: valeurs soumises au taux sous-catégorie résidentielle 5
B61: +
A62: Taux sous-catégorie résidentielle 6 | B62: X | C62: Assiette imposable TB | E62: Recettes de taxes prélevées sur les
A63: =IF(G20>0,G20,1) -> 1.333 | C63: ='Sommaire du rôle'!L83 -> 761250103.7 | E63: valeurs soumises au taux sous-catégorie résidentielle 6
B64: +
A65: Taux sous-catégorie résidentielle 7 | B65: X | C65: Assiette imposable TB | E65: Recettes de taxes prélevées sur les
A66: =IF(G21>0,G21,1) -> 1.333 | C66: ='Sommaire du rôle'!M83 -> 761250103.7 | E66: valeurs soumises au taux sous-catégorie résidentielle 7
B67: +
A68: Taux sous-catégorie résidentielle 8 | B68: X | C68: Assiette imposable TB | E68: Recettes de taxes prélevées sur les
A69: =IF(G22>0,G22,1) -> 1.333 | C69: ='Sommaire du rôle'!N83 -> 761250103.7 | E69: valeurs soumises au taux sous-catégorie résidentielle 8
B70: +
A71: Taux sous-catégorie résidentielle 9 | B71: X | C71: Assiette imposable TB | E71: Recettes de taxes prélevées sur les
A72: =IF(G23>0,G23,1) -> 1.333 | C72: ='Sommaire du rôle'!O83 -> 761250103.7 | E72: valeurs soumises au taux sous-catégorie résidentielle 9
B73: +
A74: Taux sous-catégorie résidentielle 10 | B74: X | C74: Assiette imposable TB | E74: Recettes de taxes prélevées sur les
A75: =IF(G24>0,G24,1) -> 1.333 | C75: ='Sommaire du rôle'!P83 -> 761250103.7 | E75: valeurs soumises au taux sous-catégorie résidentielle 10
B76: +
A77: Taux INR | B77: X | C77: Assiette imposable TINR | E77: Recettes de taxes prélevées sur les
A78: =IF(G25>0,G25,1) -> 4.8 | C78: =IF('Sommaire du rôle'!F46>0,'Sommaire du rôle'!F77,'Sommaire du rôle'!F71) -> 120420639.1 | E78: valeurs soumises au taux INR ou de référence
B79: +
A80: Taux sous-catégorie non résidentielle 1 | B80: X | C80: Assiette imposable TB | E80: Recettes de taxes prélevées sur les
A81: =IF(G26>0,G26,IF($G$25>0,$G$25,1)) -> 4.8 | C81: ='Sommaire du rôle'!G77 -> 112404699.1 | E81: valeurs soumises au taux sous-catégorie non résidentielle 1
B82: +
A83: Taux sous-catégorie non résidentielle 2 | B83: X | C83: Assiette imposable TB | E83: Recettes de taxes prélevées sur les
A84: =IF(G27>0,G27,IF($G$25>0,$G$25,1)) -> 4.8 | C84: ='Sommaire du rôle'!H77 -> 112404699.1 | E84: valeurs soumises au taux sous-catégorie non résidentielle 2
B85: +
A86: Taux sous-catégorie non résidentielle 3 | B86: X | C86: Assiette imposable TB | E86: Recettes de taxes prélevées sur les
A87: =IF(G28>0,G28,IF($G$25>0,$G$25,1)) -> 4.8 | C87: ='Sommaire du rôle'!I77 -> 112404699.1 | E87: valeurs soumises au taux sous-catégorie non résidentielle 3
A89: Taux sous-catégorie non résidentielle 4 | B89: X | C89: Assiette imposable TB | E89: Recettes de taxes prélevées sur les
A90: =IF(G29>0,G29,IF($G$25>0,$G$25,1)) -> 4.8 | C90: ='Sommaire du rôle'!J77 -> 112404699.1 | E90: valeurs soumises au taux sous-catégorie non résidentielle 4
B91: +
A92: Taux sous-catégorie non résidentielle 5 | B92: X | C92: Assiette imposable TB | E92: Recettes de taxes prélevées sur les
A93: =IF(G30>0,G30,IF($G$25>0,$G$25,1)) -> 4.8 | C93: ='Sommaire du rôle'!K77 -> 112404699.1 | E93: valeurs soumises au taux sous-catégorie non résidentielle 5
B94: +
A95: Taux non sous-catégorie non résidentielle 6 | B95: X | C95: Assiette imposable TB | E95: Recettes de taxes prélevées sur les
A96: =IF(G31>0,G31,IF($G$25>0,$G$25,1)) -> 4.8 | C96: ='Sommaire du rôle'!L77 -> 112404699.1 | E96: valeurs soumises au taux sous-catégorie non résidentielle 6
B97: +
A98: Taux non sous-catégorie non résidentielle 7 | B98: X | C98: Assiette imposable TB | E98: Recettes de taxes prélevées sur les
A99: =IF(G32>0,G32,IF($G$25>0,$G$25,1)) -> 4.8 | C99: ='Sommaire du rôle'!M77 -> 112404699.1 | E99: valeurs soumises au taux sous-catégorie non résidentielle 7
B100: +
A101: Taux non sous-catégorie non résidentielle 8 | B101: X | C101: Assiette imposable TB | E101: Recettes de taxes prélevées sur les
A102: =IF(G33>0,G33,IF($G$25>0,$G$25,1)) -> 4.8 | C102: ='Sommaire du rôle'!N77 -> 112404699.1 | E102: valeurs soumises au taux sous-catégorie non résidentielle 8
B103: +
A104: Taux non sous-catégorie non résidentielle 9 | B104: X | C104: Assiette imposable TB | E104: Recettes de taxes prélevées sur les
A105: =IF(G34>0,G34,IF($G$25>0,$G$25,1)) -> 4.8 | C105: ='Sommaire du rôle'!O77 -> 112404699.1 | E105: valeurs soumises au taux sous-catégorie non résidentielle 9
B106: +
A107: Taux non sous-catégorie non résidentielle 10 | B107: X | C107: Assiette imposable TB | E107: Recettes de taxes prélevées sur les
A108: =IF(G35>0,G35,IF($G$25>0,$G$25,1)) -> 4.8 | C108: ='Sommaire du rôle'!P77 -> 112404699.1 | E108: valeurs soumises au taux sous-catégorie non résidentielle 10
B109: +
A110: Taux IND | B110: X | C110: Assiette imposable TIND | E110: Recettes de taxes prélevées sur les
A111: =IF(G36>0,G36,IF($G$25>0,$G$25,1)) -> 5 | C111: ='Sommaire du rôle'!H71 -> 239376640 | E111: valeurs soumises au taux industriel
B112: +
A113: Taux TVD | B113: X | C113: Assiette imposable TVD | E113: Recettes de taxes prélevées sur les
A114: =IF(G37>0,G37,1) -> 4 | C114: ='Sommaire du rôle'!L23 -> 76716400 | E114: valeurs soumises au taux TVD
B115: +
A116: Taux forestier | B116: X | C116: Assiette imposable Taux forestier | E116: Recettes de taxes prélevées sur les
A117: =IF(G38>0,G38,1) -> 1 | C117: ='Sommaire du rôle'!N6 -> 50000000 | E117: valeurs soumises au taux forestier
B118: +
A119: Taux agricole | B119: X | C119: Assiette imposable Taux agricole | E119: Recettes de taxes prélevées sur les
A120: =IF(G39>0,G39,1) -> 1 | C120: ='Sommaire du rôle'!L6 -> 270604300 | E120: valeurs soumises au taux agricole
B121: +
A122: TTVD − TB | B122: X | C122: Assiette imposable TTVD − TB | E122: Recettes de taxes prélevées sur les
A123: =MAX(G37-1,0) -> 3 | C123: ='Sommaire du rôle'!L22 -> 5228300 | E123: valeurs soumises au TTVD − TB
B125: = | C125: =E9 -> 94624103 | E125: Recettes de la taxe foncière générale
A127: D'où : | B127: =C45+(A78*C78)+(A111*C111)+(A114*C114)+(A117*C117)+(A120*C120)+(A123*C123)+(A48*C48)+(A51*C51)+(A54*C54)+(A57*C57)+(A60*C60)+(A63*C63)+(A66*C66)+(A69*C69)+(A72*C72)+(A75*C75)+(A81*C81)+(A84*C84)+(A87*C87)+(A90*C90)+(A93*C93)+(A96*C96)+(A99*C99)+(A102*C102)+(A105*C105)+(A108*C108) -> 1.873334717e+10
B128: =
B129: =E9 -> 94624103
C131: soit TB | D131: = | E131: =B129 -> 94624103
E132: =B127 -> 1.873334717e+10
C134: TB | D134: = | E134: =E131/E132 -> 0.00505110497
C136: TB | D136: = | E136: =E134*100 -> 0.505110497 | F136: $/100$ | G136: =IF(I40>0,"AVERTISSEMENT: Un ou plusieurs taux sont invalides et ne respectent pas les règles de la LFM. Par conséquent, TB est erroné.","-") -> -
A138: TAUX en $ / 100 $ SELON LA CATÉGORIE D'IMMEUBLES
C139: Taux généré | E139: Balises des taux
E140: Minimum | F140: Maximum
A141: TB (catégorie résiduelle ou sous-catégorie résiduelle) | B141: = | C141: =E136 -> 0.505110497
A142: TSCR 1 | B142: = | C142: =IF('Sommaire du rôle'!H66>0,IF(G15>0,G15*$C$141,$C$141),"-") -> 0.6733122925 | E142: ='Balises-Taux'!$C$15 -> 0.3410181878 | F142: ='Balises-Taux'!$F$15 -> 0.6825484149
A143: TSCR 2 | B143: = | C143: =IF('Sommaire du rôle'!J66>0,IF(G16>0,G16*$C$141,$C$141),"-") -> 0.6733122925 | E143: ='Balises-Taux'!$C$15 -> 0.3410181878 | F143: ='Balises-Taux'!$F$15 -> 0.6825484149
A144: TSCR 3 | B144: = | C144: =IF('Sommaire du rôle'!L66>0,IF(G17>0,G17*$C$141,$C$141),"-") -> 0.6733122925 | E144: ='Balises-Taux'!$C$15 -> 0.3410181878 | F144: ='Balises-Taux'!$F$15 -> 0.6825484149
A145: TSCR 4 | B145: = | C145: =IF('Sommaire du rôle'!N66>0,IF(G18>0,G18*$C$141,$C$141),"-") -> 0.6733122925 | E145: ='Balises-Taux'!$C$15 -> 0.3410181878 | F145: ='Balises-Taux'!$F$15 -> 0.6825484149
A146: TSCR 5 | B146: = | C146: =IF('Sommaire du rôle'!P66>0,IF(G19>0,G19*$C$141,$C$141),"-") -> 0.6733122925 | E146: ='Balises-Taux'!$C$15 -> 0.3410181878 | F146: ='Balises-Taux'!$F$15 -> 0.6825484149
A147: TSCR 6 | B147: = | C147: =IF('Sommaire du rôle'!R66>0,IF(G20>0,G20*$C$141,$C$141),"-") -> 0.6733122925 | E147: ='Balises-Taux'!$C$15 -> 0.3410181878 | F147: ='Balises-Taux'!$F$15 -> 0.6825484149
A148: TSCR 7 | B148: = | C148: =IF('Sommaire du rôle'!T66>0,IF(G21>0,G21*$C$141,$C$141),"-") -> 0.6733122925 | E148: ='Balises-Taux'!$C$15 -> 0.3410181878 | F148: ='Balises-Taux'!$F$15 -> 0.6825484149
A149: TSCR 8 | B149: = | C149: =IF('Sommaire du rôle'!V66>0,IF(G22>0,G22*$C$141,$C$141),"-") -> 0.6733122925 | E149: ='Balises-Taux'!$C$15 -> 0.3410181878 | F149: ='Balises-Taux'!$F$15 -> 0.6825484149
A150: TSCR 9 | B150: = | C150: =IF('Sommaire du rôle'!X66>0,IF(G23>0,G23*$C$141,$C$141),"-") -> 0.6733122925 | E150: ='Balises-Taux'!$C$15 -> 0.3410181878 | F150: ='Balises-Taux'!$F$15 -> 0.6825484149
A151: TSCR 10 | B151: = | C151: =IF('Sommaire du rôle'!Z66>0,IF(G24>0,G24*$C$141,$C$141),"-") -> 0.6733122925 | E151: ='Balises-Taux'!$C$15 -> 0.3410181878 | F151: ='Balises-Taux'!$F$15 -> 0.6825484149
A152: TINR (catégorie non résidentielle ou sous-catégorie de référence) | B152: = | C152: =IF('Sommaire du rôle'!F23>0,IF(G25>0,G25*C141,C141),"-") -> 2.424530386 | E152: ='Balises-Taux'!C17 -> 0.512039321 | F152: ='Balises-Taux'!F17 -> 2.457788741
A153: TSCNR 1 | B153: = | C153: =IF('Sommaire du rôle'!H46>0,IF(G26>0,G26*$C$141,IF($C$152>0,$C$152,$C$141)),"-") -> 2.424530386 | E153: =E152 -> 0.512039321 | F153: =F152 -> 2.457788741
A154: TSCNR 2 | B154: = | C154: =IF('Sommaire du rôle'!J46>0,IF(G27>0,G27*$C$141,IF($C$152>0,$C$152,$C$141)),"-") -> 2.424530386 | E154: =E153 -> 0.512039321 | F154: 2.457788741
A155: TSCNR 3 | B155: = | C155: =IF('Sommaire du rôle'!L46>0,IF(G28>0,G28*$C$141,IF($C$152>0,$C$152,$C$141)),"-") -> 2.424530386 | E155: 0.512039321 | F155: 2.457788741
A156: TSCNR 4 | B156: = | C156: =IF('Sommaire du rôle'!N46>0,IF(G29>0,G29*$C$141,IF($C$152>0,$C$152,$C$141)),"-") -> 2.424530386 | E156: 0.512039321 | F156: 2.457788741
A157: TSCNR 5 | B157: = | C157: =IF('Sommaire du rôle'!P46>0,IF(G30>0,G30*$C$141,IF($C$152>0,$C$152,$C$141)),"-") -> 2.424530386 | E157: 0.512039321 | F157: 2.457788741
A158: TSCNR 6 | B158: = | C158: =IF('Sommaire du rôle'!R46>0,IF(G31>0,G31*$C$141,IF($C$152>0,$C$152,$C$141)),"-") -> 2.424530386 | E158: 0.512039321 | F158: 2.457788741
A159: TSCNR 7 | B159: = | C159: =IF('Sommaire du rôle'!T46>0,IF(G32>0,G32*$C$141,IF($C$152>0,$C$152,$C$141)),"-") -> 2.424530386 | E159: 0.512039321 | F159: 2.457788741
A160: TSCNR 8 | B160: = | C160: =IF('Sommaire du rôle'!V46>0,IF(G33>0,G33*$C$141,IF($C$152>0,$C$152,$C$141)),"-") -> 2.424530386 | E160: 0.512039321 | F160: 2.457788741
A161: TSCNR 9 | B161: = | C161: =IF('Sommaire du rôle'!X46>0,IF(G34>0,G34*$C$141,IF($C$152>0,$C$152,$C$141)),"-") -> 2.424530386 | E161: 0.512039321 | F161: 2.457788741
A162: TSCNR 10 | B162: = | C162: =IF('Sommaire du rôle'!Z46>0,IF(G35>0,G35*$C$141,IF($C$152>0,$C$152,$C$141)),"-") -> 2.424530386 | E162: 0.512039321 | F162: 2.457788741
A163: TIND | B163: = | C163: =IF('Sommaire du rôle'!I23>0,IF(G36>0,A111*C141,IF(C152>0,C152,C141)),"-") -> 2.525552485 | E163: ='Balises-Taux'!C27 -> 1.636887301 | F163: ='Balises-Taux'!F27 -> 2.560196605
A164: TTVD | B164: = | C164: =IF(('Sommaire du rôle'!F22+'Sommaire du rôle'!G22+'Sommaire du rôle'!L23+'Sommaire du rôle'!N23>0),IF(G37>0,G37*C141,C141),"-") -> 2.020441988 | E164: ='Balises-Taux'!C30 -> 0.512039321 | F164: ='Balises-Taux'!F30 -> 2.048157284
A165: TFOREST | B165: = | C165: =IF('Sommaire du rôle'!N6>0,IF(G38>0,G38*C141,C141),"-") -> 0.505110497 | E165: ='Balises-Taux'!C32 -> 0.3410181878 | F165: ='Balises-Taux'!F32 -> 0.512039321
A166: TAGRI | B166: = | C166: =IF('Sommaire du rôle'!L6>0,IF(G39>0,G39*C141,C141),"-") -> 0.505110497 | E166: ='Balises-Taux'!C34 -> 0.3410181878 | F166: ='Balises-Taux'!F34 -> 0.512039321
A167: (TTVD − TB) | B167: = | C167: =IF(AND(C164>0,('Sommaire du rôle'!F22+'Sommaire du rôle'!G22)>0),C164-C141,"-") -> 1.515331491
A169: Si la municipalité n'utilise pas de taux variés, le taux unique sera : | G169: =(F221/C221)*100 -> 0.9217172071 | H169: $/100$
A190: ASSIETTES IMPOSABLES ET RECETTES
C191: Assiettes imposables | E191: Part des assiettes imposables | F191: Recettes | G191: Part des recettes | H191: Écart des recettes avec taux variés vs taux unique
A192: Résiduelle ou sous-catégorie résiduelle | B192: = | C192: =C45 -> 772400663.7 | E192: =C192/C$221 -> 0.07523822789 | F192: =IF(C192>0,IF(G141="INVALIDE","ERREUR",C192*C141/100),0) -> 3901476.831 | G192: =F192/F$221 -> 0.0412313217 | H192: =F192-(F$221*E192) -> -3217872.994
A193: Sous-catégorie résidentielle 1 | B193: = | C193: =C48 -> 761250103.7 | E193: =C193/C$221 -> 0.07415207091 | F193: 5125590.525 | G193: =F193/F$221 -> 0.05416791666 | H193: =F193-(F$221*E193) -> -1890982.67
A194: Sous-catégorie résidentielle 2 | B194: = | C194: =C51 -> 761250103.7 | E194: 0.07415207091 | F194: 5125590.525 | G194: 0.05416791666 | H194: -1890982.67
A195: Sous-catégorie résidentielle 3 | B195: = | C195: =C54 -> 761250103.7 | E195: 0.07415207091 | F195: 5125590.525 | G195: 0.05416791666 | H195: -1890982.67
A196: Sous-catégorie résidentielle 4 | B196: = | C196: =C57 -> 761250103.7 | E196: 0.07415207091 | F196: 5125590.525 | G196: 0.05416791666 | H196: -1890982.67
A197: Sous-catégorie résidentielle 5 | B197: = | C197: =C60 -> 761250103.7 | E197: 0.07415207091 | F197: 5125590.525 | G197: 0.05416791666 | H197: -1890982.67
A198: Sous-catégorie résidentielle 6 | B198: = | C198: =C63 -> 761250103.7 | E198: 0.07415207091 | F198: 5125590.525 | G198: 0.05416791666 | H198: -1890982.67
A199: Sous-catégorie résidentielle 7 | B199: = | C199: =C66 -> 761250103.7 | E199: 0.07415207091 | F199: 5125590.525 | G199: 0.05416791666 | H199: -1890982.67
A200: Sous-catégorie résidentielle 8 | B200: = | C200: =C69 -> 761250103.7 | E200: 0.07415207091 | F200: 5125590.525 | G200: 0.05416791666 | H200: -1890982.67
A201: Sous-catégorie résidentielle 9 | B201: = | C201: =C72 -> 761250103.7 | E201: 0.07415207091 | F201: 5125590.525 | G201: 0.05416791666 | H201: -1890982.67
A202: Sous-catégorie résidentielle 10 | B202: = | C202: =C75 -> 761250103.7 | E202: 0.07415207091 | F202: 5125590.525 | G202: 0.05416791666 | H202: -1890982.67
A203: Non résidentielle ou sous-catégorie de référence | B203: = | C203: =C78 -> 120420639.1 | E203: =C203/C$221 -> 0.01172996854 | F203: 2919634.986 | G203: =F203/F$221 -> 0.03085508758 | H203: =F203-(F$221*E203) -> 1809697.234
A204: Sous-catégorie non résidentielle 1 | B204: = | C204: =C81 -> 112404699.1 | E204: =C204/C$221 -> 0.01094914953 | F204: 2725286.085 | G204: =F204/F$221 -> 0.02880118277 | H204: =F204-(F$221*E204) -> 1689232.631
A205: Sous-catégorie non résidentielle 2 | B205: = | C205: =C84 -> 112404699.1 | E205: 0.01094914953 | F205: 2725286.085 | G205: 0.02880118277 | H205: 1689232.631
A206: Sous-catégorie non résidentielle 3 | B206: = | C206: =C87 -> 112404699.1 | E206: 0.01094914953 | F206: 2725286.085 | G206: 0.02880118277 | H206: 1689232.631
A207: Sous-catégorie non résidentielle 4 | B207: = | C207: =C90 -> 112404699.1 | E207: 0.01094914953 | F207: 2725286.085 | G207: 0.02880118277 | H207: 1689232.631
A208: Sous-catégorie non résidentielle 5 | B208: = | C208: =C93 -> 112404699.1 | E208: 0.01094914953 | F208: 2725286.085 | G208: 0.02880118277 | H208: 1689232.631
A209: Sous-catégorie non résidentielle 6 | B209: = | C209: =C96 -> 112404699.1 | E209: 0.01094914953 | F209: 2725286.085 | G209: 0.02880118277 | H209: 1689232.631
A210: Sous-catégorie non résidentielle 7 | B210: = | C210: =C99 -> 112404699.1 | E210: 0.01094914953 | F210: 2725286.085 | G210: 0.02880118277 | H210: 1689232.631
A211: Sous-catégorie non résidentielle 8 | B211: = | C211: =C102 -> 112404699.1 | E211: 0.01094914953 | F211: 2725286.085 | G211: 0.02880118277 | H211: 1689232.631
A212: Sous-catégorie non résidentielle 9 | B212: = | C212: =C105 -> 112404699.1 | E212: 0.01094914953 | F212: 2725286.085 | G212: 0.02880118277 | H212: 1689232.631
A213: Sous-catégorie non résidentielle 10 | B213: = | C213: =C108 -> 112404699.1 | E213: 0.01094914953 | F213: 2725286.085 | G213: 0.02880118277 | H213: 1689232.631
A214: Industrielle | B214: = | C214: =C111 -> 239376640 | E214: =C214/C$221 -> 0.02331726918 | F214: 6045582.68 | G214: =F214/F$221 -> 0.06389051508 | H214: =F214-(F$221*E214) -> 3839206.999
A215: Terrains vagues desservis | B215: = | C215: =C114 -> 76716400 | E215: =C215/C$221 -> 0.007472813343 | F215: 1550010.357 | G215: =F215/F$221 -> 0.01638071388 | H215: =F215-(F$221*E215) -> 842902.0978
A216: Forestier | B216: = | C216: =C117 -> 50000000 | E216: =C216/C$221 -> 0.004870414503 | F216: 252555.2485 | G216: =F216/F$221 -> 0.002669037174 | H216: =F216-(F$221*E216) -> -208303.3551
A217: Agricole | B217: = | C217: =C120 -> 270604300 | E217: =C217/C$221 -> 0.02635910214 | F217: 1366850.725 | G217: =F217/F$221 -> 0.01444505873 | H217: =F217-(F$221*E217) -> -1127355.672
A218: TTVD − TB | F218: =IF(A220>0,A220*C167/100,0) -> 79226.07634 | G218: =F218/F221 -> 0.0008372716235 | H218: =F218 -> 79226.07634
A219: Assiette imposable
A220: =C123 -> 5228300
A221: Total | C221: =SUM(C192:C217) -> 1.026606667e+10 | E221: =SUM(E192:E217) -> 1 | F221: =IF(I40>0,"ERREUR",SUM(F192:F217,F218)) -> 94624103 | G221: =SUM(G192:G218) -> 1 | H221: =SUM(H192:H218) -> 3.693276085e-08

Sheet Comparaison des scénarios
A1: COMPARAISON DES DIFFÉRENTS SCÉNARIOS ($/100 $ d'évaluation)
A4: Catégorie | C4: Taux unique | D4: ='Scénario-taux variés'!E10 -> Scénario 1 | E4: Scénario avec le maximum des balises
A5: TB (sous-catégorie résiduelle) | C5: ='Scénario-taux variés'!G169 -> 0.9217172071 | D5: ='Scénario-taux variés'!C141 -> 0.512039321 | E5: =Taux_max_balises!C141 -> 0.505110497
A6: TSCR1 | B6: ='Scénario-taux variés'!C15 -> sr1 | C6: =$C$5 -> 0.9217172071 | D6: ='Scénario-taux variés'!C142 -> 0.512039321 | E6: =Taux_max_balises!C142 -> 0.6733122925
A7: TSCR2 | B7: ='Scénario-taux variés'!C16 -> sr2 | C7: 0.9217172071 | D7: ='Scénario-taux variés'!C143 -> 0.6825484149 | E7: =Taux_max_balises!C143 -> 0.6733122925
A8: TSCR3 | B8: ='Scénario-taux variés'!C17 -> sr3 | C8: 0.9217172071 | D8: ='Scénario-taux variés'!C144 -> 0.6825484149 | E8: =Taux_max_balises!C144 -> 0.6733122925
A9: TSCR4 | B9: ='Scénario-taux variés'!C18 -> sr4 | C9: 0.9217172071 | D9: ='Scénario-taux variés'!C145 -> 0.6825484149 | E9: =Taux_max_balises!C145 -> 0.6733122925
A10: TSCR5 | B10: ='Scénario-taux variés'!C19 -> sr5 | C10: 0.9217172071 | D10: ='Scénario-taux variés'!C146 -> 0.6825484149 | E10: =Taux_max_balises!C146 -> 0.6733122925
A11: TSCR6 | B11: ='Scénario-taux variés'!C20 -> sr6 | C11: 0.9217172071 | D11: ='Scénario-taux variés'!C147 -> 0.6825484149 | E11: =Taux_max_balises!C147 -> 0.6733122925
A12: TSCR7 | B12: ='Scénario-taux variés'!C21 -> sr7 | C12: 0.9217172071 | D12: ='Scénario-taux variés'!C148 -> 0.6825484149 | E12: =Taux_max_balises!C148 -> 0.6733122925
A13: TSCR8 | B13: ='Scénario-taux variés'!C22 -> sr8 | C13: 0.9217172071 | D13: ='Scénario-taux variés'!C149 -> 0.6825484149 | E13: =Taux_max_balises!C149 -> 0.6733122925
A14: TSCR9 | B14: ='Scénario-taux variés'!C23 -> sr9 | C14: 0.9217172071 | D14: ='Scénario-taux variés'!C150 -> 0.6825484149 | E14: =Taux_max_balises!C150 -> 0.6733122925
A15: TSCR10 | B15: ='Scénario-taux variés'!C24 -> sr10 | C15: 0.9217172071 | D15: ='Scénario-taux variés'!C151 -> 0.6825484149 | E15: =Taux_max_balises!C151 -> 0.6733122925
A16: TINR (taux de la sous-catégorie de référence) | C16: 0.9217172071 | D16: ='Scénario-taux variés'!C152 -> 2.457788741 | E16: =Taux_max_balises!C152 -> 2.424530386
A17: TSCNR1 | C17: 0.9217172071 | D17: ='Scénario-taux variés'!C153 -> 2.457788741 | E17: =Taux_max_balises!C153 -> 2.424530386
A18: TSCNR2 | B18: ='Scénario-taux variés'!C26 -> snr1 | C18: 0.9217172071 | D18: ='Scénario-taux variés'!C154 -> 2.457788741 | E18: =Taux_max_balises!C154 -> 2.424530386
A19: TSCNR3 | B19: ='Scénario-taux variés'!C27 -> snr2 | C19: 0.9217172071 | D19: ='Scénario-taux variés'!C155 -> 2.457788741 | E19: =Taux_max_balises!C155 -> 2.424530386
A20: TSCNR4 | B20: ='Scénario-taux variés'!C28 -> snr3 | C20: 0.9217172071 | D20: ='Scénario-taux variés'!C156 -> 2.457788741 | E20: =Taux_max_balises!C156 -> 2.424530386
A21: TSCNR5 | B21: ='Scénario-taux variés'!C29 -> snr4 | C21: 0.9217172071 | D21: ='Scénario-taux variés'!C157 -> 2.457788741 | E21: =Taux_max_balises!C157 -> 2.424530386
A22: TSCNR6 | B22: ='Scénario-taux variés'!C30 -> snr5 | C22: 0.9217172071 | D22: ='Scénario-taux variés'!C158 -> 2.457788741 | E22: =Taux_max_balises!C158 -> 2.424530386
A23: TSCNR7 | B23: ='Scénario-taux variés'!C31 -> snr6 | C23: 0.9217172071 | D23: ='Scénario-taux variés'!C159 -> 2.457788741 | E23: =Taux_max_balises!C159 -> 2.424530386
A24: TSCNR8 | B24: ='Scénario-taux variés'!C32 -> snr7 | C24: 0.9217172071 | D24: ='Scénario-taux variés'!C160 -> 2.457788741 | E24: =Taux_max_balises!C160 -> 2.424530386
A25: TSCNR9 | B25: ='Scénario-taux variés'!C33 -> snr8 | C25: 0.9217172071 | D25: ='Scénario-taux variés'!C161 -> 2.457788741 | E25: =Taux_max_balises!C161 -> 2.424530386
A26: TSCNR10 | B26: ='Scénario-taux variés'!C34 -> snr9 | C26: 0.9217172071 | D26: ='Scénario-taux variés'!C162 -> 2.457788741 | E26: =Taux_max_balises!C162 -> 2.424530386
A27: TIND | C27: 0.9217172071 | D27: ='Scénario-taux variés'!C163 -> 2.560196605 | E27: =Taux_max_balises!C163 -> 2.525552485
A28: TTVD | C28: 0.9217172071 | D28: ='Scénario-taux variés'!C164 -> 2.048157284 | E28: =Taux_max_balises!C164 -> 2.020441988
A29: TFOREST | C29: 0.9217172071 | D29: ='Scénario-taux variés'!C165 -> 0.512039321 | E29: =Taux_max_balises!C165 -> 0.505110497
A30: TAGRI | C30: 0.9217172071 | D30: ='Scénario-taux variés'!C166 -> 0.512039321 | E30: =Taux_max_balises!C166 -> 0.505110497
A31: (TTVD − TB) | C31: 0.9217172071 | D31: ='Scénario-taux variés'!C167 -> 1.536117963 | E31: =Taux_max_balises!C167 -> 1.515331491
A60: Catégorie | B60: Part des assiettes imposables | C60: Recettes-Scénario | D60: Recettes-Scénario avec le maximum des balises
A61: Résiduelle ou sous-catégorie résiduelle | B61: ='Scénario-taux variés'!E192 -> 0.07523822789 | C61: ='Scénario-taux variés'!G192 -> 0.04179690997 | D61: =Taux_max_balises!G192 -> 0.0412313217
A62: Sous-catégorie résidentielle 1 | B62: ='Scénario-taux variés'!E193 -> 0.07415207091 | C62: ='Scénario-taux variés'!G193 -> 0.04119351982 | D62: =Taux_max_balises!G193 -> 0.05416791666
A63: Sous-catégorie résidentielle 2 | B63: ='Scénario-taux variés'!E194 -> 0.07415207091 | C63: ='Scénario-taux variés'!G194 -> 0.05491096192 | D63: =Taux_max_balises!G194 -> 0.05416791666
A64: Sous-catégorie résidentielle 3 | B64: ='Scénario-taux variés'!E195 -> 0.07415207091 | C64: ='Scénario-taux variés'!G195 -> 0.05491096192 | D64: =Taux_max_balises!G195 -> 0.05416791666
A65: Sous-catégorie résidentielle 4 | B65: ='Scénario-taux variés'!E196 -> 0.07415207091 | C65: ='Scénario-taux variés'!G196 -> 0.05491096192 | D65: =Taux_max_balises!G196 -> 0.05416791666
A66: Sous-catégorie résidentielle 5 | B66: ='Scénario-taux variés'!E197 -> 0.07415207091 | C66: ='Scénario-taux variés'!G197 -> 0.05491096192 | D66: =Taux_max_balises!G197 -> 0.05416791666
A67: Sous-catégorie résidentielle 6 | B67: ='Scénario-taux variés'!E198 -> 0.07415207091 | C67: ='Scénario-taux variés'!G198 -> 0.05491096192 | D67: =Taux_max_balises!G198 -> 0.05416791666
A68: Sous-catégorie résidentielle 7 | B68: ='Scénario-taux variés'!E199 -> 0.07415207091 | C68: ='Scénario-taux variés'!G199 -> 0.05491096192 | D68: =Taux_max_balises!G199 -> 0.05416791666
A69: Sous-catégorie résidentielle 8 | B69: ='Scénario-taux variés'!E200 -> 0.07415207091 | C69: ='Scénario-taux variés'!G200 -> 0.05491096192 | D69: =Taux_max_balises!G200 -> 0.05416791666
A70: Sous-catégorie résidentielle 9 | B70: ='Scénario-taux variés'!E201 -> 0.07415207091 | C70: ='Scénario-taux variés'!G201 -> 0.05491096192 | D70: =Taux_max_balises!G201 -> 0.05416791666
A71: Sous-catégorie résidentielle 10 | B71: ='Scénario-taux variés'!E202 -> 0.07415207091 | C71: ='Scénario-taux variés'!G202 -> 0.05491096192 | D71: =Taux_max_balises!G202 -> 0.05416791666
A72: Non résidentielle ou sous-catégorie de référence | B72: ='Scénario-taux variés'!E203 -> 0.01172996854 | C72: ='Scénario-taux variés'!G203 -> 0.03127834046 | D72: =Taux_max_balises!G203 -> 0.03085508758
A73: Sous-catégorie non résidentielle 1 | B73: ='Scénario-taux variés'!E204 -> 0.01094914953 | C73: ='Scénario-taux variés'!G204 -> 0.02919626132 | D73: =Taux_max_balises!G204 -> 0.02880118277
A74: Sous-catégorie non résidentielle 2 | B74: ='Scénario-taux variés'!E205 -> 0.01094914953 | C74: ='Scénario-taux variés'!G205 -> 0.02919626132 | D74: =Taux_max_balises!G205 -> 0.02880118277
A75: Sous-catégorie non résidentielle 3 | B75: ='Scénario-taux variés'!E206 -> 0.01094914953 | C75: ='Scénario-taux variés'!G206 -> 0.02919626132 | D75: =Taux_max_balises!G206 -> 0.02880118277
A76: Sous-catégorie non résidentielle 4 | B76: ='Scénario-taux variés'!E207 -> 0.01094914953 | C76: ='Scénario-taux variés'!G207 -> 0.02919626132 | D76: =Taux_max_balises!G207 -> 0.02880118277
A77: Sous-catégorie non résidentielle 5 | B77: ='Scénario-taux variés'!E208 -> 0.01094914953 | C77: ='Scénario-taux variés'!G208 -> 0.02919626132 | D77: =Taux_max_balises!G208 -> 0.02880118277
A78: Sous-catégorie non résidentielle 6 | B78: ='Scénario-taux variés'!E209 -> 0.01094914953 | C78: ='Scénario-taux variés'!G209 -> 0.02919626132 | D78: =Taux_max_balises!G209 -> 0.02880118277
A79: Sous-catégorie non résidentielle 7 | B79: ='Scénario-taux variés'!E210 -> 0.01094914953 | C79: ='Scénario-taux variés'!G210 -> 0.02919626132 | D79: =Taux_max_balises!G210 -> 0.02880118277
A80: Sous-catégorie non résidentielle 8 | B80: ='Scénario-taux variés'!E211 -> 0.01094914953 | C80: ='Scénario-taux variés'!G211 -> 0.02919626132 | D80: =Taux_max_balises!G211 -> 0.02880118277
A81: Sous-catégorie non résidentielle 9 | B81: ='Scénario-taux variés'!E212 -> 0.01094914953 | C81: ='Scénario-taux variés'!G212 -> 0.02919626132 | D81: =Taux_max_balises!G212 -> 0.02880118277
A82: Sous-catégorie non résidentielle 10 | B82: ='Scénario-taux variés'!E213 -> 0.01094914953 | C82: ='Scénario-taux variés'!G213 -> 0.02919626132 | D82: =Taux_max_balises!G213 -> 0.02880118277
A83: Industrielle | B83: ='Scénario-taux variés'!E214 -> 0.02331726918 | C83: ='Scénario-taux variés'!G214 -> 0.06476692953 | D83: =Taux_max_balises!G214 -> 0.06389051508
A84: Terrains vagues désservis | B84: ='Scénario-taux variés'!E215 -> 0.007472813343 | C84: ='Scénario-taux variés'!G215 -> 0.01660541537 | D84: =Taux_max_balises!G215 -> 0.01638071388
A85: Forestier | B85: ='Scénario-taux variés'!E216 -> 0.004870414503 | C85: ='Scénario-taux variés'!G216 -> 0.002705649537 | D85: =Taux_max_balises!G216 -> 0.002669037174
A86: Agricole | B86: ='Scénario-taux variés'!E217 -> 0.02635910214 | C86: ='Scénario-taux variés'!G217 -> 0.01464320798 | D86: =Taux_max_balises!G217 -> 0.01444505873
A87: TTVD − TB | B87: ='Scénario-taux variés'!E218 -> 0 | C87: ='Scénario-taux variés'!G218 -> 0.0008487568486 | D87: =Taux_max_balises!G218 -> 0.0008372716235

Sheet Résultats du scénario
B1: Municipalité de | C1: ='Scénario-taux variés'!E7 -> 0
B2: Année : | C2: ='Scénario-taux variés'!G7 -> 0
B3: Nom du scénario : | C3: ='Scénario-taux variés'!E10 -> Scénario 1
A5: Taux de la taxe foncière générale
A6: TB | C6: ='Scénario-taux variés'!C141 -> 0.512039321 | D6: / 100 $
A7: TSCR 1 | B7: ='Scénario-taux variés'!C15 -> sr1 | C7: ='Scénario-taux variés'!C142 -> 0.512039321 | D7: / 100 $
A8: TSCR 2 | B8: ='Scénario-taux variés'!C16 -> sr2 | C8: ='Scénario-taux variés'!C143 -> 0.6825484149 | D8: / 100 $
A9: TSCR 3 | B9: ='Scénario-taux variés'!C17 -> sr3 | C9: ='Scénario-taux variés'!C144 -> 0.6825484149 | D9: / 100 $
A10: TSCR 4 | B10: ='Scénario-taux variés'!C18 -> sr4 | C10: ='Scénario-taux variés'!C145 -> 0.6825484149 | D10: / 100 $
A11: TSCR 5 | B11: ='Scénario-taux variés'!C19 -> sr5 | C11: ='Scénario-taux variés'!C146 -> 0.6825484149 | D11: / 100 $
A12: TSCR 6 | B12: ='Scénario-taux variés'!C20 -> sr6 | C12: ='Scénario-taux variés'!C147 -> 0.6825484149 | D12: / 100 $
A13: TSCR 7 | B13: ='Scénario-taux variés'!C21 -> sr7 | C13: ='Scénario-taux variés'!C148 -> 0.6825484149 | D13: / 100 $
A14: TSCR 8 | B14: ='Scénario-taux variés'!C22 -> sr8 | C14: ='Scénario-taux variés'!C149 -> 0.6825484149 | D14: / 100 $
A15: TSCR 9 | B15: ='Scénario-taux variés'!C23 -> sr9 | C15: ='Scénario-taux variés'!C150 -> 0.6825484149 | D15: / 100 $
A16: TSCR 10 | B16: ='Scénario-taux variés'!C24 -> sr10 | C16: ='Scénario-taux variés'!C151 -> 0.6825484149 | D16: / 100 $
A17: TINR ou Taux sous-catégorie de référence | C17: ='Scénario-taux variés'!C152 -> 2.457788741 | D17: / 100 $
A18: TSCNR 1 | B18: ='Scénario-taux variés'!C26 -> snr1 | C18: ='Scénario-taux variés'!C153 -> 2.457788741 | D18: / 100 $
A19: TSCNR 2 | B19: ='Scénario-taux variés'!C27 -> snr2 | C19: ='Scénario-taux variés'!C154 -> 2.457788741 | D19: / 100 $
A20: TSCNR 3 | B20: ='Scénario-taux variés'!C28 -> snr3 | C20: ='Scénario-taux variés'!C155 -> 2.457788741 | D20: / 100 $
A21: TSCNR 4 | B21: ='Scénario-taux variés'!C29 -> snr4 | C21: ='Scénario-taux variés'!C156 -> 2.457788741 | D21: / 100 $
A22: TSCNR 5 | B22: ='Scénario-taux variés'!C30 -> snr5 | C22: ='Scénario-taux variés'!C157 -> 2.457788741 | D22: / 100 $
A23: TSCNR 6 | B23: ='Scénario-taux variés'!C31 -> snr6 | C23: ='Scénario-taux variés'!C158 -> 2.457788741 | D23: / 100 $
A24: TSCNR 7 | B24: ='Scénario-taux variés'!C32 -> snr7 | C24: ='Scénario-taux variés'!C159 -> 2.457788741 | D24: / 100 $
A25: TSCNR 8 | B25: ='Scénario-taux variés'!C33 -> snr8 | C25: ='Scénario-taux variés'!C160 -> 2.457788741 | D25: / 100 $
A26: TSCNR 9 | B26: ='Scénario-taux variés'!C34 -> snr9 | C26: ='Scénario-taux variés'!C161 -> 2.457788741 | D26: / 100 $
A27: TSCNR 10 | B27: ='Scénario-taux variés'!C35 -> snr10 | C27: ='Scénario-taux variés'!C162 -> 2.457788741 | D27: / 100 $
A28: TIND | C28: ='Scénario-taux variés'!C163 -> 2.560196605 | D28: / 100 $
A29: TTVD | C29: ='Scénario-taux variés'!C164 -> 2.048157284 | D29: / 100 $
A30: TFOREST | C30: ='Scénario-taux variés'!C165 -> 0.512039321 | D30: / 100 $
A31: TAGRI | C31: ='Scénario-taux variés'!C166 -> 0.512039321 | D31: / 100 $
A32: (TTVD − TB) | C32: ='Scénario-taux variés'!C167 -> 1.536117963 | D32: / 100 $
A52: Recettes des assiettes imposables
C53: Assiettes | F53: Recettes
A54: Catégorie | C54: Montant | D54: Part | F54: Montant | G54: Part
A55: Résiduelle ou sous-catégorie résiduelle | C55: =IF('Sommaire du rôle'!F66>0,'Sommaire du rôle'!F83,'Sommaire du rôle'!O71) -> 772400663.7 | D55: =C55/C$84 -> 0.07523822789 | F55: ='Scénario-taux variés'!F192 -> 3954995.114 | G55: =F55/F$84 -> 0.04179690997
A56: Sous-catégorie résidentielle 1 | B56: =B7 -> sr1 | C56: ='Sommaire du rôle'!G$83 -> 761250103.7 | D56: =C56/C$84 -> 0.07415207091 | F56: ='Scénario-taux variés'!F193 -> 3897899.862 | G56: =F56/F$84 -> 0.04119351982
A57: Sous-catégorie résidentielle 2 | B57: sr2 | C57: ='Sommaire du rôle'!H$83 -> 761250103.7 | D57: 0.07415207091 | F57: ='Scénario-taux variés'!F194 -> 5195900.516 | G57: 0.05491096192
A58: Sous-catégorie résidentielle 3 | B58: sr3 | C58: ='Sommaire du rôle'!I$83 -> 761250103.7 | D58: 0.07415207091 | F58: ='Scénario-taux variés'!F195 -> 5195900.516 | G58: 0.05491096192
A59: Sous-catégorie résidentielle 4 | B59: sr4 | C59: ='Sommaire du rôle'!J$83 -> 761250103.7 | D59: 0.07415207091 | F59: ='Scénario-taux variés'!F196 -> 5195900.516 | G59: 0.05491096192
A60: Sous-catégorie résidentielle 5 | B60: sr5 | C60: ='Sommaire du rôle'!K$83 -> 761250103.7 | D60: 0.07415207091 | F60: ='Scénario-taux variés'!F197 -> 5195900.516 | G60: 0.05491096192
A61: Sous-catégorie résidentielle 6 | B61: sr6 | C61: ='Sommaire du rôle'!L$83 -> 761250103.7 | D61: 0.07415207091 | F61: ='Scénario-taux variés'!F198 -> 5195900.516 | G61: 0.05491096192
A62: Sous-catégorie résidentielle 7 | B62: sr7 | C62: ='Sommaire du rôle'!M$83 -> 761250103.7 | D62: 0.07415207091 | F62: ='Scénario-taux variés'!F199 -> 5195900.516 | G62: 0.05491096192
A63: Sous-catégorie résidentielle 8 | B63: sr8 | C63: ='Sommaire du rôle'!N$83 -> 761250103.7 | D63: 0.07415207091 | F63: ='Scénario-taux variés'!F200 -> 5195900.516 | G63: 0.05491096192
A64: Sous-catégorie résidentielle 9 | B64: sr9 | C64: ='Sommaire du rôle'!O$83 -> 761250103.7 | D64: 0.07415207091 | F64: ='Scénario-taux variés'!F201 -> 5195900.516 | G64: 0.05491096192
A65: Sous-catégorie résidentielle 10 | B65: sr10 | C65: ='Sommaire du rôle'!P$83 -> 761250103.7 | D65: 0.07415207091 | F65: ='Scénario-taux variés'!F202 -> 5195900.516 | G65: 0.05491096192
A66: Non résidentielle ou sous-catégorie de référence | C66: =IF('Sommaire du rôle'!F46>0,'Sommaire du rôle'!F77,'Sommaire du rôle'!F71) -> 120420639.1 | D66: 0.01172996854 | F66: ='Scénario-taux variés'!F203 -> 2959684.909 | G66: 0.03127834046
A67: Sous-catégorie non résidentielle 1 | B67: =B18 -> snr1 | C67: ='Sommaire du rôle'!G$77 -> 112404699.1 | D67: 0.01094914953 | F67: ='Scénario-taux variés'!F204 -> 2762670.039 | G67: 0.02919626132
A68: Sous-catégorie non résidentielle 2 | B68: snr2 | C68: ='Sommaire du rôle'!H$77 -> 112404699.1 | D68: 0.01094914953 | F68: ='Scénario-taux variés'!F205 -> 2762670.039 | G68: 0.02919626132
A69: Sous-catégorie non résidentielle 3 | B69: snr3 | C69: ='Sommaire du rôle'!I$77 -> 112404699.1 | D69: 0.01094914953 | F69: ='Scénario-taux variés'!F206 -> 2762670.039 | G69: 0.02919626132
A70: Sous-catégorie non résidentielle 4 | B70: snr4 | C70: ='Sommaire du rôle'!J$77 -> 112404699.1 | D70: 0.01094914953 | F70: ='Scénario-taux variés'!F207 -> 2762670.039 | G70: 0.02919626132
A71: Sous-catégorie non résidentielle 5 | B71: snr5 | C71: ='Sommaire du rôle'!K$77 -> 112404699.1 | D71: 0.01094914953 | F71: ='Scénario-taux variés'!F208 -> 2762670.039 | G71: 0.02919626132
A72: Sous-catégorie non résidentielle 6 | B72: snr6 | C72: ='Sommaire du rôle'!L$77 -> 112404699.1 | D72: 0.01094914953 | F72: ='Scénario-taux variés'!F209 -> 2762670.039 | G72: 0.02919626132
A73: Sous-catégorie non résidentielle 7 | B73: snr7 | C73: ='Sommaire du rôle'!M$77 -> 112404699.1 | D73: 0.01094914953 | F73: ='Scénario-taux variés'!F210 -> 2762670.039 | G73: 0.02919626132
A74: Sous-catégorie non résidentielle 8 | B74: snr8 | C74: ='Sommaire du rôle'!N$77 -> 112404699.1 | D74: 0.01094914953 | F74: ='Scénario-taux variés'!F211 -> 2762670.039 | G74: 0.02919626132
A75: Sous-catégorie non résidentielle 9 | B75: snr9 | C75: ='Sommaire du rôle'!O$77 -> 112404699.1 | D75: 0.01094914953 | F75: ='Scénario-taux variés'!F212 -> 2762670.039 | G75: 0.02919626132
A76: Sous-catégorie non résidentielle 10 | B76: snr10 | C76: ='Sommaire du rôle'!P$77 -> 112404699.1 | D76: 0.01094914953 | F76: ='Scénario-taux variés'!F213 -> 2762670.039 | G76: 0.02919626132
A77: Industrielle | C77: ='Sommaire du rôle'!H71 -> 239376640 | D77: 0.02331726918 | F77: ='Scénario-taux variés'!F214 -> 6128512.61 | G77: 0.06476692953
A78: Terrains vagues desservis | C78: ='Sommaire du rôle'!L71 -> 76716400 | D78: 0.007472813343 | F78: ='Scénario-taux variés'!F215 -> 1571272.535 | G78: 0.01660541537
A79: Forestier | C79: ='Sommaire du rôle'!N6 -> 50000000 | D79: 0.004870414503 | F79: ='Scénario-taux variés'!F216 -> 256019.6605 | G79: 0.002705649537
A80: Agricole | C80: ='Sommaire du rôle'!L6 -> 270604300 | D80: 0.02635910214 | F80: ='Scénario-taux variés'!F217 -> 1385600.42 | G80: 0.01464320798
A81: (TTVD − TB) | F81: ='Scénario-taux variés'!F218 -> 80312.85546 | G81: 0.0008487568486
A82: Assiette imposable
A83: ='Sommaire du rôle'!L22 -> 5228300
A84: Total des assiettes imposable | C84: =SUM(C55:C81) -> 1.026606667e+10 | D84: =SUM(D55:D81) -> 1 | F84: =IF('Scénario-taux variés'!K40>0,"ERREUR",SUM(F55:F81)) -> 94624103 | G84: =F84/F$84 -> 1
A102: Recettes des assiettes compensables
C103: Assiettes | F103: Recettes
A104: Catégorie | C104: Montant | D104: Part | F104: Montant | G104: Part
A105: Résiduelle ou sous-catégorie résiduelle | C105: =IF('Sommaire du rôle'!F66>0,'Sommaire du rôle'!F84,'Sommaire du rôle'!O72) -> 5708197 | D105: =C105/C$134 -> 0.01629243687 | F105: =IF(F55="ERREUR","ERREUR",IF(C105>0,C6/100*C105,0)) -> 29228.21316 | G105: =F105/F$134 -> 0.00390799773
A106: Sous-catégorie résidentielle 1 | B106: =B7 -> sr1 | C106: ='Sommaire du rôle'!G84 -> 5708197 | D106: =C106/C$134 -> 0.01629243687 | F106: 29228.21316 | G106: =F106/F$134 -> 0.00390799773
A107: Sous-catégorie résidentielle 2 | B107: sr2 | C107: ='Sommaire du rôle'!H84 -> 5708197 | D107: 0.01629243687 | F107: 38961.20814 | G107: 0.005209360974
A108: Sous-catégorie résidentielle 3 | B108: sr3 | C108: ='Sommaire du rôle'!I84 -> 5708197 | D108: 0.01629243687 | F108: 38961.20814 | G108: 0.005209360974
A109: Sous-catégorie résidentielle 4 | B109: sr4 | C109: ='Sommaire du rôle'!J84 -> 5708197 | D109: 0.01629243687 | F109: 38961.20814 | G109: 0.005209360974
A110: Sous-catégorie résidentielle 5 | B110: sr5 | C110: ='Sommaire du rôle'!K84 -> 5708197 | D110: 0.01629243687 | F110: 38961.20814 | G110: 0.005209360974
A111: Sous-catégorie résidentielle 6 | B111: sr6 | C111: ='Sommaire du rôle'!L84 -> 5708197 | D111: 0.01629243687 | F111: 38961.20814 | G111: 0.005209360974
A112: Sous-catégorie résidentielle 7 | B112: sr7 | C112: ='Sommaire du rôle'!M84 -> 5708197 | D112: 0.01629243687 | F112: 38961.20814 | G112: 0.005209360974
A113: Sous-catégorie résidentielle 8 | B113: sr8 | C113: ='Sommaire du rôle'!N84 -> 5708197 | D113: 0.01629243687 | F113: 38961.20814 | G113: 0.005209360974
A114: Sous-catégorie résidentielle 9 | B114: sr9 | C114: ='Sommaire du rôle'!O84 -> 5708197 | D114: 0.01629243687 | F114: 38961.20814 | G114: 0.005209360974
A115: Sous-catégorie résidentielle 10 | B115: sr10 | C115: ='Sommaire du rôle'!P84 -> 5708197 | D115: 0.01629243687 | F115: 38961.20814 | G115: 0.005209360974
A116: Non résidentielle ou sous-catégorie de référence | C116: =IF('Sommaire du rôle'!F46>0,'Sommaire du rôle'!F78,'Sommaire du rôle'!F72) -> 25925903 | D116: =C116/C$134 -> 0.07399817102 | F116: 637203.9249 | G116: =F116/F$134 -> 0.08519821169
A117: Sous-catégorie non résidentielle 1 | B117: =B18 -> snr1 | C117: ='Sommaire du rôle'!G78 -> 25925903 | D117: =C117/C$134 -> 0.07399817102 | F117: 637203.9249 | G117: =F117/F$134 -> 0.08519821169
A118: Sous-catégorie non résidentielle 2 | B118: snr2 | C118: ='Sommaire du rôle'!H78 -> 25925903 | D118: 0.07399817102 | F118: 637203.9249 | G118: 0.08519821169
A119: Sous-catégorie non résidentielle 3 | B119: snr3 | C119: ='Sommaire du rôle'!I78 -> 25925903 | D119: 0.07399817102 | F119: 637203.9249 | G119: 0.08519821169
A120: Sous-catégorie non résidentielle 4 | B120: snr4 | C120: ='Sommaire du rôle'!J78 -> 25925903 | D120: 0.07399817102 | F120: 637203.9249 | G120: 0.08519821169
A121: Sous-catégorie non résidentielle 5 | B121: snr5 | C121: ='Sommaire du rôle'!K78 -> 25925903 | D121: 0.07399817102 | F121: 637203.9249 | G121: 0.08519821169
A122: Sous-catégorie non résidentielle 6 | B122: snr6 | C122: ='Sommaire du rôle'!L78 -> 25925903 | D122: 0.07399817102 | F122: 637203.9249 | G122: 0.08519821169
A123: Sous-catégorie non résidentielle 7 | B123: snr7 | C123: ='Sommaire du rôle'!M78 -> 25925903 | D123: 0.07399817102 | F123: 637203.9249 | G123: 0.08519821169
A124: Sous-catégorie non résidentielle 8 | B124: snr8 | C124: ='Sommaire du rôle'!N78 -> 25925903 | D124: 0.07399817102 | F124: 637203.9249 | G124: 0.08519821169
A125: Sous-catégorie non résidentielle 9 | B125: snr9 | C125: ='Sommaire du rôle'!O78 -> 25925903 | D125: 0.07399817102 | F125: 637203.9249 | G125: 0.08519821169
A126: Sous-catégorie non résidentielle 10 | B126: snr10 | C126: ='Sommaire du rôle'!P78 -> 25925903 | D126: 0.07399817102 | F126: 637203.9249 | G126: 0.08519821169
A127: Industrielle | C127: ='Sommaire du rôle'!H72 -> 2325200 | D127: =C127/C$134 -> 0.006636626977 | F127: 59529.69146 | G127: =F127/F$134 -> 0.007959497826
A128: Terrains vagues desservis | C128: ='Sommaire du rôle'!L72 -> 58400 | D128: =C128/C$134 -> 0.0001666863132 | F128: 1196.123854 | G128: =F128/F$134 -> 0.0001599293559
A129: Forestier | C129: ='Sommaire du rôle'!L73 -> 0 | D129: =C129/C$134 -> 0 | F129: 0 | G129: =F129/F$134 -> 0
A130: Agricole | C130: ='Sommaire du rôle'!L74 -> 0 | D130: =C130/C$134 -> 0 | F130: 0 | G130: =F130/F$134 -> 0
A131: (TTVD − TB) | F131: =IF(A133>0,(C32)/100*A133,0) -> 0 | G131: =F131/F$134 -> 0
A132: Assiette compensable
A133: ='Sommaire du rôle'!N22 -> 0
A134: Total | C134: =SUM(C105:C131) -> 350358700 | D134: =SUM(D105:D131) -> 1 | F134: =IF(F84="ERREUR","ERREUR",SUM(F105:F131)) -> 7479076.289 | G134: =IF(G84="ERREUR","ERREUR",SUM(G105:G131)) -> 1
A136: Recettes des assiettes (imposables + compensables)
C137: Assiettes | F137: Recettes
A138: Catégorie | C138: Montant | D138: Part | F138: Montant | G138: Part
A139: Résiduelle ou sous-catégorie résiduelle | C139: =C55+C105 -> 778108860.7 | D139: =C139/$C$168 -> 0.07329292427 | F139: =F55+F105 -> 3984223.327 | G139: =F139/$F$168 -> 0.03902154032
A140: Sous-catégorie résidentielle 1 | B140: =B7 -> sr1 | C140: =C56+C106 -> 766958300.7 | D140: =C140/$C$168 -> 0.07224261217 | F140: =F56+F106 -> 3927128.075 | G140: =F140/$F$168 -> 0.0384623486
A141: Sous-catégorie résidentielle 2 | B141: sr2 | C141: =C57+C107 -> 766958300.7 | D141: 0.07224261217 | F141: 5234861.724 | G141: 0.05127031069
A142: Sous-catégorie résidentielle 3 | B142: sr3 | C142: 766958300.7 | D142: 0.07224261217 | F142: 5234861.724 | G142: 0.05127031069
A143: Sous-catégorie résidentielle 4 | B143: sr4 | C143: 766958300.7 | D143: 0.07224261217 | F143: 5234861.724 | G143: 0.05127031069
A144: Sous-catégorie résidentielle 5 | B144: sr5 | C144: 766958300.7 | D144: 0.07224261217 | F144: 5234861.724 | G144: 0.05127031069
A145: Sous-catégorie résidentielle 6 | B145: sr6 | C145: 766958300.7 | D145: 0.07224261217 | F145: 5234861.724 | G145: 0.05127031069
A146: Sous-catégorie résidentielle 7 | B146: sr7 | C146: 766958300.7 | D146: 0.07224261217 | F146: 5234861.724 | G146: 0.05127031069
A147: Sous-catégorie résidentielle 8 | B147: sr8 | C147: 766958300.7 | D147: 0.07224261217 | F147: 5234861.724 | G147: 0.05127031069
A148: Sous-catégorie résidentielle 9 | B148: sr9 | C148: 766958300.7 | D148: 0.07224261217 | F148: 5234861.724 | G148: 0.05127031069
A149: Sous-catégorie résidentielle 10 | B149: sr10 | C149: 766958300.7 | D149: 0.07224261217 | F149: 5234861.724 | G149: 0.05127031069
A150: Non résidentielle ou sous-catégorie de référence | C150: =C66+C116 -> 146346542.1 | D150: =C150/$C$168 -> 0.01378491696 | F150: =F66+F116 -> 3596888.834 | G150: =F150/$F$168 -> 0.03522798075
A151: Sous-catégorie non résidentielle 1 | B151: =B18 -> snr1 | C151: =C67+C117 -> 138330602.1 | D151: =C151/$C$168 -> 0.0130298662 | F151: =F67+F117 -> 3399873.964 | G151: =F151/$F$168 -> 0.03329841428
A152: Sous-catégorie non résidentielle 2 | B152: =B19 -> snr2 | C152: 138330602.1 | D152: 0.0130298662 | F152: 3399873.964 | G152: 0.03329841428
A153: Sous-catégorie non résidentielle 3 | B153: snr3 | C153: 138330602.1 | D153: 0.0130298662 | F153: 3399873.964 | G153: 0.03329841428
A154: Sous-catégorie non résidentielle 4 | B154: snr4 | C154: 138330602.1 | D154: 0.0130298662 | F154: 3399873.964 | G154: 0.03329841428
A155: Sous-catégorie non résidentielle 5 | B155: snr5 | C155: 138330602.1 | D155: 0.0130298662 | F155: 3399873.964 | G155: 0.03329841428
A156: Sous-catégorie non résidentielle 6 | B156: snr6 | C156: 138330602.1 | D156: 0.0130298662 | F156: 3399873.964 | G156: 0.03329841428
A157: Sous-catégorie non résidentielle 7 | B157: snr7 | C157: 138330602.1 | D157: 0.0130298662 | F157: 3399873.964 | G157: 0.03329841428
A158: Sous-catégorie non résidentielle 8 | B158: snr8 | C158: 138330602.1 | D158: 0.0130298662 | F158: 3399873.964 | G158: 0.03329841428
A159: Sous-catégorie non résidentielle 9 | B159: snr9 | C159: 138330602.1 | D159: 0.0130298662 | F159: 3399873.964 | G159: 0.03329841428
A160: Sous-catégorie non résidentielle 10 | B160: snr10 | C160: 138330602.1 | D160: 0.0130298662 | F160: 3399873.964 | G160: 0.03329841428
A161: Industrielle | C161: =C77+C127 -> 241701840 | D161: =C161/$C$168 -> 0.02276678181 | F161: =F77+F127 -> 6188042.302 | G161: =F161/$F$168 -> 0.06060577491
A162: Terrains vagues desservis | C162: =C78+C128 -> 76774800 | D162: =C162/$C$168 -> 0.007231699684 | F162: =F78+F128 -> 1572468.658 | G162: =F162/$F$168 -> 0.01540078056
A163: Forestier | C163: =C79+C129 -> 50000000 | D163: =C163/$C$168 -> 0.00470968318 | F163: =F79+F129 -> 256019.6605 | G163: =F163/$F$168 -> 0.002507460221
A164: Agricole | C164: =C80+C130 -> 270604300 | D164: =C164/$C$168 -> 0.0254892104 | F164: =F80+F130 -> 1385600.42 | G164: =F164/$F$168 -> 0.01357059036
A165: (TTVD − TB) | F165: =F81+F131 -> 80312.85546 | G165: =F165/$F$168 -> 0.0007865852564
A166: Assiette
A167: =A83+A133 -> 5228300
A168: Total (imposable + compensable) | C168: =SUM(C139:C165) -> 1.061642537e+10 | D168: =SUM(D139:D165) -> 1 | F168: =SUM(F139:F165) -> 102103179.3 | G168: =F168/$F$168 -> 1

Sheet Balises taux_max_balises (hidden)
A1: Population de la municipalité | B1: ='Scénario-taux variés'!E8 -> 1000000 | C1: habitants
A3: COEFFICIENT À UTILISER
B4: Coefficient du non résidentiel | E4: Coefficient de l'industriel
A5: Catégorie selon population | B5: Coefficient sur taux de base | C5: Coefficient à retenir | E5: Coefficient sur taux de base | F5: Coefficient à retenir
A6: Moins de 5 000 habitants | B6: 4.1 | C6: =IF($B$1<5000,B6,"-") -> - | E6: 4.5 | F6: =IF($B$1<5000,E6,"-") -> -
A7: De 5 000 à 99 999 habitants | B7: 4.4 | C7: =IF(AND($B$1>=5000,$B$1<=99999),B7,"-") -> - | E7: 5 | F7: =IF(AND($B$1>=5000,$B$1<=99999),E7,"-") -> -
A8: De 100 000 à 199 999 habitants | B8: 4.45 | C8: =IF(AND($B$1>=100000,$B$1<=199999),B8,"-") -> - | E8: 5 | F8: =IF(AND($B$1>=100000,$B$1<=199999),E8,"-") -> -
A9: 200 000 habitants et plus | B9: 4.8 | C9: =IF($B$1>=200000,B9,"-") -> 4.8 | E9: 5 | F9: =IF($B$1>=200000,E9,"-") -> 5
A10: Coefficient correspondant à la taille de la municipalité | B10: =SUM(C6:C9) -> 4.8 | E10: =SUM(F6:F9) -> 5
A12: TAUX SUR 100 $ SELON LE TYPE D'IMMEUBLES
B13: Minimum | E13: Maximum | H13: Taux choisi | I13: Validation du taux | J13: Explication
A14: Taux de base (TB) | H14: =Taux_max_balises!C141 -> 0.505110497
A16: Taux sous-catégorie résidentielle | B16: TB X 66,6% | C16: =0.666*H14 -> 0.336403591 | E16: TB X 133,3% | F16: =H14*1.333 -> 0.6733122925
A18: Taux non résidentiel (TINR) | B18: TB | C18: =IF('Sommaire du rôle'!F23>0,H14,"-") -> 0.505110497 | E18: TB X Coefficient du non résidentiel | F18: =IF('Sommaire du rôle'!F23>0,H14*B10,"-") -> 2.424530386 | H18: =Taux_max_balises!C152 -> 2.424530386 | I18: =IF(AND(C18<=H18,F18>=H18),"-","INVALIDE") -> - | J18: =IF(I18="INVALIDE",IF(H18<C18,"Taux inférieur au minimum","Taux supérieur au maximum"),"-") -> -
A20: Taux sous-catégorie non résidentielle | B20: TB | C20: =H14 -> 0.505110497 | E20: TB X Coefficient non résidentiel | F20: =H14*B10 -> 2.424530386
B21: TINR X 66,6 % | C21: =H18*0.666 -> 1.614737237 | E21: TINR X 133,3 % | F21: =H18*1.333 -> 3.231899004
B22: Plus grand entre les deux balises | C22: =MAX(C20:C21) -> 1.614737237 | E22: Plus petit entre les deux balises | F22: =IF('Sommaire du rôle'!F16>0,MIN(F20:F21),"-") -> 2.424530386
A26: Taux industriel (TIND)
B27: TB | C27: =IF('Sommaire du rôle'!I23>0,H14,"-") -> 0.505110497 | E27: TB X Coefficient de l'industriel | F27: =IF('Sommaire du rôle'!I23>0,H14*E10,"-") -> 2.525552485
B28: TINR X 66,6 % | C28: =IF('Sommaire du rôle'!I23>0,H18*0.666,"-") -> 1.614737237 | E28: TINR X 133,3 % | F28: =IF('Sommaire du rôle'!I23>0,H18*1.333,"-") -> 3.231899004
B29: Plus grand entre les deux taux | C29: =IF('Sommaire du rôle'!I23>0,MAX(C27:C28),"-") -> 1.614737237 | E29: Plus petit entre les deux taux | F29: =IF('Sommaire du rôle'!I23>0,MIN(F27:F28),"-") -> 2.525552485 | H29: =Taux_max_balises!C163 -> 2.525552485 | I29: =IF(AND(C29<=H29,F29>=H29),"-","INVALIDE") -> - | J29: =IF(I29="INVALIDE",IF(H29<C29,"Taux inférieur au minimum","Taux supérieur au maximum"),"-") -> -
B30: =IF(C29>F29,"AVERTISSEMENT:TINR génère une incohérence dans les balises du TIND","") -> 
A32: Taux sur terrains vagues desservis (TVD) | B32: TB | C32: =IF(('Sommaire du rôle'!F22+'Sommaire du rôle'!G22+'Sommaire du rôle'!L23+'Sommaire du rôle'!N23>0),H14,"-") -> 0.505110497 | E32: TB X 4 | F32: =IF(('Sommaire du rôle'!F22+'Sommaire du rôle'!G22+'Sommaire du rôle'!L23+'Sommaire du rôle'!N23>0),H14*4,"-") -> 2.020441988 | H32: =Taux_max_balises!C164 -> 2.020441988 | I32: =IF(AND(C32<=H32,F32>=H32),"-","INVALIDE") -> - | J32: =IF(I32="INVALIDE",IF(H32<C32,"Taux inférieur au minimum","Taux supérieur au maximum"),"-") -> -
A34: Taux sur immeuble forestier (TFORES) | B34: TB X 66,6% | C34: =IF('Sommaire du rôle'!N6>0,H14*0.666,"-") -> 0.336403591 | E34: TB | F34: =IF('Sommaire du rôle'!N6>0,H14,"-") -> 0.505110497 | H34: =Taux_max_balises!C165 -> 0.505110497 | I34: =IF(AND(C34<=H34,F34>=H34),"-","INVALIDE") -> - | J34: =IF(I34="INVALIDE",IF(H34<C34,"Taux inférieur au minimum","Taux supérieur au maximum"),"-") -> -
A36: Taux sur immeuble agricole (TAGRI) | B36: TB X 66,6% | C36: =IF('Sommaire du rôle'!L6>0,H14*0.666,"-") -> 0.336403591 | E36: TB | F36: =IF('Sommaire du rôle'!L6>0,H14,"-") -> 0.505110497 | H36: =Taux_max_balises!C166 -> 0.505110497 | I36: =IF(AND(C36<=H36,F36>=H36),"-","INVALIDE") -> - | J36: =IF(I36="INVALIDE",IF(H36<C36,"Taux inférieur au minimum","Taux supérieur au maximum"),"-") -> -
